Body Name,Date Paid,Transaction Number,Amount,Supplier Name,Supplier Type,Expense Area,Cost Centre Description,Expense Type
Cambridgeshire County Council,30-Mar-17,22940486-15117862,-677000,Cambridgeshire And Peterborough Nhs Foundation Trust,Trust (Other),1 - Operations Service Director,Head of LDP,Contribution to Partnerships
Cambridgeshire County Council,30-Mar-17,22940488-15117863,-145000,Cambridgeshire And Peterborough Nhs Foundation Trust,Trust (Other),1 - Operations Service Director,Head of LDP,Contribution to Partnerships
Cambridgeshire County Council,14-Mar-17,22756152-14980309,-60288.62,Kisimul School,Care Establishment,S&C,Placements - Education,Independent School Placements
Cambridgeshire County Council,14-Mar-17,22824523-14979998,-53967,Acorn Park School,Education,S&C,Placements - Education,Independent School Placements
Cambridgeshire County Council,21-Mar-17,22679049-15013863,-23061.16,Kisimul School,Care Establishment,S&C,Placements - Education,Independent School Placements
Cambridgeshire County Council,01-Mar-17,22665010-14895187,-12090,Green Park Interim & Executive,Trade Supplier,CSC,Director of Social Services,Pay - Agency Staff
Cambridgeshire County Council,02-Mar-17,22648261-14923556,-8483,Rheola Healthcare,Care Establishment,5 - Commissioning - Mental Health & Supporting People,OP Blocks - Care Placements,Residential Independent Sector
Cambridgeshire County Council,02-Mar-17,22648266-14923557,-8483,Rheola Healthcare,Care Establishment,5 - Commissioning - Mental Health & Supporting People,OP Blocks - Care Placements,Residential Independent Sector
Cambridgeshire County Council,02-Mar-17,22648270-14923558,-8483,Rheola Healthcare,Care Establishment,5 - Commissioning - Mental Health & Supporting People,OP Blocks - Care Placements,Residential Independent Sector
Cambridgeshire County Council,02-Mar-17,22648271-14923559,-8483,Rheola Healthcare,Care Establishment,5 - Commissioning - Mental Health & Supporting People,OP Blocks - Care Placements,Residential Independent Sector
Cambridgeshire County Council,02-Mar-17,22646458-14923562,-8483,Rheola Healthcare,Care Establishment,5 - Commissioning - Mental Health & Supporting People,OP Blocks - Care Placements,Residential Independent Sector
Cambridgeshire County Council,02-Mar-17,22644387-14923580,-8483,Rheola Healthcare,Care Establishment,5 - Commissioning - Mental Health & Supporting People,OP Blocks - Care Placements,Residential Independent Sector
Cambridgeshire County Council,02-Mar-17,22648272-14923560,-8483,Rheola Healthcare,Care Establishment,5 - Commissioning - Mental Health & Supporting People,OP Blocks - Care Placements,Residential Independent Sector
Cambridgeshire County Council,02-Mar-17,22644411-14923589,-8483,Rheola Healthcare,Care Establishment,5 - Commissioning - Mental Health & Supporting People,OP Blocks - Care Placements,Residential Independent Sector
Cambridgeshire County Council,02-Mar-17,22644412-14923590,-8483,Rheola Healthcare,Care Establishment,5 - Commissioning - Mental Health & Supporting People,OP Blocks - Care Placements,Residential Independent Sector
Cambridgeshire County Council,02-Mar-17,22644383-14923576,-8483,Rheola Healthcare,Care Establishment,5 - Commissioning - Mental Health & Supporting People,OP Blocks - Care Placements,Residential Independent Sector
Cambridgeshire County Council,02-Mar-17,22644385-14923578,-8483,Rheola Healthcare,Care Establishment,5 - Commissioning - Mental Health & Supporting People,OP Blocks - Care Placements,Residential Independent Sector
Cambridgeshire County Council,02-Mar-17,22646462-14923564,-8483,Rheola Healthcare,Care Establishment,5 - Commissioning - Mental Health & Supporting People,OP Blocks - Care Placements,Residential Independent Sector
Cambridgeshire County Council,02-Mar-17,22646470-14923567,-8483,Rheola Healthcare,Care Establishment,5 - Commissioning - Mental Health & Supporting People,OP Blocks - Care Placements,Residential Independent Sector
Cambridgeshire County Council,20-Mar-17,22846569-15006397,-7913.16,Xma Limited,Trade Supplier,LGSS,Norwich IT One-off recharges,Computer hardware
Cambridgeshire County Council,02-Mar-17,22644384-14923577,-5193,Rheola Healthcare,Care Establishment,5 - Commissioning - Mental Health & Supporting People,OP Blocks - Care Placements,Residential Independent Sector
Cambridgeshire County Council,02-Mar-17,22644405-14923587,-5193,Rheola Healthcare,Care Establishment,5 - Commissioning - Mental Health & Supporting People,OP Blocks - Care Placements,Residential Independent Sector
Cambridgeshire County Council,02-Mar-17,22646477-14923570,-5193,Rheola Healthcare,Care Establishment,5 - Commissioning - Mental Health & Supporting People,OP Blocks - Care Placements,Residential Independent Sector
Cambridgeshire County Council,02-Mar-17,22644391-14923582,-5193,Rheola Healthcare,Care Establishment,5 - Commissioning - Mental Health & Supporting People,OP Blocks - Care Placements,Residential Independent Sector
Cambridgeshire County Council,02-Mar-17,22644397-14923586,-5193,Rheola Healthcare,Care Establishment,5 - Commissioning - Mental Health & Supporting People,OP Blocks - Care Placements,Residential Independent Sector
Cambridgeshire County Council,02-Mar-17,22646469-14923566,-5193,Rheola Healthcare,Care Establishment,5 - Commissioning - Mental Health & Supporting People,OP Blocks - Care Placements,Residential Independent Sector
Cambridgeshire County Council,02-Mar-17,22646473-14923568,-5193,Rheola Healthcare,Care Establishment,5 - Commissioning - Mental Health & Supporting People,OP Blocks - Care Placements,Residential Independent Sector
Cambridgeshire County Council,02-Mar-17,22646474-14923569,-5193,Rheola Healthcare,Care Establishment,5 - Commissioning - Mental Health & Supporting People,OP Blocks - Care Placements,Residential Independent Sector
Cambridgeshire County Council,02-Mar-17,22648276-14923561,-5193,Rheola Healthcare,Care Establishment,5 - Commissioning - Mental Health & Supporting People,OP Blocks - Care Placements,Residential Independent Sector
Cambridgeshire County Council,02-Mar-17,22646461-14923563,-5193,Rheola Healthcare,Care Establishment,5 - Commissioning - Mental Health & Supporting People,OP Blocks - Care Placements,Residential Independent Sector
Cambridgeshire County Council,02-Mar-17,22646465-14923565,-5193,Rheola Healthcare,Care Establishment,5 - Commissioning - Mental Health & Supporting People,OP Blocks - Care Placements,Residential Independent Sector
Cambridgeshire County Council,02-Mar-17,22644386-14923579,-5193,Rheola Healthcare,Care Establishment,5 - Commissioning - Mental Health & Supporting People,OP Blocks - Care Placements,Residential Independent Sector
Cambridgeshire County Council,02-Mar-17,22644394-14923583,-5193,Rheola Healthcare,Care Establishment,5 - Commissioning - Mental Health & Supporting People,OP Blocks - Care Placements,Residential Independent Sector
Cambridgeshire County Council,02-Mar-17,22644395-14923584,-5193,Rheola Healthcare,Care Establishment,5 - Commissioning - Mental Health & Supporting People,OP Blocks - Care Placements,Residential Independent Sector
Cambridgeshire County Council,02-Mar-17,22646472-14916050,-4880,Fitzwilliam Healthcare Ltd,Care Establishment,5 - Commissioning - Mental Health & Supporting People,OP Blocks - Care Placements,Residential Independent Sector
Cambridgeshire County Council,02-Mar-17,22644381-14916052,-4880,Fitzwilliam Healthcare Ltd,Care Establishment,5 - Commissioning - Mental Health & Supporting People,OP Blocks - Care Placements,Residential Independent Sector
Cambridgeshire County Council,02-Mar-17,22644415-14916059,-4880,Fitzwilliam Healthcare Ltd,Care Establishment,5 - Commissioning - Mental Health & Supporting People,OP Blocks - Care Placements,Residential Independent Sector
Cambridgeshire County Council,02-Mar-17,22648275-14916045,-4880,Fitzwilliam Healthcare Ltd,Care Establishment,5 - Commissioning - Mental Health & Supporting People,OP Blocks - Care Placements,Residential Independent Sector
Cambridgeshire County Council,02-Mar-17,22646457-14916048,-4880,Fitzwilliam Healthcare Ltd,Care Establishment,5 - Commissioning - Mental Health & Supporting People,OP Blocks - Care Placements,Residential Independent Sector
Cambridgeshire County Council,02-Mar-17,22644410-14916058,-4880,Fitzwilliam Healthcare Ltd,Care Establishment,5 - Commissioning - Mental Health & Supporting People,OP Blocks - Care Placements,Residential Independent Sector
Cambridgeshire County Council,02-Mar-17,22644393-14916054,-4880,Fitzwilliam Healthcare Ltd,Care Establishment,5 - Commissioning - Mental Health & Supporting People,OP Blocks - Care Placements,Residential Independent Sector
Cambridgeshire County Council,02-Mar-17,22644401-14916056,-4880,Fitzwilliam Healthcare Ltd,Care Establishment,5 - Commissioning - Mental Health & Supporting People,OP Blocks - Care Placements,Residential Independent Sector
Cambridgeshire County Council,02-Mar-17,22644389-14916053,-4880,Fitzwilliam Healthcare Ltd,Care Establishment,5 - Commissioning - Mental Health & Supporting People,OP Blocks - Care Placements,Residential Independent Sector
Cambridgeshire County Council,02-Mar-17,22648265-14916042,-4880,Fitzwilliam Healthcare Ltd,Care Establishment,5 - Commissioning - Mental Health & Supporting People,OP Blocks - Care Placements,Residential Independent Sector
Cambridgeshire County Council,02-Mar-17,22646456-14916047,-4880,Fitzwilliam Healthcare Ltd,Care Establishment,5 - Commissioning - Mental Health & Supporting People,OP Blocks - Care Placements,Residential Independent Sector
Cambridgeshire County Council,02-Mar-17,22644390-14923581,-4847.43,Rheola Healthcare,Care Establishment,5 - Commissioning - Mental Health & Supporting People,OP Blocks - Care Placements,Residential Independent Sector
Cambridgeshire County Council,23-Mar-17,22830083-15026689,-4707,Whippet Coaches Limited,Trade Supplier,Passenger Transport,Cambridgeshire Future Transport,Support - subsidised bus routes
Cambridgeshire County Council,02-Mar-17,22645292-14902649,-4655,Brookdale Healthcare Limited,Care Establishment,2 - Operations - Learning Disability,LDP Hunts special needs,Respite Independent Sector
Cambridgeshire County Council,02-Mar-17,22645297-14902653,-4655,Brookdale Healthcare Limited,Care Establishment,2 - Operations - Learning Disability,LDP Huntingdonshire Locality - Care,Respite Independent Sector
Cambridgeshire County Council,02-Mar-17,22714508-14902677,-4655,Brookdale Healthcare Limited,Care Establishment,2 - Operations - Learning Disability,LDP Huntingdonshire Locality - Care,Respite Independent Sector
Cambridgeshire County Council,02-Mar-17,22645285-14902643,-4655,Brookdale Healthcare Limited,Care Establishment,2 - Operations - Learning Disability,LDP Hunts special needs,Respite Independent Sector
Cambridgeshire County Council,02-Mar-17,22584929-14902665,-4655,Brookdale Healthcare Limited,Care Establishment,2 - Operations - Learning Disability,LDP Hunts special needs,Respite Independent Sector
Cambridgeshire County Council,02-Mar-17,22714505-14902674,-4655,Brookdale Healthcare Limited,Care Establishment,2 - Operations - Learning Disability,LDP Hunts special needs,Respite Independent Sector
Cambridgeshire County Council,02-Mar-17,22645284-14902642,-4655,Brookdale Healthcare Limited,Care Establishment,2 - Operations - Learning Disability,LDP Hunts special needs,Respite Independent Sector
Cambridgeshire County Council,02-Mar-17,22584919-14902655,-4655,Brookdale Healthcare Limited,Care Establishment,2 - Operations - Learning Disability,LDP Huntingdonshire Locality - Care,Respite Independent Sector
Cambridgeshire County Council,02-Mar-17,22584921-14902657,-4655,Brookdale Healthcare Limited,Care Establishment,2 - Operations - Learning Disability,LDP Hunts special needs,Respite Independent Sector
Cambridgeshire County Council,02-Mar-17,22584928-14902664,-4655,Brookdale Healthcare Limited,Care Establishment,2 - Operations - Learning Disability,LDP Huntingdonshire Locality - Care,Respite Independent Sector
Cambridgeshire County Council,02-Mar-17,22584932-14902668,-4655,Brookdale Healthcare Limited,Care Establishment,2 - Operations - Learning Disability,LDP Hunts special needs,Respite Independent Sector
Cambridgeshire County Council,02-Mar-17,22584933-14902669,-4655,Brookdale Healthcare Limited,Care Establishment,2 - Operations - Learning Disability,LDP Huntingdonshire Locality - Care,Respite Independent Sector
Cambridgeshire County Council,02-Mar-17,22714506-14902675,-4655,Brookdale Healthcare Limited,Care Establishment,2 - Operations - Learning Disability,LDP Hunts special needs,Respite Independent Sector
Cambridgeshire County Council,02-Mar-17,22714507-14902676,-4655,Brookdale Healthcare Limited,Care Establishment,2 - Operations - Learning Disability,LDP Huntingdonshire Locality - Care,Respite Independent Sector
Cambridgeshire County Council,02-Mar-17,22714525-14902694,-4655,Brookdale Healthcare Limited,Care Establishment,2 - Operations - Learning Disability,LDP Huntingdonshire Locality - Care,Respite Independent Sector
Cambridgeshire County Council,02-Mar-17,22647160-14902635,-4655,Brookdale Healthcare Limited,Care Establishment,2 - Operations - Learning Disability,LDP Huntingdonshire Locality - Care,Respite Independent Sector
Cambridgeshire County Council,02-Mar-17,22646236-14902639,-4655,Brookdale Healthcare Limited,Care Establishment,2 - Operations - Learning Disability,LDP Huntingdonshire Locality - Care,Respite Independent Sector
Cambridgeshire County Council,02-Mar-17,22584924-14902660,-4655,Brookdale Healthcare Limited,Care Establishment,2 - Operations - Learning Disability,LDP Hunts special needs,Respite Independent Sector
Cambridgeshire County Council,02-Mar-17,22646239-14902641,-4655,Brookdale Healthcare Limited,Care Establishment,2 - Operations - Learning Disability,LDP Hunts special needs,Respite Independent Sector
Cambridgeshire County Council,02-Mar-17,22645288-14902645,-4655,Brookdale Healthcare Limited,Care Establishment,2 - Operations - Learning Disability,LDP Hunts special needs,Respite Independent Sector
Cambridgeshire County Council,02-Mar-17,22645293-14902650,-4655,Brookdale Healthcare Limited,Care Establishment,2 - Operations - Learning Disability,LDP Huntingdonshire Locality - Care,Respite Independent Sector
Cambridgeshire County Council,02-Mar-17,22584930-14902666,-4655,Brookdale Healthcare Limited,Care Establishment,2 - Operations - Learning Disability,LDP Hunts special needs,Respite Independent Sector
Cambridgeshire County Council,02-Mar-17,22714516-14902685,-4655,Brookdale Healthcare Limited,Care Establishment,2 - Operations - Learning Disability,LDP Hunts special needs,Respite Independent Sector
Cambridgeshire County Council,02-Mar-17,22714518-14902687,-4655,Brookdale Healthcare Limited,Care Establishment,2 - Operations - Learning Disability,LDP Huntingdonshire Locality - Care,Respite Independent Sector
Cambridgeshire County Council,02-Mar-17,22581957-14902697,-4655,Brookdale Healthcare Limited,Care Establishment,2 - Operations - Learning Disability,LDP Huntingdonshire Locality - Care,Respite Independent Sector
Cambridgeshire County Council,02-Mar-17,22714514-14902683,-4655,Brookdale Healthcare Limited,Care Establishment,2 - Operations - Learning Disability,LDP Hunts special needs,Respite Independent Sector
Cambridgeshire County Council,02-Mar-17,22714522-14902691,-4655,Brookdale Healthcare Limited,Care Establishment,2 - Operations - Learning Disability,LDP Hunts special needs,Respite Independent Sector
Cambridgeshire County Council,09-Mar-17,22782880-14955291,-4655,Brookdale Healthcare Limited,Care Establishment,2 - Operations - Learning Disability,LDP Huntingdonshire Locality - Care,Respite Independent Sector
Cambridgeshire County Council,09-Mar-17,22780859-14955270,-4655,Brookdale Healthcare Limited,Care Establishment,2 - Operations - Learning Disability,LDP Huntingdonshire Locality - Care,Respite Independent Sector
Cambridgeshire County Council,09-Mar-17,22782862-14955294,-4655,Brookdale Healthcare Limited,Care Establishment,2 - Operations - Learning Disability,LDP Hunts special needs,Respite Independent Sector
Cambridgeshire County Council,09-Mar-17,22782869-14955284,-4655,Brookdale Healthcare Limited,Care Establishment,2 - Operations - Learning Disability,LDP Huntingdonshire Locality - Care,Respite Independent Sector
Cambridgeshire County Council,09-Mar-17,22782864-14955296,-4655,Brookdale Healthcare Limited,Care Establishment,2 - Operations - Learning Disability,LDP Hunts special needs,Respite Independent Sector
Cambridgeshire County Council,09-Mar-17,22780862-14955269,-4655,Brookdale Healthcare Limited,Care Establishment,2 - Operations - Learning Disability,LDP Huntingdonshire Locality - Care,Respite Independent Sector
Cambridgeshire County Council,09-Mar-17,22782876-14955288,-4655,Brookdale Healthcare Limited,Care Establishment,2 - Operations - Learning Disability,LDP Huntingdonshire Locality - Care,Respite Independent Sector
Cambridgeshire County Council,09-Mar-17,22782863-14955295,-4655,Brookdale Healthcare Limited,Care Establishment,2 - Operations - Learning Disability,LDP Hunts special needs,Respite Independent Sector
Cambridgeshire County Council,09-Mar-17,22782865-14955281,-4655,Brookdale Healthcare Limited,Care Establishment,2 - Operations - Learning Disability,LDP Hunts special needs,Respite Independent Sector
Cambridgeshire County Council,30-Mar-17,22960728-15121232,-4655,Brookdale Healthcare Limited,Care Establishment,2 - Operations - Learning Disability,LDP Hunts special needs,Respite Independent Sector
Cambridgeshire County Council,30-Mar-17,22840530-15121202,-4655,Brookdale Healthcare Limited,Care Establishment,2 - Operations - Learning Disability,LDP Hunts special needs,Respite Independent Sector
Cambridgeshire County Council,30-Mar-17,22865715-15121205,-4655,Brookdale Healthcare Limited,Care Establishment,2 - Operations - Learning Disability,LDP Hunts special needs,Respite Independent Sector
Cambridgeshire County Council,30-Mar-17,22960733-15121237,-4655,Brookdale Healthcare Limited,Care Establishment,2 - Operations - Learning Disability,LDP Huntingdonshire Locality - Care,Respite Independent Sector
Cambridgeshire County Council,30-Mar-17,22960743-15121247,-4655,Brookdale Healthcare Limited,Care Establishment,2 - Operations - Learning Disability,LDP Huntingdonshire Locality - Care,Respite Independent Sector
Cambridgeshire County Council,30-Mar-17,22840512-15121184,-4655,Brookdale Healthcare Limited,Care Establishment,2 - Operations - Learning Disability,LDP Hunts special needs,Respite Independent Sector
Cambridgeshire County Council,30-Mar-17,22840522-15121194,-4655,Brookdale Healthcare Limited,Care Establishment,2 - Operations - Learning Disability,LDP Huntingdonshire Locality - Care,Respite Independent Sector
Cambridgeshire County Council,30-Mar-17,22840524-15121196,-4655,Brookdale Healthcare Limited,Care Establishment,2 - Operations - Learning Disability,LDP Huntingdonshire Locality - Care,Respite Independent Sector
Cambridgeshire County Council,30-Mar-17,22960744-15121248,-4655,Brookdale Healthcare Limited,Care Establishment,2 - Operations - Learning Disability,LDP Hunts special needs,Respite Independent Sector
Cambridgeshire County Council,30-Mar-17,22865699-15121209,-4655,Brookdale Healthcare Limited,Care Establishment,2 - Operations - Learning Disability,LDP Huntingdonshire Locality - Care,Respite Independent Sector
Cambridgeshire County Council,30-Mar-17,22960722-15121226,-4655,Brookdale Healthcare Limited,Care Establishment,2 - Operations - Learning Disability,LDP Hunts special needs,Respite Independent Sector
Cambridgeshire County Council,30-Mar-17,22865697-15121207,-4655,Brookdale Healthcare Limited,Care Establishment,2 - Operations - Learning Disability,LDP Huntingdonshire Locality - Care,Respite Independent Sector
Cambridgeshire County Council,30-Mar-17,22960729-15121233,-4655,Brookdale Healthcare Limited,Care Establishment,2 - Operations - Learning Disability,LDP Huntingdonshire Locality - Care,Respite Independent Sector
Cambridgeshire County Council,30-Mar-17,22840526-15121198,-4655,Brookdale Healthcare Limited,Care Establishment,2 - Operations - Learning Disability,LDP Hunts special needs,Respite Independent Sector
Cambridgeshire County Council,30-Mar-17,22865711-15121221,-4655,Brookdale Healthcare Limited,Care Establishment,2 - Operations - Learning Disability,LDP Hunts special needs,Respite Independent Sector
Cambridgeshire County Council,30-Mar-17,22840516-15121188,-4655,Brookdale Healthcare Limited,Care Establishment,2 - Operations - Learning Disability,LDP Hunts special needs,Respite Independent Sector
Cambridgeshire County Council,30-Mar-17,22865701-15121211,-4655,Brookdale Healthcare Limited,Care Establishment,2 - Operations - Learning Disability,LDP Hunts special needs,Respite Independent Sector
Cambridgeshire County Council,30-Mar-17,22865709-15121219,-4655,Brookdale Healthcare Limited,Care Establishment,2 - Operations - Learning Disability,LDP Hunts special needs,Respite Independent Sector
Cambridgeshire County Council,30-Mar-17,22865710-15121220,-4655,Brookdale Healthcare Limited,Care Establishment,2 - Operations - Learning Disability,LDP Huntingdonshire Locality - Care,Respite Independent Sector
Cambridgeshire County Council,30-Mar-17,22865712-15121222,-4655,Brookdale Healthcare Limited,Care Establishment,2 - Operations - Learning Disability,LDP Hunts special needs,Respite Independent Sector
Cambridgeshire County Council,30-Mar-17,22840514-15121186,-4655,Brookdale Healthcare Limited,Care Establishment,2 - Operations - Learning Disability,LDP Hunts special needs,Respite Independent Sector
Cambridgeshire County Council,30-Mar-17,22865702-15121212,-4655,Brookdale Healthcare Limited,Care Establishment,2 - Operations - Learning Disability,LDP Huntingdonshire Locality - Care,Respite Independent Sector
Cambridgeshire County Council,30-Mar-17,22960725-15121229,-4655,Brookdale Healthcare Limited,Care Establishment,2 - Operations - Learning Disability,LDP Hunts special needs,Respite Independent Sector
Cambridgeshire County Council,30-Mar-17,22840515-15121187,-4655,Brookdale Healthcare Limited,Care Establishment,2 - Operations - Learning Disability,LDP Huntingdonshire Locality - Care,Respite Independent Sector
Cambridgeshire County Council,30-Mar-17,22840531-15121203,-4655,Brookdale Healthcare Limited,Care Establishment,2 - Operations - Learning Disability,LDP Huntingdonshire Locality - Care,Respite Independent Sector
Cambridgeshire County Council,30-Mar-17,22960734-15121238,-4655,Brookdale Healthcare Limited,Care Establishment,2 - Operations - Learning Disability,LDP Huntingdonshire Locality - Care,Respite Independent Sector
Cambridgeshire County Council,30-Mar-17,22960741-15121245,-4655,Brookdale Healthcare Limited,Care Establishment,2 - Operations - Learning Disability,LDP Huntingdonshire Locality - Care,Respite Independent Sector
Cambridgeshire County Council,29-Mar-17,22935689-15058491,-4128,Fresh Start In Education,Care Establishment,S&C,Out of School Provision - Education and Settings,Agency Placements - In Cambs
Cambridgeshire County Council,27-Mar-17,22871278-15041083,-4001.24,British Telecommunications Plc,Company,Traffic Management & Road Safety,Signals Works,External Telephone - rental
Cambridgeshire County Council,02-Mar-17,22720142-14923618,-3849.43,Rheola Healthcare,Care Establishment,5 - Commissioning - Mental Health & Supporting People,OP Blocks - Care Placements,Residential Independent Sector
Cambridgeshire County Council,03-Mar-17,22240344-14930106,-3541.15,Public Analyst Scientific Services,Trade Supplier,Supporting Businesses and Communities,Trading Standards Service Delivery,Sample testing - food/drugs samples
Cambridgeshire County Council,02-Mar-17,22648269-14916043,-3485.71,Fitzwilliam Healthcare Ltd,Care Establishment,5 - Commissioning - Mental Health & Supporting People,OP Blocks - Care Placements,Residential Independent Sector
Cambridgeshire County Council,02-Mar-17,22714523-14902692,-3325,Brookdale Healthcare Limited,Care Establishment,2 - Operations - Learning Disability,LDP Hunts special needs,Respite Independent Sector
Cambridgeshire County Council,02-Mar-17,22645291-14902648,-3325,Brookdale Healthcare Limited,Care Establishment,2 - Operations - Learning Disability,LDP Hunts special needs,Respite Independent Sector
Cambridgeshire County Council,02-Mar-17,22584931-14902667,-3325,Brookdale Healthcare Limited,Care Establishment,2 - Operations - Learning Disability,LDP Huntingdonshire Locality - Care,Respite Independent Sector
Cambridgeshire County Council,09-Mar-17,22782868-14955283,-3325,Brookdale Healthcare Limited,Care Establishment,2 - Operations - Learning Disability,LDP Huntingdonshire Locality - Care,Respite Independent Sector
Cambridgeshire County Council,30-Mar-17,22960727-15121231,-3325,Brookdale Healthcare Limited,Care Establishment,2 - Operations - Learning Disability,LDP Huntingdonshire Locality - Care,Respite Independent Sector
Cambridgeshire County Council,30-Mar-17,22840523-15121195,-3325,Brookdale Healthcare Limited,Care Establishment,2 - Operations - Learning Disability,LDP Hunts special needs,Respite Independent Sector
Cambridgeshire County Council,30-Mar-17,22865707-15121217,-3325,Brookdale Healthcare Limited,Care Establishment,2 - Operations - Learning Disability,LDP Huntingdonshire Locality - Care,Respite Independent Sector
Cambridgeshire County Council,02-Mar-17,22714128-14923594,-3297.14,Rheola Healthcare,Care Establishment,5 - Commissioning - Mental Health & Supporting People,OP Blocks - Care Placements,Residential Independent Sector
Cambridgeshire County Council,27-Mar-17,22865474-15041580,-3260.27,The Foster Care Co-Operative Limited,Care Establishment,S&C,Placements - Social Care,Agency Placements - In Cambs
Cambridgeshire County Council,06-Mar-17,22657479-14933325,-3257.5,Fostering Solutions Ltd,Care Establishment,S&C,Placements - Social Care,Agency Placements - Out County
Cambridgeshire County Council,02-Mar-17,22644382-14923575,-2967.43,Rheola Healthcare,Care Establishment,5 - Commissioning - Mental Health & Supporting People,OP Blocks - Care Placements,Residential Independent Sector
Cambridgeshire County Council,02-Mar-17,22720062-14923623,-2708.86,Rheola Healthcare,Care Establishment,5 - Commissioning - Mental Health & Supporting People,OP Blocks - Care Placements,Residential Independent Sector
Cambridgeshire County Council,30-Mar-17,22950866-15100306,-2659.63,Kisimul School,Care Establishment,3 - Operations - Countywide Services,LDP Young Adults - Care,Residential Independent Sector
Cambridgeshire County Council,30-Mar-17,22950868-15100308,-2659.63,Kisimul School,Care Establishment,3 - Operations - Countywide Services,LDP Young Adults - Care,Residential Independent Sector
Cambridgeshire County Council,30-Mar-17,22950867-15100307,-2659.63,Kisimul School,Care Establishment,3 - Operations - Countywide Services,LDP Young Adults - Care,Residential Independent Sector
Cambridgeshire County Council,15-Mar-17,22671009-14986459,-2545.72,Chs Group,Care Establishment,S&C,Placements - Social Care,Agency Placements - In Cambs
Cambridgeshire County Council,30-Mar-17,22956127-15110260,-2388.96,Affinity Trust,Care Establishment,2 - Operations - Learning Disability,LDP Fens - Special Needs,Supported Living
Cambridgeshire County Council,30-Mar-17,22949547-15110199,-2388.96,Affinity Trust,Care Establishment,2 - Operations - Learning Disability,LDP Fens - Special Needs,Supported Living
Cambridgeshire County Council,30-Mar-17,22949548-15110200,-2388.96,Affinity Trust,Care Establishment,2 - Operations - Learning Disability,LDP Fens - Special Needs,Supported Living
Cambridgeshire County Council,30-Mar-17,22956135-15110266,-2388.96,Affinity Trust,Care Establishment,2 - Operations - Learning Disability,LDP Fens - Special Needs,Supported Living
Cambridgeshire County Council,30-Mar-17,22956136-15110267,-2388.96,Affinity Trust,Care Establishment,2 - Operations - Learning Disability,LDP Fens - Special Needs,Supported Living
Cambridgeshire County Council,30-Mar-17,22949525-15110179,-2388.96,Affinity Trust,Care Establishment,2 - Operations - Learning Disability,LDP Fens - Special Needs,Supported Living
Cambridgeshire County Council,30-Mar-17,22949526-15110180,-2388.96,Affinity Trust,Care Establishment,2 - Operations - Learning Disability,LDP Fens - Special Needs,Supported Living
Cambridgeshire County Council,30-Mar-17,22949539-15110192,-2388.96,Affinity Trust,Care Establishment,2 - Operations - Learning Disability,LDP Fens - Special Needs,Supported Living
Cambridgeshire County Council,30-Mar-17,22949534-15110187,-2388.96,Affinity Trust,Care Establishment,2 - Operations - Learning Disability,LDP Fens - Special Needs,Supported Living
Cambridgeshire County Council,30-Mar-17,22949540-15110193,-2388.96,Affinity Trust,Care Establishment,2 - Operations - Learning Disability,LDP Fens - Special Needs,Supported Living
Cambridgeshire County Council,30-Mar-17,22949541-15110194,-2388.96,Affinity Trust,Care Establishment,2 - Operations - Learning Disability,LDP Fens - Special Needs,Supported Living
Cambridgeshire County Council,30-Mar-17,22956123-15110256,-2388.96,Affinity Trust,Care Establishment,2 - Operations - Learning Disability,LDP Fens - Special Needs,Supported Living
Cambridgeshire County Council,30-Mar-17,22956132-15110264,-2388.96,Affinity Trust,Care Establishment,2 - Operations - Learning Disability,LDP Fens - Special Needs,Supported Living
Cambridgeshire County Council,30-Mar-17,22949527-15110181,-2388.96,Affinity Trust,Care Establishment,2 - Operations - Learning Disability,LDP Fens - Special Needs,Supported Living
Cambridgeshire County Council,30-Mar-17,22949528-15110182,-2388.96,Affinity Trust,Care Establishment,2 - Operations - Learning Disability,LDP Fens - Special Needs,Supported Living
Cambridgeshire County Council,30-Mar-17,22956124-15110257,-2388.96,Affinity Trust,Care Establishment,2 - Operations - Learning Disability,LDP Fens - Special Needs,Supported Living
Cambridgeshire County Council,30-Mar-17,22956126-15110259,-2388.96,Affinity Trust,Care Establishment,2 - Operations - Learning Disability,LDP Fens - Special Needs,Supported Living
Cambridgeshire County Council,30-Mar-17,22956130-15110262,-2388.96,Affinity Trust,Care Establishment,2 - Operations - Learning Disability,LDP Fens - Special Needs,Supported Living
Cambridgeshire County Council,30-Mar-17,22956131-15110263,-2388.96,Affinity Trust,Care Establishment,2 - Operations - Learning Disability,LDP Fens - Special Needs,Supported Living
Cambridgeshire County Council,30-Mar-17,22949529-15110183,-2388.96,Affinity Trust,Care Establishment,2 - Operations - Learning Disability,LDP Fens - Special Needs,Supported Living
Cambridgeshire County Council,30-Mar-17,22949537-15110190,-2388.96,Affinity Trust,Care Establishment,2 - Operations - Learning Disability,LDP Fens - Special Needs,Supported Living
Cambridgeshire County Council,30-Mar-17,22949542-15110195,-2388.96,Affinity Trust,Care Establishment,2 - Operations - Learning Disability,LDP Fens - Special Needs,Supported Living
Cambridgeshire County Council,30-Mar-17,22956129-15110261,-2388.96,Affinity Trust,Care Establishment,2 - Operations - Learning Disability,LDP Fens - Special Needs,Supported Living
Cambridgeshire County Council,30-Mar-17,22949535-15110188,-2388.96,Affinity Trust,Care Establishment,2 - Operations - Learning Disability,LDP Fens - Special Needs,Supported Living
Cambridgeshire County Council,30-Mar-17,22949536-15110189,-2388.96,Affinity Trust,Care Establishment,2 - Operations - Learning Disability,LDP Fens - Special Needs,Supported Living
Cambridgeshire County Council,30-Mar-17,22949538-15110191,-2388.96,Affinity Trust,Care Establishment,2 - Operations - Learning Disability,LDP Fens - Special Needs,Supported Living
Cambridgeshire County Council,30-Mar-17,22949543-15110196,-2388.96,Affinity Trust,Care Establishment,2 - Operations - Learning Disability,LDP Fens - Special Needs,Supported Living
Cambridgeshire County Council,30-Mar-17,22949544-15110197,-2388.96,Affinity Trust,Care Establishment,2 - Operations - Learning Disability,LDP Fens - Special Needs,Supported Living
Cambridgeshire County Council,30-Mar-17,22956125-15110258,-2388.96,Affinity Trust,Care Establishment,2 - Operations - Learning Disability,LDP Fens - Special Needs,Supported Living
Cambridgeshire County Council,30-Mar-17,22956137-15110268,-2388.96,Affinity Trust,Care Establishment,2 - Operations - Learning Disability,LDP Fens - Special Needs,Supported Living
Cambridgeshire County Council,30-Mar-17,22949531-15110184,-2388.96,Affinity Trust,Care Establishment,2 - Operations - Learning Disability,LDP Fens - Special Needs,Supported Living
Cambridgeshire County Council,30-Mar-17,22949533-15110186,-2388.96,Affinity Trust,Care Establishment,2 - Operations - Learning Disability,LDP Fens - Special Needs,Supported Living
Cambridgeshire County Council,30-Mar-17,22949545-15110198,-2388.96,Affinity Trust,Care Establishment,2 - Operations - Learning Disability,LDP Fens - Special Needs,Supported Living
Cambridgeshire County Council,30-Mar-17,22956133-15110265,-2388.96,Affinity Trust,Care Establishment,2 - Operations - Learning Disability,LDP Fens - Special Needs,Supported Living
Cambridgeshire County Council,16-Mar-17,22842322-14991763,-2363.05,Consultus Care And Nursing,Care Establishment,2 - Operations - Learning Disability,LDP Huntingdonshire Locality - Care,Respite Independent Sector
Cambridgeshire County Council,16-Mar-17,22842365-14991803,-2360.34,Consultus Care And Nursing,Care Establishment,2 - Operations - Learning Disability,LDP Huntingdonshire Locality - Care,Respite Independent Sector
Cambridgeshire County Council,16-Mar-17,22843852-14991844,-2360.34,Consultus Care And Nursing,Care Establishment,2 - Operations - Learning Disability,LDP Huntingdonshire Locality - Care,Respite Independent Sector
Cambridgeshire County Council,16-Mar-17,22843866-14991856,-2360.34,Consultus Care And Nursing,Care Establishment,2 - Operations - Learning Disability,LDP Huntingdonshire Locality - Care,Respite Independent Sector
Cambridgeshire County Council,16-Mar-17,22842324-14991765,-2360.34,Consultus Care And Nursing,Care Establishment,2 - Operations - Learning Disability,LDP Huntingdonshire Locality - Care,Respite Independent Sector
Cambridgeshire County Council,16-Mar-17,22842339-14991779,-2360.34,Consultus Care And Nursing,Care Establishment,2 - Operations - Learning Disability,LDP Huntingdonshire Locality - Care,Respite Independent Sector
Cambridgeshire County Council,16-Mar-17,22842343-14991782,-2360.34,Consultus Care And Nursing,Care Establishment,2 - Operations - Learning Disability,LDP Huntingdonshire Locality - Care,Respite Independent Sector
Cambridgeshire County Council,16-Mar-17,22842346-14991785,-2360.34,Consultus Care And Nursing,Care Establishment,2 - Operations - Learning Disability,LDP Huntingdonshire Locality - Care,Respite Independent Sector
Cambridgeshire County Council,16-Mar-17,22842362-14991800,-2360.34,Consultus Care And Nursing,Care Establishment,2 - Operations - Learning Disability,LDP Huntingdonshire Locality - Care,Respite Independent Sector
Cambridgeshire County Council,16-Mar-17,22842363-14991801,-2360.34,Consultus Care And Nursing,Care Establishment,2 - Operations - Learning Disability,LDP Huntingdonshire Locality - Care,Respite Independent Sector
Cambridgeshire County Council,16-Mar-17,22843831-14991827,-2360.34,Consultus Care And Nursing,Care Establishment,2 - Operations - Learning Disability,LDP Huntingdonshire Locality - Care,Respite Independent Sector
Cambridgeshire County Council,16-Mar-17,22842336-14991776,-2360.34,Consultus Care And Nursing,Care Establishment,2 - Operations - Learning Disability,LDP Huntingdonshire Locality - Care,Respite Independent Sector
Cambridgeshire County Council,16-Mar-17,22842345-14991784,-2360.34,Consultus Care And Nursing,Care Establishment,2 - Operations - Learning Disability,LDP Huntingdonshire Locality - Care,Respite Independent Sector
Cambridgeshire County Council,16-Mar-17,22842350-14991789,-2360.34,Consultus Care And Nursing,Care Establishment,2 - Operations - Learning Disability,LDP Huntingdonshire Locality - Care,Respite Independent Sector
Cambridgeshire County Council,16-Mar-17,22842367-14991804,-2360.34,Consultus Care And Nursing,Care Establishment,2 - Operations - Learning Disability,LDP Huntingdonshire Locality - Care,Respite Independent Sector
Cambridgeshire County Council,16-Mar-17,22842368-14991805,-2360.34,Consultus Care And Nursing,Care Establishment,2 - Operations - Learning Disability,LDP Huntingdonshire Locality - Care,Respite Independent Sector
Cambridgeshire County Council,16-Mar-17,22842376-14991812,-2360.34,Consultus Care And Nursing,Care Establishment,2 - Operations - Learning Disability,LDP Huntingdonshire Locality - Care,Respite Independent Sector
Cambridgeshire County Council,16-Mar-17,22843838-14991834,-2360.34,Consultus Care And Nursing,Care Establishment,2 - Operations - Learning Disability,LDP Huntingdonshire Locality - Care,Respite Independent Sector
Cambridgeshire County Council,16-Mar-17,22842326-14991767,-2360.34,Consultus Care And Nursing,Care Establishment,2 - Operations - Learning Disability,LDP Huntingdonshire Locality - Care,Respite Independent Sector
Cambridgeshire County Council,16-Mar-17,22842329-14991770,-2360.34,Consultus Care And Nursing,Care Establishment,2 - Operations - Learning Disability,LDP Huntingdonshire Locality - Care,Respite Independent Sector
Cambridgeshire County Council,16-Mar-17,22842364-14991802,-2360.34,Consultus Care And Nursing,Care Establishment,2 - Operations - Learning Disability,LDP Huntingdonshire Locality - Care,Respite Independent Sector
Cambridgeshire County Council,16-Mar-17,22843835-14991831,-2360.34,Consultus Care And Nursing,Care Establishment,2 - Operations - Learning Disability,LDP Huntingdonshire Locality - Care,Respite Independent Sector
Cambridgeshire County Council,16-Mar-17,22843836-14991832,-2360.34,Consultus Care And Nursing,Care Establishment,2 - Operations - Learning Disability,LDP Huntingdonshire Locality - Care,Respite Independent Sector
Cambridgeshire County Council,16-Mar-17,22843850-14991842,-2360.34,Consultus Care And Nursing,Care Establishment,2 - Operations - Learning Disability,LDP Huntingdonshire Locality - Care,Respite Independent Sector
Cambridgeshire County Council,16-Mar-17,22843865-14991855,-2360.34,Consultus Care And Nursing,Care Establishment,2 - Operations - Learning Disability,LDP Huntingdonshire Locality - Care,Respite Independent Sector
Cambridgeshire County Council,16-Mar-17,22842331-14991772,-2360.34,Consultus Care And Nursing,Care Establishment,2 - Operations - Learning Disability,LDP Huntingdonshire Locality - Care,Respite Independent Sector
Cambridgeshire County Council,16-Mar-17,22842356-14991794,-2360.34,Consultus Care And Nursing,Care Establishment,2 - Operations - Learning Disability,LDP Huntingdonshire Locality - Care,Respite Independent Sector
Cambridgeshire County Council,16-Mar-17,22842369-14991806,-2360.34,Consultus Care And Nursing,Care Establishment,2 - Operations - Learning Disability,LDP Huntingdonshire Locality - Care,Respite Independent Sector
Cambridgeshire County Council,16-Mar-17,22842379-14991815,-2360.34,Consultus Care And Nursing,Care Establishment,2 - Operations - Learning Disability,LDP Huntingdonshire Locality - Care,Respite Independent Sector
Cambridgeshire County Council,16-Mar-17,22843825-14991822,-2360.34,Consultus Care And Nursing,Care Establishment,2 - Operations - Learning Disability,LDP Huntingdonshire Locality - Care,Respite Independent Sector
Cambridgeshire County Council,16-Mar-17,22843826-14991823,-2360.34,Consultus Care And Nursing,Care Establishment,2 - Operations - Learning Disability,LDP Huntingdonshire Locality - Care,Respite Independent Sector
Cambridgeshire County Council,16-Mar-17,22843834-14991830,-2360.34,Consultus Care And Nursing,Care Establishment,2 - Operations - Learning Disability,LDP Huntingdonshire Locality - Care,Respite Independent Sector
Cambridgeshire County Council,16-Mar-17,22842354-14991792,-2360.34,Consultus Care And Nursing,Care Establishment,2 - Operations - Learning Disability,LDP Huntingdonshire Locality - Care,Respite Independent Sector
Cambridgeshire County Council,16-Mar-17,22842355-14991793,-2360.34,Consultus Care And Nursing,Care Establishment,2 - Operations - Learning Disability,LDP Huntingdonshire Locality - Care,Respite Independent Sector
Cambridgeshire County Council,16-Mar-17,22842370-14991807,-2360.34,Consultus Care And Nursing,Care Establishment,2 - Operations - Learning Disability,LDP Huntingdonshire Locality - Care,Respite Independent Sector
Cambridgeshire County Council,16-Mar-17,22842380-14991816,-2360.34,Consultus Care And Nursing,Care Establishment,2 - Operations - Learning Disability,LDP Huntingdonshire Locality - Care,Respite Independent Sector
Cambridgeshire County Council,16-Mar-17,22843829-14991826,-2360.34,Consultus Care And Nursing,Care Establishment,2 - Operations - Learning Disability,LDP Huntingdonshire Locality - Care,Respite Independent Sector
Cambridgeshire County Council,16-Mar-17,22843860-14991850,-2360.34,Consultus Care And Nursing,Care Establishment,2 - Operations - Learning Disability,LDP Huntingdonshire Locality - Care,Respite Independent Sector
Cambridgeshire County Council,16-Mar-17,22843863-14991853,-2360.34,Consultus Care And Nursing,Care Establishment,2 - Operations - Learning Disability,LDP Huntingdonshire Locality - Care,Respite Independent Sector
Cambridgeshire County Council,16-Mar-17,22842333-14991773,-2360.34,Consultus Care And Nursing,Care Establishment,2 - Operations - Learning Disability,LDP Huntingdonshire Locality - Care,Respite Independent Sector
Cambridgeshire County Council,16-Mar-17,22842349-14991788,-2360.34,Consultus Care And Nursing,Care Establishment,2 - Operations - Learning Disability,LDP Huntingdonshire Locality - Care,Respite Independent Sector
Cambridgeshire County Council,16-Mar-17,22842371-14991808,-2360.34,Consultus Care And Nursing,Care Establishment,2 - Operations - Learning Disability,LDP Huntingdonshire Locality - Care,Respite Independent Sector
Cambridgeshire County Council,16-Mar-17,22843849-14991841,-2360.34,Consultus Care And Nursing,Care Establishment,2 - Operations - Learning Disability,LDP Huntingdonshire Locality - Care,Respite Independent Sector
Cambridgeshire County Council,16-Mar-17,22842337-14991777,-2360.34,Consultus Care And Nursing,Care Establishment,2 - Operations - Learning Disability,LDP Huntingdonshire Locality - Care,Respite Independent Sector
Cambridgeshire County Council,16-Mar-17,22842361-14991799,-2360.34,Consultus Care And Nursing,Care Establishment,2 - Operations - Learning Disability,LDP Huntingdonshire Locality - Care,Respite Independent Sector
Cambridgeshire County Council,16-Mar-17,22843859-14991849,-2360.34,Consultus Care And Nursing,Care Establishment,2 - Operations - Learning Disability,LDP Huntingdonshire Locality - Care,Respite Independent Sector
Cambridgeshire County Council,16-Mar-17,22842348-14991787,-2360.34,Consultus Care And Nursing,Care Establishment,2 - Operations - Learning Disability,LDP Huntingdonshire Locality - Care,Respite Independent Sector
Cambridgeshire County Council,02-Mar-17,22647010-14902182,-2337.29,Dimensions (Uk) Ltd,Care Establishment,2 - Operations - Learning Disability,LDP Cambs City - Special Needs,Supported Living
Cambridgeshire County Council,02-Mar-17,22582673-14902227,-2337.29,Dimensions (Uk) Ltd,Care Establishment,2 - Operations - Learning Disability,LDP South Cambs - Special Needs,Supported Living
Cambridgeshire County Council,02-Mar-17,22582685-14902239,-2337.29,Dimensions (Uk) Ltd,Care Establishment,2 - Operations - Learning Disability,LDP Cambs City - Special Needs,Supported Living
Cambridgeshire County Council,02-Mar-17,22535653-14902255,-2337.29,Dimensions (Uk) Ltd,Care Establishment,2 - Operations - Learning Disability,LDP South Cambs - Special Needs,Supported Living
Cambridgeshire County Council,02-Mar-17,22723859-14902321,-2337.29,Dimensions (Uk) Ltd,Care Establishment,2 - Operations - Learning Disability,LDP Cambs City - Special Needs,Supported Living
Cambridgeshire County Council,02-Mar-17,22535658-14902260,-2337.29,Dimensions (Uk) Ltd,Care Establishment,2 - Operations - Learning Disability,LDP South Cambs - Special Needs,Supported Living
Cambridgeshire County Council,02-Mar-17,22723870-14902332,-2337.29,Dimensions (Uk) Ltd,Care Establishment,2 - Operations - Learning Disability,LDP Cambs City - Special Needs,Supported Living
Cambridgeshire County Council,02-Mar-17,22646996-14902186,-2337.29,Dimensions (Uk) Ltd,Care Establishment,2 - Operations - Learning Disability,LDP Cambs City - Special Needs,Supported Living
Cambridgeshire County Council,02-Mar-17,22646998-14902188,-2337.29,Dimensions (Uk) Ltd,Care Establishment,2 - Operations - Learning Disability,LDP Cambs City - Special Needs,Supported Living
Cambridgeshire County Council,02-Mar-17,22582678-14902232,-2337.29,Dimensions (Uk) Ltd,Care Establishment,2 - Operations - Learning Disability,LDP Cambs City - Special Needs,Supported Living
Cambridgeshire County Council,02-Mar-17,22723852-14902143,-2337.29,Dimensions (Uk) Ltd,Care Establishment,2 - Operations - Learning Disability,LDP Cambs City - Special Needs,Supported Living
Cambridgeshire County Council,02-Mar-17,22582675-14902229,-2337.29,Dimensions (Uk) Ltd,Care Establishment,2 - Operations - Learning Disability,LDP Cambs City - Special Needs,Supported Living
Cambridgeshire County Council,02-Mar-17,22582686-14902240,-2337.29,Dimensions (Uk) Ltd,Care Establishment,2 - Operations - Learning Disability,LDP Cambs City - Special Needs,Supported Living
Cambridgeshire County Council,02-Mar-17,22535650-14902252,-2337.29,Dimensions (Uk) Ltd,Care Establishment,2 - Operations - Learning Disability,LDP Cambs City - Special Needs,Supported Living
Cambridgeshire County Council,02-Mar-17,22723861-14902323,-2337.29,Dimensions (Uk) Ltd,Care Establishment,2 - Operations - Learning Disability,LDP South Cambs - Special Needs,Supported Living
Cambridgeshire County Council,02-Mar-17,22535663-14902265,-2337.29,Dimensions (Uk) Ltd,Care Establishment,2 - Operations - Learning Disability,LDP South Cambs - Special Needs,Supported Living
Cambridgeshire County Council,02-Mar-17,22723855-14902317,-2337.29,Dimensions (Uk) Ltd,Care Establishment,2 - Operations - Learning Disability,LDP Cambs City - Special Needs,Supported Living
Cambridgeshire County Council,02-Mar-17,22723864-14902326,-2337.29,Dimensions (Uk) Ltd,Care Establishment,2 - Operations - Learning Disability,LDP Cambs City - Special Needs,Supported Living
Cambridgeshire County Council,02-Mar-17,22647005-14902177,-2337.29,Dimensions (Uk) Ltd,Care Establishment,2 - Operations - Learning Disability,LDP South Cambs - Special Needs,Supported Living
Cambridgeshire County Council,02-Mar-17,22646999-14902189,-2337.29,Dimensions (Uk) Ltd,Care Establishment,2 - Operations - Learning Disability,LDP South Cambs - Special Needs,Supported Living
Cambridgeshire County Council,02-Mar-17,22582681-14902235,-2337.29,Dimensions (Uk) Ltd,Care Establishment,2 - Operations - Learning Disability,LDP South Cambs - Special Needs,Supported Living
Cambridgeshire County Council,02-Mar-17,22535649-14902251,-2337.29,Dimensions (Uk) Ltd,Care Establishment,2 - Operations - Learning Disability,LDP Cambs City - Special Needs,Supported Living
Cambridgeshire County Council,02-Mar-17,22646994-14902184,-2337.29,Dimensions (Uk) Ltd,Care Establishment,2 - Operations - Learning Disability,LDP Cambs City - Special Needs,Supported Living
Cambridgeshire County Council,02-Mar-17,22582684-14902238,-2337.29,Dimensions (Uk) Ltd,Care Establishment,2 - Operations - Learning Disability,LDP South Cambs - Special Needs,Supported Living
Cambridgeshire County Council,02-Mar-17,22535655-14902257,-2337.29,Dimensions (Uk) Ltd,Care Establishment,2 - Operations - Learning Disability,LDP Cambs City - Special Needs,Supported Living
Cambridgeshire County Council,02-Mar-17,22723871-14902333,-2337.29,Dimensions (Uk) Ltd,Care Establishment,2 - Operations - Learning Disability,LDP Cambs City - Special Needs,Supported Living
Cambridgeshire County Council,02-Mar-17,22647003-14902175,-2337.29,Dimensions (Uk) Ltd,Care Establishment,2 - Operations - Learning Disability,LDP Cambs City - Special Needs,Supported Living
Cambridgeshire County Council,02-Mar-17,22647006-14902178,-2337.29,Dimensions (Uk) Ltd,Care Establishment,2 - Operations - Learning Disability,LDP Cambs City - Special Needs,Supported Living
Cambridgeshire County Council,02-Mar-17,22582672-14902226,-2337.29,Dimensions (Uk) Ltd,Care Establishment,2 - Operations - Learning Disability,LDP South Cambs - Special Needs,Supported Living
Cambridgeshire County Council,02-Mar-17,22536551-14902250,-2337.29,Dimensions (Uk) Ltd,Care Establishment,2 - Operations - Learning Disability,LDP Cambs City - Special Needs,Supported Living
Cambridgeshire County Council,02-Mar-17,22535659-14902261,-2337.29,Dimensions (Uk) Ltd,Care Establishment,2 - Operations - Learning Disability,LDP South Cambs - Special Needs,Supported Living
Cambridgeshire County Council,02-Mar-17,22723860-14902322,-2337.29,Dimensions (Uk) Ltd,Care Establishment,2 - Operations - Learning Disability,LDP South Cambs - Special Needs,Supported Living
Cambridgeshire County Council,30-Mar-17,22869141-15120612,-2337.29,Dimensions (Uk) Ltd,Care Establishment,2 - Operations - Learning Disability,LDP Cambs City - Special Needs,Supported Living
Cambridgeshire County Council,30-Mar-17,22948938-15120680,-2337.29,Dimensions (Uk) Ltd,Care Establishment,2 - Operations - Learning Disability,LDP South Cambs - Special Needs,Supported Living
Cambridgeshire County Council,30-Mar-17,22784030-15120565,-2337.29,Dimensions (Uk) Ltd,Care Establishment,2 - Operations - Learning Disability,LDP Cambs City - Special Needs,Supported Living
Cambridgeshire County Council,30-Mar-17,22784031-15120566,-2337.29,Dimensions (Uk) Ltd,Care Establishment,2 - Operations - Learning Disability,LDP Cambs City - Special Needs,Supported Living
Cambridgeshire County Council,30-Mar-17,22840017-15120598,-2337.29,Dimensions (Uk) Ltd,Care Establishment,2 - Operations - Learning Disability,LDP South Cambs - Special Needs,Supported Living
Cambridgeshire County Council,30-Mar-17,22869136-15120607,-2337.29,Dimensions (Uk) Ltd,Care Establishment,2 - Operations - Learning Disability,LDP South Cambs - Special Needs,Supported Living
Cambridgeshire County Council,30-Mar-17,22948935-15120677,-2337.29,Dimensions (Uk) Ltd,Care Establishment,2 - Operations - Learning Disability,LDP Cambs City - Special Needs,Supported Living
Cambridgeshire County Council,30-Mar-17,22948941-15120683,-2337.29,Dimensions (Uk) Ltd,Care Establishment,2 - Operations - Learning Disability,LDP South Cambs - Special Needs,Supported Living
Cambridgeshire County Council,30-Mar-17,22784041-15120576,-2337.29,Dimensions (Uk) Ltd,Care Establishment,2 - Operations - Learning Disability,LDP South Cambs - Special Needs,Supported Living
Cambridgeshire County Council,30-Mar-17,22784044-15120579,-2337.29,Dimensions (Uk) Ltd,Care Establishment,2 - Operations - Learning Disability,LDP Cambs City - Special Needs,Supported Living
Cambridgeshire County Council,30-Mar-17,22840013-15120594,-2337.29,Dimensions (Uk) Ltd,Care Establishment,2 - Operations - Learning Disability,LDP Cambs City - Special Needs,Supported Living
Cambridgeshire County Council,30-Mar-17,22840015-15120596,-2337.29,Dimensions (Uk) Ltd,Care Establishment,2 - Operations - Learning Disability,LDP Cambs City - Special Needs,Supported Living
Cambridgeshire County Council,30-Mar-17,22840016-15120597,-2337.29,Dimensions (Uk) Ltd,Care Establishment,2 - Operations - Learning Disability,LDP Cambs City - Special Needs,Supported Living
Cambridgeshire County Council,30-Mar-17,22869132-15120603,-2337.29,Dimensions (Uk) Ltd,Care Establishment,2 - Operations - Learning Disability,LDP Cambs City - Special Needs,Supported Living
Cambridgeshire County Council,30-Mar-17,22941962-15120636,-2337.29,Dimensions (Uk) Ltd,Care Establishment,2 - Operations - Learning Disability,LDP Cambs City - Special Needs,Supported Living
Cambridgeshire County Council,30-Mar-17,22948933-15120675,-2337.29,Dimensions (Uk) Ltd,Care Establishment,2 - Operations - Learning Disability,LDP South Cambs - Special Needs,Supported Living
Cambridgeshire County Council,30-Mar-17,22840002-15120583,-2337.29,Dimensions (Uk) Ltd,Care Establishment,2 - Operations - Learning Disability,LDP South Cambs - Special Needs,Supported Living
Cambridgeshire County Council,30-Mar-17,22840006-15120587,-2337.29,Dimensions (Uk) Ltd,Care Establishment,2 - Operations - Learning Disability,LDP Cambs City - Special Needs,Supported Living
Cambridgeshire County Council,30-Mar-17,22784036-15120571,-2337.29,Dimensions (Uk) Ltd,Care Establishment,2 - Operations - Learning Disability,LDP Cambs City - Special Needs,Supported Living
Cambridgeshire County Council,30-Mar-17,22869133-15120604,-2337.29,Dimensions (Uk) Ltd,Care Establishment,2 - Operations - Learning Disability,LDP South Cambs - Special Needs,Supported Living
Cambridgeshire County Council,30-Mar-17,22869140-15120611,-2337.29,Dimensions (Uk) Ltd,Care Establishment,2 - Operations - Learning Disability,LDP South Cambs - Special Needs,Supported Living
Cambridgeshire County Council,30-Mar-17,22784038-15120573,-2337.29,Dimensions (Uk) Ltd,Care Establishment,2 - Operations - Learning Disability,LDP South Cambs - Special Needs,Supported Living
Cambridgeshire County Council,30-Mar-17,22869129-15120600,-2337.29,Dimensions (Uk) Ltd,Care Establishment,2 - Operations - Learning Disability,LDP Cambs City - Special Needs,Supported Living
Cambridgeshire County Council,30-Mar-17,22869130-15120601,-2337.29,Dimensions (Uk) Ltd,Care Establishment,2 - Operations - Learning Disability,LDP South Cambs - Special Needs,Supported Living
Cambridgeshire County Council,30-Mar-17,22869131-15120602,-2337.29,Dimensions (Uk) Ltd,Care Establishment,2 - Operations - Learning Disability,LDP South Cambs - Special Needs,Supported Living
Cambridgeshire County Council,30-Mar-17,22948939-15120681,-2337.29,Dimensions (Uk) Ltd,Care Establishment,2 - Operations - Learning Disability,LDP South Cambs - Special Needs,Supported Living
Cambridgeshire County Council,30-Mar-17,22948940-15120682,-2337.29,Dimensions (Uk) Ltd,Care Establishment,2 - Operations - Learning Disability,LDP Cambs City - Special Needs,Supported Living
Cambridgeshire County Council,30-Mar-17,22784042-15120577,-2337.29,Dimensions (Uk) Ltd,Care Establishment,2 - Operations - Learning Disability,LDP Cambs City - Special Needs,Supported Living
Cambridgeshire County Council,30-Mar-17,22840001-15120582,-2337.29,Dimensions (Uk) Ltd,Care Establishment,2 - Operations - Learning Disability,LDP South Cambs - Special Needs,Supported Living
Cambridgeshire County Council,30-Mar-17,22840014-15120595,-2337.29,Dimensions (Uk) Ltd,Care Establishment,2 - Operations - Learning Disability,LDP South Cambs - Special Needs,Supported Living
Cambridgeshire County Council,30-Mar-17,22948937-15120679,-2337.29,Dimensions (Uk) Ltd,Care Establishment,2 - Operations - Learning Disability,LDP Cambs City - Special Needs,Supported Living
Cambridgeshire County Council,30-Mar-17,22784046-15120581,-2337.29,Dimensions (Uk) Ltd,Care Establishment,2 - Operations - Learning Disability,LDP South Cambs - Special Needs,Supported Living
Cambridgeshire County Council,03-Mar-17,22662710-14930147,-2325.21,Mencap,Care Establishment,4 - Commissioning - Mental Health & Supporting People,E Cambs & Fenland Mental Health Team,Residential Independent Sector
Cambridgeshire County Council,30-Mar-17,22949532-15110185,-2047.68,Affinity Trust,Care Establishment,2 - Operations - Learning Disability,LDP Fens - Special Needs,Supported Living
Cambridgeshire County Council,16-Mar-17,22411470-14993336,-1995,Gretton Homes,Care Establishment,2 - Operations - Learning Disability,LDP E Cambs Special Needs,Residential Independent Sector
Cambridgeshire County Council,16-Mar-17,22411482-14993264,-1995,Gretton Homes,Care Establishment,2 - Operations - Learning Disability,LDP E Cambs Special Needs,Residential Independent Sector
Cambridgeshire County Council,16-Mar-17,22410468-14993306,-1995,Gretton Homes,Care Establishment,2 - Operations - Learning Disability,LDP E Cambs Special Needs,Residential Independent Sector
Cambridgeshire County Council,16-Mar-17,22410473-14993311,-1995,Gretton Homes,Care Establishment,2 - Operations - Learning Disability,LDP E Cambs Special Needs,Residential Independent Sector
Cambridgeshire County Council,16-Mar-17,22410475-14993313,-1995,Gretton Homes,Care Establishment,2 - Operations - Learning Disability,LDP E Cambs Special Needs,Residential Independent Sector
Cambridgeshire County Council,16-Mar-17,22410476-14993314,-1995,Gretton Homes,Care Establishment,2 - Operations - Learning Disability,LDP E Cambs Special Needs,Residential Independent Sector
Cambridgeshire County Council,16-Mar-17,22410490-14993327,-1995,Gretton Homes,Care Establishment,2 - Operations - Learning Disability,LDP E Cambs Special Needs,Residential Independent Sector
Cambridgeshire County Council,16-Mar-17,22411469-14993335,-1995,Gretton Homes,Care Establishment,2 - Operations - Learning Disability,LDP E Cambs Special Needs,Residential Independent Sector
Cambridgeshire County Council,16-Mar-17,22410460-14993298,-1995,Gretton Homes,Care Establishment,2 - Operations - Learning Disability,LDP E Cambs Special Needs,Residential Independent Sector
Cambridgeshire County Council,16-Mar-17,22410472-14993310,-1995,Gretton Homes,Care Establishment,2 - Operations - Learning Disability,LDP E Cambs Special Needs,Residential Independent Sector
Cambridgeshire County Council,16-Mar-17,22410477-14993315,-1995,Gretton Homes,Care Establishment,2 - Operations - Learning Disability,LDP E Cambs Special Needs,Residential Independent Sector
Cambridgeshire County Council,16-Mar-17,22410449-14993287,-1995,Gretton Homes,Care Establishment,2 - Operations - Learning Disability,LDP E Cambs Special Needs,Residential Independent Sector
Cambridgeshire County Council,16-Mar-17,22410452-14993290,-1995,Gretton Homes,Care Establishment,2 - Operations - Learning Disability,LDP E Cambs Special Needs,Residential Independent Sector
Cambridgeshire County Council,16-Mar-17,22410453-14993291,-1995,Gretton Homes,Care Establishment,2 - Operations - Learning Disability,LDP E Cambs Special Needs,Residential Independent Sector
Cambridgeshire County Council,16-Mar-17,22410454-14993292,-1995,Gretton Homes,Care Establishment,2 - Operations - Learning Disability,LDP E Cambs Special Needs,Residential Independent Sector
Cambridgeshire County Council,16-Mar-17,22410456-14993294,-1995,Gretton Homes,Care Establishment,2 - Operations - Learning Disability,LDP E Cambs Special Needs,Residential Independent Sector
Cambridgeshire County Council,16-Mar-17,22410458-14993296,-1995,Gretton Homes,Care Establishment,2 - Operations - Learning Disability,LDP E Cambs Special Needs,Residential Independent Sector
Cambridgeshire County Council,16-Mar-17,22410467-14993305,-1995,Gretton Homes,Care Establishment,2 - Operations - Learning Disability,LDP E Cambs Special Needs,Residential Independent Sector
Cambridgeshire County Council,16-Mar-17,22410474-14993312,-1995,Gretton Homes,Care Establishment,2 - Operations - Learning Disability,LDP E Cambs Special Needs,Residential Independent Sector
Cambridgeshire County Council,16-Mar-17,22410481-14993318,-1995,Gretton Homes,Care Establishment,2 - Operations - Learning Disability,LDP E Cambs Special Needs,Residential Independent Sector
Cambridgeshire County Council,16-Mar-17,22410493-14993330,-1995,Gretton Homes,Care Establishment,2 - Operations - Learning Disability,LDP E Cambs Special Needs,Residential Independent Sector
Cambridgeshire County Council,16-Mar-17,22411480-14993262,-1995,Gretton Homes,Care Establishment,2 - Operations - Learning Disability,LDP E Cambs Special Needs,Residential Independent Sector
Cambridgeshire County Council,16-Mar-17,22411486-14993267,-1995,Gretton Homes,Care Establishment,2 - Operations - Learning Disability,LDP E Cambs Special Needs,Residential Independent Sector
Cambridgeshire County Council,16-Mar-17,22411488-14993269,-1995,Gretton Homes,Care Establishment,2 - Operations - Learning Disability,LDP E Cambs Special Needs,Residential Independent Sector
Cambridgeshire County Council,16-Mar-17,22410466-14993304,-1995,Gretton Homes,Care Establishment,2 - Operations - Learning Disability,LDP E Cambs Special Needs,Residential Independent Sector
Cambridgeshire County Council,16-Mar-17,22410451-14993289,-1995,Gretton Homes,Care Establishment,2 - Operations - Learning Disability,LDP E Cambs Special Needs,Residential Independent Sector
Cambridgeshire County Council,16-Mar-17,22410492-14993329,-1995,Gretton Homes,Care Establishment,2 - Operations - Learning Disability,LDP E Cambs Special Needs,Residential Independent Sector
Cambridgeshire County Council,16-Mar-17,22411472-14993254,-1995,Gretton Homes,Care Establishment,2 - Operations - Learning Disability,LDP E Cambs Special Needs,Residential Independent Sector
Cambridgeshire County Council,16-Mar-17,22411473-14993255,-1995,Gretton Homes,Care Establishment,2 - Operations - Learning Disability,LDP E Cambs Special Needs,Residential Independent Sector
Cambridgeshire County Council,16-Mar-17,22410471-14993309,-1995,Gretton Homes,Care Establishment,2 - Operations - Learning Disability,LDP E Cambs Special Needs,Residential Independent Sector
Cambridgeshire County Council,16-Mar-17,22410486-14993323,-1995,Gretton Homes,Care Establishment,2 - Operations - Learning Disability,LDP E Cambs Special Needs,Residential Independent Sector
Cambridgeshire County Council,16-Mar-17,22410489-14993326,-1995,Gretton Homes,Care Establishment,2 - Operations - Learning Disability,LDP E Cambs Special Needs,Residential Independent Sector
Cambridgeshire County Council,16-Mar-17,22411474-14993256,-1995,Gretton Homes,Care Establishment,2 - Operations - Learning Disability,LDP E Cambs Special Needs,Residential Independent Sector
Cambridgeshire County Council,16-Mar-17,22410480-14993317,-1995,Gretton Homes,Care Establishment,2 - Operations - Learning Disability,LDP E Cambs Special Needs,Residential Independent Sector
Cambridgeshire County Council,30-Mar-17,22867858-15099822,-1976,Gretton Homes,Care Establishment,3 - Operations - Countywide Services,LDP Young Adults - Care,Residential Independent Sector
Cambridgeshire County Council,30-Mar-17,22950384-15110201,-1852.7,Affinity Trust,Care Establishment,2 - Operations - Learning Disability,LDP Hunts special needs,Day and Domicillary Care Independent Sector
Cambridgeshire County Council,30-Mar-17,22950391-15110202,-1852.7,Affinity Trust,Care Establishment,2 - Operations - Learning Disability,LDP Hunts special needs,Day and Domicillary Care Independent Sector
Cambridgeshire County Council,30-Mar-17,22950392-15110203,-1852.7,Affinity Trust,Care Establishment,2 - Operations - Learning Disability,LDP Hunts special needs,Day and Domicillary Care Independent Sector
Cambridgeshire County Council,30-Mar-17,22957562-15110279,-1852.7,Affinity Trust,Care Establishment,2 - Operations - Learning Disability,LDP Hunts special needs,Day and Domicillary Care Independent Sector
Cambridgeshire County Council,30-Mar-17,22950403-15110205,-1852.7,Affinity Trust,Care Establishment,2 - Operations - Learning Disability,LDP Hunts special needs,Day and Domicillary Care Independent Sector
Cambridgeshire County Council,30-Mar-17,22950411-15110206,-1852.7,Affinity Trust,Care Establishment,2 - Operations - Learning Disability,LDP Hunts special needs,Day and Domicillary Care Independent Sector
Cambridgeshire County Council,30-Mar-17,22950417-15110207,-1852.7,Affinity Trust,Care Establishment,2 - Operations - Learning Disability,LDP Hunts special needs,Day and Domicillary Care Independent Sector
Cambridgeshire County Council,16-Mar-17,22409499-14993284,-1710,Gretton Homes,Care Establishment,2 - Operations - Learning Disability,LDP E Cambs Special Needs,Residential Independent Sector
Cambridgeshire County Council,02-Mar-17,22729210-14905184,-1687.84,Voyage (Lichfield),Care Establishment,3 - Operations - Countywide Services,LDP Young Adults - Care,Supported Living
Cambridgeshire County Council,02-Mar-17,22729211-14905185,-1687.84,Voyage (Lichfield),Care Establishment,3 - Operations - Countywide Services,LDP Young Adults - Care,Supported Living
Cambridgeshire County Council,02-Mar-17,22729179-14905199,-1687.84,Voyage (Lichfield),Care Establishment,3 - Operations - Countywide Services,LDP Young Adults - Care,Supported Living
Cambridgeshire County Council,02-Mar-17,22729197-14905204,-1687.84,Voyage (Lichfield),Care Establishment,3 - Operations - Countywide Services,LDP Young Adults - Care,Supported Living
Cambridgeshire County Council,02-Mar-17,22729172-14905196,-1687.84,Voyage (Lichfield),Care Establishment,3 - Operations - Countywide Services,LDP Young Adults - Care,Supported Living
Cambridgeshire County Council,02-Mar-17,22729164-14905194,-1687.84,Voyage (Lichfield),Care Establishment,3 - Operations - Countywide Services,LDP Young Adults - Care,Supported Living
Cambridgeshire County Council,02-Mar-17,22729216-14905189,-1687.84,Voyage (Lichfield),Care Establishment,3 - Operations - Countywide Services,LDP Young Adults - Care,Supported Living
Cambridgeshire County Council,02-Mar-17,22729201-14905206,-1687.84,Voyage (Lichfield),Care Establishment,3 - Operations - Countywide Services,LDP Young Adults - Care,Supported Living
Cambridgeshire County Council,02-Mar-17,22729184-14905202,-1687.84,Voyage (Lichfield),Care Establishment,3 - Operations - Countywide Services,LDP Young Adults - Care,Supported Living
Cambridgeshire County Council,16-Mar-17,22838721-14991193,-1650.44,Voyage (Lichfield),Care Establishment,2 - Operations - Learning Disability,LDP Fenland Locality - Care,Supported Living
Cambridgeshire County Council,16-Mar-17,22838743-14991215,-1650.44,Voyage (Lichfield),Care Establishment,2 - Operations - Learning Disability,LDP Fenland Locality - Care,Supported Living
Cambridgeshire County Council,16-Mar-17,22838744-14991216,-1650.44,Voyage (Lichfield),Care Establishment,2 - Operations - Learning Disability,LDP Fenland Locality - Care,Supported Living
Cambridgeshire County Council,16-Mar-17,22838734-14991206,-1650.44,Voyage (Lichfield),Care Establishment,2 - Operations - Learning Disability,LDP Fenland Locality - Care,Supported Living
Cambridgeshire County Council,16-Mar-17,22838719-14991191,-1650.44,Voyage (Lichfield),Care Establishment,2 - Operations - Learning Disability,LDP Fenland Locality - Care,Supported Living
Cambridgeshire County Council,16-Mar-17,22838738-14991210,-1650.44,Voyage (Lichfield),Care Establishment,2 - Operations - Learning Disability,LDP Fenland Locality - Care,Supported Living
Cambridgeshire County Council,16-Mar-17,22838715-14991187,-1650.44,Voyage (Lichfield),Care Establishment,2 - Operations - Learning Disability,LDP Fenland Locality - Care,Supported Living
Cambridgeshire County Council,16-Mar-17,22838716-14991188,-1650.44,Voyage (Lichfield),Care Establishment,2 - Operations - Learning Disability,LDP Fenland Locality - Care,Supported Living
Cambridgeshire County Council,16-Mar-17,22838731-14991203,-1650.44,Voyage (Lichfield),Care Establishment,2 - Operations - Learning Disability,LDP Fenland Locality - Care,Supported Living
Cambridgeshire County Council,16-Mar-17,22838722-14991194,-1650.44,Voyage (Lichfield),Care Establishment,2 - Operations - Learning Disability,LDP Fenland Locality - Care,Supported Living
Cambridgeshire County Council,16-Mar-17,22838732-14991204,-1650.44,Voyage (Lichfield),Care Establishment,2 - Operations - Learning Disability,LDP Fenland Locality - Care,Supported Living
Cambridgeshire County Council,16-Mar-17,22838739-14991211,-1650.44,Voyage (Lichfield),Care Establishment,2 - Operations - Learning Disability,LDP Fenland Locality - Care,Supported Living
Cambridgeshire County Council,16-Mar-17,22838725-14991197,-1650.44,Voyage (Lichfield),Care Establishment,2 - Operations - Learning Disability,LDP Fenland Locality - Care,Supported Living
Cambridgeshire County Council,16-Mar-17,22838723-14991195,-1650.44,Voyage (Lichfield),Care Establishment,2 - Operations - Learning Disability,LDP Fenland Locality - Care,Supported Living
Cambridgeshire County Council,16-Mar-17,22838746-14991218,-1650.44,Voyage (Lichfield),Care Establishment,2 - Operations - Learning Disability,LDP Fenland Locality - Care,Supported Living
Cambridgeshire County Council,16-Mar-17,22838748-14991220,-1650.44,Voyage (Lichfield),Care Establishment,2 - Operations - Learning Disability,LDP Fenland Locality - Care,Supported Living
Cambridgeshire County Council,16-Mar-17,22837860-14990889,-1627.5,Redacted Personal Data,Individual,2 - Operations - Learning Disability,LDP E Cambs Special Needs,Direct Payments - Social Services
Cambridgeshire County Council,16-Mar-17,22833935-14990855,-1627.5,Redacted Personal Data,Individual,2 - Operations - Learning Disability,LDP E Cambs Special Needs,Direct Payments - Social Services
Cambridgeshire County Council,16-Mar-17,22833953-14990872,-1627.5,Redacted Personal Data,Individual,2 - Operations - Learning Disability,LDP E Cambs Special Needs,Direct Payments - Social Services
Cambridgeshire County Council,16-Mar-17,22837858-14990887,-1627.5,Redacted Personal Data,Individual,2 - Operations - Learning Disability,LDP E Cambs Special Needs,Direct Payments - Social Services
Cambridgeshire County Council,16-Mar-17,22709950-14994469,-1596,Redacted Personal Data,Individual,2 - Operations - Learning Disability,LDP E Cambs Special Needs,Direct Payments - Social Services
Cambridgeshire County Council,16-Mar-17,22646577-14994481,-1596,Redacted Personal Data,Individual,2 - Operations - Learning Disability,LDP E Cambs Locality - Care,Direct Payments - Social Services
Cambridgeshire County Council,16-Mar-17,22646578-14994482,-1596,Redacted Personal Data,Individual,2 - Operations - Learning Disability,LDP E Cambs Locality - Care,Direct Payments - Social Services
Cambridgeshire County Council,16-Mar-17,22646579-14994483,-1596,Redacted Personal Data,Individual,2 - Operations - Learning Disability,LDP E Cambs Locality - Care,Direct Payments - Social Services
Cambridgeshire County Council,16-Mar-17,22585306-14994452,-1596,Redacted Personal Data,Individual,2 - Operations - Learning Disability,LDP E Cambs Locality - Care,Direct Payments - Social Services
Cambridgeshire County Council,16-Mar-17,22585309-14994453,-1596,Redacted Personal Data,Individual,2 - Operations - Learning Disability,LDP E Cambs Special Needs,Direct Payments - Social Services
Cambridgeshire County Council,16-Mar-17,22839272-14994468,-1596,Redacted Personal Data,Individual,2 - Operations - Learning Disability,LDP E Cambs Locality - Care,Direct Payments - Social Services
Cambridgeshire County Council,16-Mar-17,22715547-14994475,-1596,Redacted Personal Data,Individual,2 - Operations - Learning Disability,LDP E Cambs Special Needs,Direct Payments - Social Services
Cambridgeshire County Council,16-Mar-17,22715551-14994476,-1596,Redacted Personal Data,Individual,2 - Operations - Learning Disability,LDP E Cambs Special Needs,Direct Payments - Social Services
Cambridgeshire County Council,16-Mar-17,22781817-14994462,-1596,Redacted Personal Data,Individual,2 - Operations - Learning Disability,LDP E Cambs Special Needs,Direct Payments - Social Services
Cambridgeshire County Council,16-Mar-17,22839271-14994467,-1596,Redacted Personal Data,Individual,2 - Operations - Learning Disability,LDP E Cambs Special Needs,Direct Payments - Social Services
Cambridgeshire County Council,16-Mar-17,22834093-14994490,-1596,Redacted Personal Data,Individual,2 - Operations - Learning Disability,LDP E Cambs Locality - Care,Direct Payments - Social Services
Cambridgeshire County Council,16-Mar-17,22585315-14994457,-1596,Redacted Personal Data,Individual,2 - Operations - Learning Disability,LDP E Cambs Special Needs,Direct Payments - Social Services
Cambridgeshire County Council,16-Mar-17,22781813-14994458,-1596,Redacted Personal Data,Individual,2 - Operations - Learning Disability,LDP E Cambs Special Needs,Direct Payments - Social Services
Cambridgeshire County Council,16-Mar-17,22781819-14994464,-1596,Redacted Personal Data,Individual,2 - Operations - Learning Disability,LDP E Cambs Special Needs,Direct Payments - Social Services
Cambridgeshire County Council,16-Mar-17,22775375-14989864,-1562.97,Caretech Community Services,Care Establishment,2 - Operations - Learning Disability,LDP Hunts special needs,Supported Living
Cambridgeshire County Council,16-Mar-17,22775379-14989868,-1562.97,Caretech Community Services,Care Establishment,2 - Operations - Learning Disability,LDP Hunts special needs,Supported Living
Cambridgeshire County Council,16-Mar-17,22775380-14989869,-1562.97,Caretech Community Services,Care Establishment,2 - Operations - Learning Disability,LDP Hunts special needs,Supported Living
Cambridgeshire County Council,16-Mar-17,22775381-14989870,-1562.97,Caretech Community Services,Care Establishment,2 - Operations - Learning Disability,LDP Hunts special needs,Supported Living
Cambridgeshire County Council,23-Mar-17,22862988-15028536,-1504.41,Conquest Care Homes Peterborough,Care Establishment,2 - Operations - Learning Disability,LDP South Cambs Locality - Care,Day and Domicillary Care Independent Sector
Cambridgeshire County Council,23-Mar-17,22866117-15028586,-1504.41,Conquest Care Homes Peterborough,Care Establishment,2 - Operations - Learning Disability,LDP South Cambs Locality - Care,Day and Domicillary Care Independent Sector
Cambridgeshire County Council,23-Mar-17,22866120-15028589,-1504.41,Conquest Care Homes Peterborough,Care Establishment,2 - Operations - Learning Disability,LDP South Cambs Locality - Care,Day and Domicillary Care Independent Sector
Cambridgeshire County Council,23-Mar-17,22866125-15028594,-1504.41,Conquest Care Homes Peterborough,Care Establishment,2 - Operations - Learning Disability,LDP South Cambs Locality - Care,Day and Domicillary Care Independent Sector
Cambridgeshire County Council,23-Mar-17,22863001-15028549,-1504.41,Conquest Care Homes Peterborough,Care Establishment,2 - Operations - Learning Disability,LDP South Cambs Locality - Care,Day and Domicillary Care Independent Sector
Cambridgeshire County Council,23-Mar-17,22863004-15028552,-1504.41,Conquest Care Homes Peterborough,Care Establishment,2 - Operations - Learning Disability,LDP South Cambs Locality - Care,Day and Domicillary Care Independent Sector
Cambridgeshire County Council,23-Mar-17,22862994-15028542,-1504.41,Conquest Care Homes Peterborough,Care Establishment,2 - Operations - Learning Disability,LDP South Cambs Locality - Care,Day and Domicillary Care Independent Sector
Cambridgeshire County Council,23-Mar-17,22862999-15028547,-1504.41,Conquest Care Homes Peterborough,Care Establishment,2 - Operations - Learning Disability,LDP South Cambs Locality - Care,Day and Domicillary Care Independent Sector
Cambridgeshire County Council,23-Mar-17,22863003-15028551,-1504.41,Conquest Care Homes Peterborough,Care Establishment,2 - Operations - Learning Disability,LDP South Cambs Locality - Care,Day and Domicillary Care Independent Sector
Cambridgeshire County Council,23-Mar-17,22866115-15028584,-1504.41,Conquest Care Homes Peterborough,Care Establishment,2 - Operations - Learning Disability,LDP South Cambs Locality - Care,Day and Domicillary Care Independent Sector
Cambridgeshire County Council,23-Mar-17,22866123-15028592,-1504.41,Conquest Care Homes Peterborough,Care Establishment,2 - Operations - Learning Disability,LDP South Cambs Locality - Care,Day and Domicillary Care Independent Sector
Cambridgeshire County Council,23-Mar-17,22862996-15028544,-1504.41,Conquest Care Homes Peterborough,Care Establishment,2 - Operations - Learning Disability,LDP South Cambs Locality - Care,Day and Domicillary Care Independent Sector
Cambridgeshire County Council,23-Mar-17,22862998-15028546,-1504.41,Conquest Care Homes Peterborough,Care Establishment,2 - Operations - Learning Disability,LDP South Cambs Locality - Care,Day and Domicillary Care Independent Sector
Cambridgeshire County Council,23-Mar-17,22863006-15028554,-1504.41,Conquest Care Homes Peterborough,Care Establishment,2 - Operations - Learning Disability,LDP South Cambs Locality - Care,Day and Domicillary Care Independent Sector
Cambridgeshire County Council,23-Mar-17,22866119-15028588,-1504.41,Conquest Care Homes Peterborough,Care Establishment,2 - Operations - Learning Disability,LDP South Cambs Locality - Care,Day and Domicillary Care Independent Sector
Cambridgeshire County Council,23-Mar-17,22866122-15028591,-1504.41,Conquest Care Homes Peterborough,Care Establishment,2 - Operations - Learning Disability,LDP South Cambs Locality - Care,Day and Domicillary Care Independent Sector
Cambridgeshire County Council,30-Mar-17,22943871-15097092,-1500.79,Broad Oaks Vct Ltd,Care Establishment,2 - Operations - Learning Disability,LDP Fens - Special Needs,Residential Independent Sector
Cambridgeshire County Council,30-Mar-17,22943889-15097108,-1500.79,Broad Oaks Vct Ltd,Care Establishment,2 - Operations - Learning Disability,LDP Fens - Special Needs,Residential Independent Sector
Cambridgeshire County Council,30-Mar-17,22943851-15097074,-1500.79,Broad Oaks Vct Ltd,Care Establishment,2 - Operations - Learning Disability,LDP Fens - Special Needs,Residential Independent Sector
Cambridgeshire County Council,30-Mar-17,22943856-15097079,-1500.79,Broad Oaks Vct Ltd,Care Establishment,2 - Operations - Learning Disability,LDP Fens - Special Needs,Residential Independent Sector
Cambridgeshire County Council,30-Mar-17,22943869-15097090,-1500.79,Broad Oaks Vct Ltd,Care Establishment,2 - Operations - Learning Disability,LDP Fens - Special Needs,Residential Independent Sector
Cambridgeshire County Council,30-Mar-17,22943870-15097091,-1500.79,Broad Oaks Vct Ltd,Care Establishment,2 - Operations - Learning Disability,LDP Fens - Special Needs,Residential Independent Sector
Cambridgeshire County Council,30-Mar-17,22943881-15097101,-1500.79,Broad Oaks Vct Ltd,Care Establishment,2 - Operations - Learning Disability,LDP Fens - Special Needs,Residential Independent Sector
Cambridgeshire County Council,30-Mar-17,22943902-15097120,-1500.79,Broad Oaks Vct Ltd,Care Establishment,2 - Operations - Learning Disability,LDP Fens - Special Needs,Residential Independent Sector
Cambridgeshire County Council,30-Mar-17,22943917-15097133,-1500.79,Broad Oaks Vct Ltd,Care Establishment,2 - Operations - Learning Disability,LDP Fens - Special Needs,Residential Independent Sector
Cambridgeshire County Council,30-Mar-17,22943883-15097103,-1500.79,Broad Oaks Vct Ltd,Care Establishment,2 - Operations - Learning Disability,LDP Fens - Special Needs,Residential Independent Sector
Cambridgeshire County Council,30-Mar-17,22943854-15097077,-1500.79,Broad Oaks Vct Ltd,Care Establishment,2 - Operations - Learning Disability,LDP Fens - Special Needs,Residential Independent Sector
Cambridgeshire County Council,30-Mar-17,22943877-15097098,-1500.79,Broad Oaks Vct Ltd,Care Establishment,2 - Operations - Learning Disability,LDP Fens - Special Needs,Residential Independent Sector
Cambridgeshire County Council,30-Mar-17,22943860-15097083,-1500.79,Broad Oaks Vct Ltd,Care Establishment,2 - Operations - Learning Disability,LDP Fens - Special Needs,Residential Independent Sector
Cambridgeshire County Council,30-Mar-17,22943873-15097094,-1500.79,Broad Oaks Vct Ltd,Care Establishment,2 - Operations - Learning Disability,LDP Fens - Special Needs,Residential Independent Sector
Cambridgeshire County Council,30-Mar-17,22943896-15097114,-1500.79,Broad Oaks Vct Ltd,Care Establishment,2 - Operations - Learning Disability,LDP Fens - Special Needs,Residential Independent Sector
Cambridgeshire County Council,30-Mar-17,22943901-15097119,-1500.79,Broad Oaks Vct Ltd,Care Establishment,2 - Operations - Learning Disability,LDP Fens - Special Needs,Residential Independent Sector
Cambridgeshire County Council,30-Mar-17,22943850-15097073,-1500.79,Broad Oaks Vct Ltd,Care Establishment,2 - Operations - Learning Disability,LDP Fens - Special Needs,Residential Independent Sector
Cambridgeshire County Council,30-Mar-17,22943865-15097086,-1500.79,Broad Oaks Vct Ltd,Care Establishment,2 - Operations - Learning Disability,LDP Fens - Special Needs,Residential Independent Sector
Cambridgeshire County Council,30-Mar-17,22943886-15097106,-1500.79,Broad Oaks Vct Ltd,Care Establishment,2 - Operations - Learning Disability,LDP Fens - Special Needs,Residential Independent Sector
Cambridgeshire County Council,30-Mar-17,22943899-15097117,-1500.79,Broad Oaks Vct Ltd,Care Establishment,2 - Operations - Learning Disability,LDP Fens - Special Needs,Residential Independent Sector
Cambridgeshire County Council,30-Mar-17,22943905-15097123,-1500.79,Broad Oaks Vct Ltd,Care Establishment,2 - Operations - Learning Disability,LDP Fens - Special Needs,Residential Independent Sector
Cambridgeshire County Council,30-Mar-17,22943913-15097129,-1500.79,Broad Oaks Vct Ltd,Care Establishment,2 - Operations - Learning Disability,LDP Fens - Special Needs,Residential Independent Sector
Cambridgeshire County Council,30-Mar-17,22943876-15097097,-1500.79,Broad Oaks Vct Ltd,Care Establishment,2 - Operations - Learning Disability,LDP Fens - Special Needs,Residential Independent Sector
Cambridgeshire County Council,30-Mar-17,22943878-15097099,-1500.79,Broad Oaks Vct Ltd,Care Establishment,2 - Operations - Learning Disability,LDP Fens - Special Needs,Residential Independent Sector
Cambridgeshire County Council,30-Mar-17,22943884-15097104,-1500.79,Broad Oaks Vct Ltd,Care Establishment,2 - Operations - Learning Disability,LDP Fens - Special Needs,Residential Independent Sector
Cambridgeshire County Council,30-Mar-17,22943853-15097076,-1500.79,Broad Oaks Vct Ltd,Care Establishment,2 - Operations - Learning Disability,LDP Fens - Special Needs,Residential Independent Sector
Cambridgeshire County Council,30-Mar-17,22943857-15097080,-1500.79,Broad Oaks Vct Ltd,Care Establishment,2 - Operations - Learning Disability,LDP Fens - Special Needs,Residential Independent Sector
Cambridgeshire County Council,30-Mar-17,22943866-15097087,-1500.79,Broad Oaks Vct Ltd,Care Establishment,2 - Operations - Learning Disability,LDP Fens - Special Needs,Residential Independent Sector
Cambridgeshire County Council,30-Mar-17,22788538-15097925,-1500,Etheldred House,Care Establishment,2 - Commissioning - Older people Pool,Older People Mental Health E Cambs,Nursing Independent Sector
Cambridgeshire County Council,30-Mar-17,22787566-15097920,-1500,Etheldred House,Care Establishment,2 - Commissioning - Older people Pool,Older People Mental Health E Cambs,Nursing Independent Sector
Cambridgeshire County Council,30-Mar-17,22787570-15097924,-1500,Etheldred House,Care Establishment,2 - Commissioning - Older people Pool,Older People Mental Health E Cambs,Nursing Independent Sector
Cambridgeshire County Council,30-Mar-17,22944434-15105329,-1488.5,The Elms Nursing Home,Care Establishment,5 - Commissioning - Mental Health & Supporting People,OP Blocks - Care Placements,Nursing Independent Sector
Cambridgeshire County Council,30-Mar-17,22951462-15105355,-1488.5,The Elms Nursing Home,Care Establishment,5 - Commissioning - Mental Health & Supporting People,OP Blocks - Care Placements,Nursing Independent Sector
Cambridgeshire County Council,30-Mar-17,22944433-15105328,-1488.5,The Elms Nursing Home,Care Establishment,5 - Commissioning - Mental Health & Supporting People,OP Blocks - Care Placements,Nursing Independent Sector
Cambridgeshire County Council,30-Mar-17,22944476-15105336,-1488.5,The Elms Nursing Home,Care Establishment,5 - Commissioning - Mental Health & Supporting People,OP Blocks - Care Placements,Nursing Independent Sector
Cambridgeshire County Council,30-Mar-17,22951436-15105352,-1488.5,The Elms Nursing Home,Care Establishment,5 - Commissioning - Mental Health & Supporting People,OP Blocks - Care Placements,Nursing Independent Sector
Cambridgeshire County Council,30-Mar-17,22944446-15105330,-1488.5,The Elms Nursing Home,Care Establishment,5 - Commissioning - Mental Health & Supporting People,OP Blocks - Care Placements,Nursing Independent Sector
Cambridgeshire County Council,30-Mar-17,22951496-15105362,-1488.5,The Elms Nursing Home,Care Establishment,5 - Commissioning - Mental Health & Supporting People,OP Blocks - Care Placements,Nursing Independent Sector
Cambridgeshire County Council,30-Mar-17,22951508-15105365,-1488.5,The Elms Nursing Home,Care Establishment,5 - Commissioning - Mental Health & Supporting People,OP Blocks - Care Placements,Nursing Independent Sector
Cambridgeshire County Council,30-Mar-17,22961248-15105419,-1488.5,The Elms Nursing Home,Care Establishment,5 - Commissioning - Mental Health & Supporting People,OP Blocks - Care Placements,Nursing Independent Sector
Cambridgeshire County Council,30-Mar-17,22944469-15105334,-1488.5,The Elms Nursing Home,Care Establishment,5 - Commissioning - Mental Health & Supporting People,OP Blocks - Care Placements,Nursing Independent Sector
Cambridgeshire County Council,30-Mar-17,22951473-15105357,-1488.5,The Elms Nursing Home,Care Establishment,5 - Commissioning - Mental Health & Supporting People,OP Blocks - Care Placements,Nursing Independent Sector
Cambridgeshire County Council,30-Mar-17,22951422-15105344,-1488.5,The Elms Nursing Home,Care Establishment,5 - Commissioning - Mental Health & Supporting People,OP Blocks - Care Placements,Nursing Independent Sector
Cambridgeshire County Council,30-Mar-17,22951423-15105345,-1488.5,The Elms Nursing Home,Care Establishment,5 - Commissioning - Mental Health & Supporting People,OP Blocks - Care Placements,Nursing Independent Sector
Cambridgeshire County Council,30-Mar-17,22951472-15105356,-1488.5,The Elms Nursing Home,Care Establishment,5 - Commissioning - Mental Health & Supporting People,OP Blocks - Care Placements,Nursing Independent Sector
Cambridgeshire County Council,30-Mar-17,22951485-15105359,-1488.5,The Elms Nursing Home,Care Establishment,5 - Commissioning - Mental Health & Supporting People,OP Blocks - Care Placements,Nursing Independent Sector
Cambridgeshire County Council,09-Mar-17,22782890-14955165,-1425.54,Aurora Orchard Manor#1,Care Establishment,2 - Operations - Learning Disability,LDP City Locality - Care,Daycare
Cambridgeshire County Council,09-Mar-17,22782904-14955171,-1425.54,Aurora Orchard Manor#1,Care Establishment,2 - Operations - Learning Disability,LDP City Locality - Care,Daycare
Cambridgeshire County Council,09-Mar-17,22782900-14955169,-1425.54,Aurora Orchard Manor#1,Care Establishment,2 - Operations - Learning Disability,LDP City Locality - Care,Daycare
Cambridgeshire County Council,09-Mar-17,22782902-14955170,-1425.54,Aurora Orchard Manor#1,Care Establishment,2 - Operations - Learning Disability,LDP City Locality - Care,Daycare
Cambridgeshire County Council,16-Mar-17,22838724-14991196,-1414.66,Voyage (Lichfield),Care Establishment,2 - Operations - Learning Disability,LDP Fenland Locality - Care,Supported Living
Cambridgeshire County Council,24-Mar-17,22871147-15036446,-1404,Office Update Ltd,Trade Supplier,LGSS Managed,Scott House,Office equipment
Cambridgeshire County Council,16-Mar-17,22837857-14990886,-1395,Redacted Personal Data,Individual,2 - Operations - Learning Disability,LDP E Cambs Special Needs,Direct Payments - Social Services
Cambridgeshire County Council,16-Mar-17,22838113-14991156,-1393.47,Voyage (Lichfield),Care Establishment,3 - Operations - Countywide Services,LDP Young Adults - Care,Supported Living
Cambridgeshire County Council,16-Mar-17,22838135-14991178,-1393.47,Voyage (Lichfield),Care Establishment,3 - Operations - Countywide Services,LDP Young Adults - Care,Supported Living
Cambridgeshire County Council,16-Mar-17,22838143-14991186,-1393.47,Voyage (Lichfield),Care Establishment,3 - Operations - Countywide Services,LDP Young Adults - Care,Supported Living
Cambridgeshire County Council,16-Mar-17,22838115-14991158,-1393.47,Voyage (Lichfield),Care Establishment,3 - Operations - Countywide Services,LDP Young Adults - Care,Supported Living
Cambridgeshire County Council,16-Mar-17,22838122-14991165,-1393.47,Voyage (Lichfield),Care Establishment,3 - Operations - Countywide Services,LDP Young Adults - Care,Supported Living
Cambridgeshire County Council,16-Mar-17,22838138-14991181,-1393.47,Voyage (Lichfield),Care Establishment,3 - Operations - Countywide Services,LDP Young Adults - Care,Supported Living
Cambridgeshire County Council,16-Mar-17,22838116-14991159,-1393.47,Voyage (Lichfield),Care Establishment,3 - Operations - Countywide Services,LDP Young Adults - Care,Supported Living
Cambridgeshire County Council,16-Mar-17,22838133-14991176,-1393.47,Voyage (Lichfield),Care Establishment,3 - Operations - Countywide Services,LDP Young Adults - Care,Supported Living
Cambridgeshire County Council,16-Mar-17,22838120-14991163,-1393.47,Voyage (Lichfield),Care Establishment,3 - Operations - Countywide Services,LDP Young Adults - Care,Supported Living
Cambridgeshire County Council,16-Mar-17,22838114-14991157,-1393.47,Voyage (Lichfield),Care Establishment,3 - Operations - Countywide Services,LDP Young Adults - Care,Supported Living
Cambridgeshire County Council,16-Mar-17,22838124-14991167,-1393.47,Voyage (Lichfield),Care Establishment,3 - Operations - Countywide Services,LDP Young Adults - Care,Supported Living
Cambridgeshire County Council,16-Mar-17,22838129-14991172,-1393.47,Voyage (Lichfield),Care Establishment,3 - Operations - Countywide Services,LDP Young Adults - Care,Supported Living
Cambridgeshire County Council,16-Mar-17,22838131-14991174,-1393.47,Voyage (Lichfield),Care Establishment,3 - Operations - Countywide Services,LDP Young Adults - Care,Supported Living
Cambridgeshire County Council,16-Mar-17,22838119-14991162,-1393.47,Voyage (Lichfield),Care Establishment,3 - Operations - Countywide Services,LDP Young Adults - Care,Supported Living
Cambridgeshire County Council,16-Mar-17,22838126-14991169,-1393.47,Voyage (Lichfield),Care Establishment,3 - Operations - Countywide Services,LDP Young Adults - Care,Supported Living
Cambridgeshire County Council,16-Mar-17,22838128-14991171,-1393.47,Voyage (Lichfield),Care Establishment,3 - Operations - Countywide Services,LDP Young Adults - Care,Supported Living
Cambridgeshire County Council,23-Mar-17,22838270-15028028,-1364.89,26a Lerowe Road (Regard),Care Establishment,2 - Operations - Learning Disability,LDP South Cambs Locality - Care,Supported Living
Cambridgeshire County Council,23-Mar-17,22838284-15028042,-1364.89,26a Lerowe Road (Regard),Care Establishment,2 - Operations - Learning Disability,LDP South Cambs Locality - Care,Supported Living
Cambridgeshire County Council,23-Mar-17,22838261-15028019,-1364.89,26a Lerowe Road (Regard),Care Establishment,2 - Operations - Learning Disability,LDP South Cambs Locality - Care,Supported Living
Cambridgeshire County Council,23-Mar-17,22838277-15028035,-1364.89,26a Lerowe Road (Regard),Care Establishment,2 - Operations - Learning Disability,LDP South Cambs Locality - Care,Supported Living
Cambridgeshire County Council,23-Mar-17,22838286-15028044,-1364.89,26a Lerowe Road (Regard),Care Establishment,2 - Operations - Learning Disability,LDP South Cambs Locality - Care,Supported Living
Cambridgeshire County Council,23-Mar-17,22838289-15028047,-1364.89,26a Lerowe Road (Regard),Care Establishment,2 - Operations - Learning Disability,LDP South Cambs Locality - Care,Supported Living
Cambridgeshire County Council,23-Mar-17,22838304-15028062,-1364.89,26a Lerowe Road (Regard),Care Establishment,2 - Operations - Learning Disability,LDP South Cambs Locality - Care,Supported Living
Cambridgeshire County Council,23-Mar-17,22838265-15028023,-1364.89,26a Lerowe Road (Regard),Care Establishment,2 - Operations - Learning Disability,LDP South Cambs Locality - Care,Supported Living
Cambridgeshire County Council,23-Mar-17,22838271-15028029,-1364.89,26a Lerowe Road (Regard),Care Establishment,2 - Operations - Learning Disability,LDP South Cambs Locality - Care,Supported Living
Cambridgeshire County Council,23-Mar-17,22838287-15028045,-1364.89,26a Lerowe Road (Regard),Care Establishment,2 - Operations - Learning Disability,LDP South Cambs Locality - Care,Supported Living
Cambridgeshire County Council,23-Mar-17,22838295-15028053,-1364.89,26a Lerowe Road (Regard),Care Establishment,2 - Operations - Learning Disability,LDP South Cambs Locality - Care,Supported Living
Cambridgeshire County Council,23-Mar-17,22838296-15028054,-1364.89,26a Lerowe Road (Regard),Care Establishment,2 - Operations - Learning Disability,LDP South Cambs Locality - Care,Supported Living
Cambridgeshire County Council,23-Mar-17,22838301-15028059,-1364.89,26a Lerowe Road (Regard),Care Establishment,2 - Operations - Learning Disability,LDP South Cambs Locality - Care,Supported Living
Cambridgeshire County Council,23-Mar-17,22838262-15028020,-1364.89,26a Lerowe Road (Regard),Care Establishment,2 - Operations - Learning Disability,LDP South Cambs Locality - Care,Supported Living
Cambridgeshire County Council,23-Mar-17,22838276-15028034,-1364.89,26a Lerowe Road (Regard),Care Establishment,2 - Operations - Learning Disability,LDP South Cambs Locality - Care,Supported Living
Cambridgeshire County Council,23-Mar-17,22838279-15028037,-1364.89,26a Lerowe Road (Regard),Care Establishment,2 - Operations - Learning Disability,LDP South Cambs Locality - Care,Supported Living
Cambridgeshire County Council,23-Mar-17,22838285-15028043,-1364.89,26a Lerowe Road (Regard),Care Establishment,2 - Operations - Learning Disability,LDP South Cambs Locality - Care,Supported Living
Cambridgeshire County Council,23-Mar-17,22838294-15028052,-1364.89,26a Lerowe Road (Regard),Care Establishment,2 - Operations - Learning Disability,LDP South Cambs Locality - Care,Supported Living
Cambridgeshire County Council,23-Mar-17,22838303-15028061,-1364.89,26a Lerowe Road (Regard),Care Establishment,2 - Operations - Learning Disability,LDP South Cambs Locality - Care,Supported Living
Cambridgeshire County Council,23-Mar-17,22838267-15028025,-1364.89,26a Lerowe Road (Regard),Care Establishment,2 - Operations - Learning Disability,LDP South Cambs Locality - Care,Supported Living
Cambridgeshire County Council,23-Mar-17,22838275-15028033,-1364.89,26a Lerowe Road (Regard),Care Establishment,2 - Operations - Learning Disability,LDP South Cambs Locality - Care,Supported Living
Cambridgeshire County Council,23-Mar-17,22838283-15028041,-1364.89,26a Lerowe Road (Regard),Care Establishment,2 - Operations - Learning Disability,LDP South Cambs Locality - Care,Supported Living
Cambridgeshire County Council,23-Mar-17,22838290-15028048,-1364.89,26a Lerowe Road (Regard),Care Establishment,2 - Operations - Learning Disability,LDP South Cambs Locality - Care,Supported Living
Cambridgeshire County Council,23-Mar-17,22838293-15028051,-1364.89,26a Lerowe Road (Regard),Care Establishment,2 - Operations - Learning Disability,LDP South Cambs Locality - Care,Supported Living
Cambridgeshire County Council,23-Mar-17,22838263-15028021,-1364.89,26a Lerowe Road (Regard),Care Establishment,2 - Operations - Learning Disability,LDP South Cambs Locality - Care,Supported Living
Cambridgeshire County Council,23-Mar-17,22838264-15028022,-1364.89,26a Lerowe Road (Regard),Care Establishment,2 - Operations - Learning Disability,LDP South Cambs Locality - Care,Supported Living
Cambridgeshire County Council,23-Mar-17,22838268-15028026,-1364.89,26a Lerowe Road (Regard),Care Establishment,2 - Operations - Learning Disability,LDP South Cambs Locality - Care,Supported Living
Cambridgeshire County Council,23-Mar-17,22838274-15028032,-1364.89,26a Lerowe Road (Regard),Care Establishment,2 - Operations - Learning Disability,LDP South Cambs Locality - Care,Supported Living
Cambridgeshire County Council,23-Mar-17,22838278-15028036,-1364.89,26a Lerowe Road (Regard),Care Establishment,2 - Operations - Learning Disability,LDP South Cambs Locality - Care,Supported Living
Cambridgeshire County Council,23-Mar-17,22838280-15028038,-1364.89,26a Lerowe Road (Regard),Care Establishment,2 - Operations - Learning Disability,LDP South Cambs Locality - Care,Supported Living
Cambridgeshire County Council,23-Mar-17,22838266-15028024,-1364.89,26a Lerowe Road (Regard),Care Establishment,2 - Operations - Learning Disability,LDP South Cambs Locality - Care,Supported Living
Cambridgeshire County Council,23-Mar-17,22838269-15028027,-1364.89,26a Lerowe Road (Regard),Care Establishment,2 - Operations - Learning Disability,LDP South Cambs Locality - Care,Supported Living
Cambridgeshire County Council,23-Mar-17,22838282-15028040,-1364.89,26a Lerowe Road (Regard),Care Establishment,2 - Operations - Learning Disability,LDP South Cambs Locality - Care,Supported Living
Cambridgeshire County Council,23-Mar-17,22838292-15028050,-1364.89,26a Lerowe Road (Regard),Care Establishment,2 - Operations - Learning Disability,LDP South Cambs Locality - Care,Supported Living
Cambridgeshire County Council,23-Mar-17,22838297-15028055,-1364.89,26a Lerowe Road (Regard),Care Establishment,2 - Operations - Learning Disability,LDP South Cambs Locality - Care,Supported Living
Cambridgeshire County Council,23-Mar-17,22838307-15028065,-1364.89,26a Lerowe Road (Regard),Care Establishment,2 - Operations - Learning Disability,LDP South Cambs Locality - Care,Supported Living
Cambridgeshire County Council,23-Mar-17,22838273-15028031,-1364.89,26a Lerowe Road (Regard),Care Establishment,2 - Operations - Learning Disability,LDP South Cambs Locality - Care,Supported Living
Cambridgeshire County Council,23-Mar-17,22838281-15028039,-1364.89,26a Lerowe Road (Regard),Care Establishment,2 - Operations - Learning Disability,LDP South Cambs Locality - Care,Supported Living
Cambridgeshire County Council,23-Mar-17,22838288-15028046,-1364.89,26a Lerowe Road (Regard),Care Establishment,2 - Operations - Learning Disability,LDP South Cambs Locality - Care,Supported Living
Cambridgeshire County Council,23-Mar-17,22838291-15028049,-1364.89,26a Lerowe Road (Regard),Care Establishment,2 - Operations - Learning Disability,LDP South Cambs Locality - Care,Supported Living
Cambridgeshire County Council,23-Mar-17,22838298-15028056,-1364.89,26a Lerowe Road (Regard),Care Establishment,2 - Operations - Learning Disability,LDP South Cambs Locality - Care,Supported Living
Cambridgeshire County Council,23-Mar-17,22838299-15028057,-1364.89,26a Lerowe Road (Regard),Care Establishment,2 - Operations - Learning Disability,LDP South Cambs Locality - Care,Supported Living
Cambridgeshire County Council,23-Mar-17,22838300-15028058,-1364.89,26a Lerowe Road (Regard),Care Establishment,2 - Operations - Learning Disability,LDP South Cambs Locality - Care,Supported Living
Cambridgeshire County Council,23-Mar-17,22838302-15028060,-1364.89,26a Lerowe Road (Regard),Care Establishment,2 - Operations - Learning Disability,LDP South Cambs Locality - Care,Supported Living
Cambridgeshire County Council,23-Mar-17,22838305-15028063,-1364.89,26a Lerowe Road (Regard),Care Establishment,2 - Operations - Learning Disability,LDP South Cambs Locality - Care,Supported Living
Cambridgeshire County Council,23-Mar-17,22838306-15028064,-1364.89,26a Lerowe Road (Regard),Care Establishment,2 - Operations - Learning Disability,LDP South Cambs Locality - Care,Supported Living
Cambridgeshire County Council,23-Mar-17,22838308-15028066,-1364.89,26a Lerowe Road (Regard),Care Establishment,2 - Operations - Learning Disability,LDP South Cambs Locality - Care,Supported Living
Cambridgeshire County Council,30-Mar-17,22945702-15112714,-1341.88,Broad Oaks (Mencap),Care Establishment,3 - Operations - Countywide Services,Countywide PD Service - Care,Residential Independent Sector
Cambridgeshire County Council,30-Mar-17,22952814-15112779,-1341.88,Broad Oaks (Mencap),Care Establishment,3 - Operations - Countywide Services,Countywide PD Service - Care,Residential Independent Sector
Cambridgeshire County Council,30-Mar-17,22952739-15112803,-1341.88,Broad Oaks (Mencap),Care Establishment,3 - Operations - Countywide Services,Countywide PD Service - Care,Residential Independent Sector
Cambridgeshire County Council,30-Mar-17,22952768-15112829,-1341.88,Broad Oaks (Mencap),Care Establishment,3 - Operations - Countywide Services,Countywide PD Service - Care,Residential Independent Sector
Cambridgeshire County Council,30-Mar-17,22945695-15112708,-1341.88,Broad Oaks (Mencap),Care Establishment,3 - Operations - Countywide Services,Countywide PD Service - Care,Residential Independent Sector
Cambridgeshire County Council,30-Mar-17,22945697-15112710,-1341.88,Broad Oaks (Mencap),Care Establishment,3 - Operations - Countywide Services,Countywide PD Service - Care,Residential Independent Sector
Cambridgeshire County Council,30-Mar-17,22945723-15112731,-1341.88,Broad Oaks (Mencap),Care Establishment,3 - Operations - Countywide Services,Countywide PD Service - Care,Residential Independent Sector
Cambridgeshire County Council,30-Mar-17,22952805-15112770,-1341.88,Broad Oaks (Mencap),Care Establishment,3 - Operations - Countywide Services,Countywide PD Service - Care,Residential Independent Sector
Cambridgeshire County Council,30-Mar-17,22952810-15112775,-1341.88,Broad Oaks (Mencap),Care Establishment,3 - Operations - Countywide Services,Countywide PD Service - Care,Residential Independent Sector
Cambridgeshire County Council,30-Mar-17,22952822-15112785,-1341.88,Broad Oaks (Mencap),Care Establishment,3 - Operations - Countywide Services,Countywide PD Service - Care,Residential Independent Sector
Cambridgeshire County Council,30-Mar-17,22952825-15112788,-1341.88,Broad Oaks (Mencap),Care Establishment,3 - Operations - Countywide Services,Countywide PD Service - Care,Residential Independent Sector
Cambridgeshire County Council,30-Mar-17,22952730-15112795,-1341.88,Broad Oaks (Mencap),Care Establishment,3 - Operations - Countywide Services,Countywide PD Service - Care,Residential Independent Sector
Cambridgeshire County Council,30-Mar-17,22952734-15112799,-1341.88,Broad Oaks (Mencap),Care Establishment,3 - Operations - Countywide Services,Countywide PD Service - Care,Residential Independent Sector
Cambridgeshire County Council,30-Mar-17,22952738-15112802,-1341.88,Broad Oaks (Mencap),Care Establishment,3 - Operations - Countywide Services,Countywide PD Service - Care,Residential Independent Sector
Cambridgeshire County Council,30-Mar-17,22952740-15112804,-1341.88,Broad Oaks (Mencap),Care Establishment,3 - Operations - Countywide Services,Countywide PD Service - Care,Residential Independent Sector
Cambridgeshire County Council,30-Mar-17,22952752-15112815,-1341.88,Broad Oaks (Mencap),Care Establishment,3 - Operations - Countywide Services,Countywide PD Service - Care,Residential Independent Sector
Cambridgeshire County Council,30-Mar-17,22945692-15112705,-1341.88,Broad Oaks (Mencap),Care Establishment,3 - Operations - Countywide Services,Countywide PD Service - Care,Residential Independent Sector
Cambridgeshire County Council,30-Mar-17,22952773-15112744,-1341.88,Broad Oaks (Mencap),Care Establishment,3 - Operations - Countywide Services,Countywide PD Service - Care,Residential Independent Sector
Cambridgeshire County Council,30-Mar-17,22952821-15112784,-1341.88,Broad Oaks (Mencap),Care Establishment,3 - Operations - Countywide Services,Countywide PD Service - Care,Residential Independent Sector
Cambridgeshire County Council,30-Mar-17,22952722-15112789,-1341.88,Broad Oaks (Mencap),Care Establishment,3 - Operations - Countywide Services,Countywide PD Service - Care,Residential Independent Sector
Cambridgeshire County Council,30-Mar-17,22952727-15112793,-1341.88,Broad Oaks (Mencap),Care Establishment,3 - Operations - Countywide Services,Countywide PD Service - Care,Residential Independent Sector
Cambridgeshire County Council,30-Mar-17,22952733-15112798,-1341.88,Broad Oaks (Mencap),Care Establishment,3 - Operations - Countywide Services,Countywide PD Service - Care,Residential Independent Sector
Cambridgeshire County Council,30-Mar-17,22952736-15112801,-1341.88,Broad Oaks (Mencap),Care Establishment,3 - Operations - Countywide Services,Countywide PD Service - Care,Residential Independent Sector
Cambridgeshire County Council,30-Mar-17,22952742-15112806,-1341.88,Broad Oaks (Mencap),Care Establishment,3 - Operations - Countywide Services,Countywide PD Service - Care,Residential Independent Sector
Cambridgeshire County Council,30-Mar-17,22952748-15112811,-1341.88,Broad Oaks (Mencap),Care Establishment,3 - Operations - Countywide Services,Countywide PD Service - Care,Residential Independent Sector
Cambridgeshire County Council,30-Mar-17,22952759-15112821,-1341.88,Broad Oaks (Mencap),Care Establishment,3 - Operations - Countywide Services,Countywide PD Service - Care,Residential Independent Sector
Cambridgeshire County Council,30-Mar-17,22952777-15112748,-1341.88,Broad Oaks (Mencap),Care Establishment,3 - Operations - Countywide Services,Countywide PD Service - Care,Residential Independent Sector
Cambridgeshire County Council,30-Mar-17,22952723-15112790,-1341.88,Broad Oaks (Mencap),Care Establishment,3 - Operations - Countywide Services,Countywide PD Service - Care,Residential Independent Sector
Cambridgeshire County Council,30-Mar-17,22952762-15112824,-1341.88,Broad Oaks (Mencap),Care Establishment,3 - Operations - Countywide Services,Countywide PD Service - Care,Residential Independent Sector
Cambridgeshire County Council,30-Mar-17,22952770-15112831,-1341.88,Broad Oaks (Mencap),Care Establishment,3 - Operations - Countywide Services,Countywide PD Service - Care,Residential Independent Sector
Cambridgeshire County Council,30-Mar-17,22945699-15112712,-1341.88,Broad Oaks (Mencap),Care Establishment,3 - Operations - Countywide Services,Countywide PD Service - Care,Residential Independent Sector
Cambridgeshire County Council,30-Mar-17,22945715-15112723,-1341.88,Broad Oaks (Mencap),Care Establishment,3 - Operations - Countywide Services,Countywide PD Service - Care,Residential Independent Sector
Cambridgeshire County Council,30-Mar-17,22945718-15112726,-1341.88,Broad Oaks (Mencap),Care Establishment,3 - Operations - Countywide Services,Countywide PD Service - Care,Residential Independent Sector
Cambridgeshire County Council,30-Mar-17,22952774-15112745,-1341.88,Broad Oaks (Mencap),Care Establishment,3 - Operations - Countywide Services,Countywide PD Service - Care,Residential Independent Sector
Cambridgeshire County Council,30-Mar-17,22952789-15112754,-1341.88,Broad Oaks (Mencap),Care Establishment,3 - Operations - Countywide Services,Countywide PD Service - Care,Residential Independent Sector
Cambridgeshire County Council,30-Mar-17,22952757-15112820,-1341.88,Broad Oaks (Mencap),Care Establishment,3 - Operations - Countywide Services,Countywide PD Service - Care,Residential Independent Sector
Cambridgeshire County Council,30-Mar-17,22945710-15112718,-1341.88,Broad Oaks (Mencap),Care Establishment,3 - Operations - Countywide Services,Countywide PD Service - Care,Residential Independent Sector
Cambridgeshire County Council,30-Mar-17,22952779-15112750,-1341.88,Broad Oaks (Mencap),Care Establishment,3 - Operations - Countywide Services,Countywide PD Service - Care,Residential Independent Sector
Cambridgeshire County Council,30-Mar-17,22952741-15112805,-1341.88,Broad Oaks (Mencap),Care Establishment,3 - Operations - Countywide Services,Countywide PD Service - Care,Residential Independent Sector
Cambridgeshire County Council,30-Mar-17,22952746-15112809,-1341.88,Broad Oaks (Mencap),Care Establishment,3 - Operations - Countywide Services,Countywide PD Service - Care,Residential Independent Sector
Cambridgeshire County Council,30-Mar-17,22945703-15112715,-1341.88,Broad Oaks (Mencap),Care Establishment,3 - Operations - Countywide Services,Countywide PD Service - Care,Residential Independent Sector
Cambridgeshire County Council,30-Mar-17,22952782-15112753,-1341.88,Broad Oaks (Mencap),Care Establishment,3 - Operations - Countywide Services,Countywide PD Service - Care,Residential Independent Sector
Cambridgeshire County Council,30-Mar-17,22952791-15112756,-1341.88,Broad Oaks (Mencap),Care Establishment,3 - Operations - Countywide Services,Countywide PD Service - Care,Residential Independent Sector
Cambridgeshire County Council,30-Mar-17,22952731-15112796,-1341.88,Broad Oaks (Mencap),Care Establishment,3 - Operations - Countywide Services,Countywide PD Service - Care,Residential Independent Sector
Cambridgeshire County Council,30-Mar-17,22945717-15112725,-1341.88,Broad Oaks (Mencap),Care Establishment,3 - Operations - Countywide Services,Countywide PD Service - Care,Residential Independent Sector
Cambridgeshire County Council,30-Mar-17,22952792-15112760,-1341.88,Broad Oaks (Mencap),Care Establishment,3 - Operations - Countywide Services,Countywide PD Service - Care,Residential Independent Sector
Cambridgeshire County Council,30-Mar-17,22952798-15112763,-1341.88,Broad Oaks (Mencap),Care Establishment,3 - Operations - Countywide Services,Countywide PD Service - Care,Residential Independent Sector
Cambridgeshire County Council,30-Mar-17,22952802-15112767,-1341.88,Broad Oaks (Mencap),Care Establishment,3 - Operations - Countywide Services,Countywide PD Service - Care,Residential Independent Sector
Cambridgeshire County Council,30-Mar-17,22952804-15112769,-1341.88,Broad Oaks (Mencap),Care Establishment,3 - Operations - Countywide Services,Countywide PD Service - Care,Residential Independent Sector
Cambridgeshire County Council,30-Mar-17,22952747-15112810,-1341.88,Broad Oaks (Mencap),Care Establishment,3 - Operations - Countywide Services,Countywide PD Service - Care,Residential Independent Sector
Cambridgeshire County Council,30-Mar-17,22952754-15112817,-1341.88,Broad Oaks (Mencap),Care Establishment,3 - Operations - Countywide Services,Countywide PD Service - Care,Residential Independent Sector
Cambridgeshire County Council,30-Mar-17,22952756-15112819,-1341.88,Broad Oaks (Mencap),Care Establishment,3 - Operations - Countywide Services,Countywide PD Service - Care,Residential Independent Sector
Cambridgeshire County Council,30-Mar-17,22952761-15112823,-1341.88,Broad Oaks (Mencap),Care Establishment,3 - Operations - Countywide Services,Countywide PD Service - Care,Residential Independent Sector
Cambridgeshire County Council,30-Mar-17,22866740-15110011,-1335.67,Affinity Trust,Care Establishment,2 - Operations - Learning Disability,LDP South Cambs Locality - Care,Supported Living
Cambridgeshire County Council,30-Mar-17,22866758-15110029,-1335.67,Affinity Trust,Care Establishment,2 - Operations - Learning Disability,LDP South Cambs Locality - Care,Supported Living
Cambridgeshire County Council,30-Mar-17,22869337-15110044,-1335.67,Affinity Trust,Care Establishment,2 - Operations - Learning Disability,LDP South Cambs Locality - Care,Supported Living
Cambridgeshire County Council,30-Mar-17,22869352-15110059,-1335.67,Affinity Trust,Care Establishment,2 - Operations - Learning Disability,LDP South Cambs Locality - Care,Supported Living
Cambridgeshire County Council,30-Mar-17,22869356-15110063,-1335.67,Affinity Trust,Care Establishment,2 - Operations - Learning Disability,LDP South Cambs Locality - Care,Supported Living
Cambridgeshire County Council,30-Mar-17,22866755-15110026,-1335.67,Affinity Trust,Care Establishment,2 - Operations - Learning Disability,LDP South Cambs Locality - Care,Supported Living
Cambridgeshire County Council,30-Mar-17,22866759-15110030,-1335.67,Affinity Trust,Care Establishment,2 - Operations - Learning Disability,LDP South Cambs Locality - Care,Supported Living
Cambridgeshire County Council,30-Mar-17,22866720-15110035,-1335.67,Affinity Trust,Care Establishment,2 - Operations - Learning Disability,LDP South Cambs Locality - Care,Supported Living
Cambridgeshire County Council,30-Mar-17,22866725-15110040,-1335.67,Affinity Trust,Care Establishment,2 - Operations - Learning Disability,LDP South Cambs Locality - Care,Supported Living
Cambridgeshire County Council,30-Mar-17,22866728-15110043,-1335.67,Affinity Trust,Care Establishment,2 - Operations - Learning Disability,LDP South Cambs Locality - Care,Supported Living
Cambridgeshire County Council,30-Mar-17,22869339-15110046,-1335.67,Affinity Trust,Care Establishment,2 - Operations - Learning Disability,LDP South Cambs Locality - Care,Supported Living
Cambridgeshire County Council,30-Mar-17,22866735-15110006,-1335.67,Affinity Trust,Care Establishment,2 - Operations - Learning Disability,LDP South Cambs Locality - Care,Supported Living
Cambridgeshire County Council,30-Mar-17,22866736-15110007,-1335.67,Affinity Trust,Care Establishment,2 - Operations - Learning Disability,LDP South Cambs Locality - Care,Supported Living
Cambridgeshire County Council,30-Mar-17,22866748-15110019,-1335.67,Affinity Trust,Care Establishment,2 - Operations - Learning Disability,LDP South Cambs Locality - Care,Supported Living
Cambridgeshire County Council,30-Mar-17,22866750-15110021,-1335.67,Affinity Trust,Care Establishment,2 - Operations - Learning Disability,LDP South Cambs Locality - Care,Supported Living
Cambridgeshire County Council,30-Mar-17,22866754-15110025,-1335.67,Affinity Trust,Care Establishment,2 - Operations - Learning Disability,LDP South Cambs Locality - Care,Supported Living
Cambridgeshire County Council,30-Mar-17,22866757-15110028,-1335.67,Affinity Trust,Care Establishment,2 - Operations - Learning Disability,LDP South Cambs Locality - Care,Supported Living
Cambridgeshire County Council,30-Mar-17,22866761-15110032,-1335.67,Affinity Trust,Care Establishment,2 - Operations - Learning Disability,LDP South Cambs Locality - Care,Supported Living
Cambridgeshire County Council,30-Mar-17,22866719-15110034,-1335.67,Affinity Trust,Care Establishment,2 - Operations - Learning Disability,LDP South Cambs Locality - Care,Supported Living
Cambridgeshire County Council,30-Mar-17,22866721-15110036,-1335.67,Affinity Trust,Care Establishment,2 - Operations - Learning Disability,LDP South Cambs Locality - Care,Supported Living
Cambridgeshire County Council,30-Mar-17,22869342-15110049,-1335.67,Affinity Trust,Care Establishment,2 - Operations - Learning Disability,LDP South Cambs Locality - Care,Supported Living
Cambridgeshire County Council,30-Mar-17,22869346-15110053,-1335.67,Affinity Trust,Care Establishment,2 - Operations - Learning Disability,LDP South Cambs Locality - Care,Supported Living
Cambridgeshire County Council,30-Mar-17,22866729-15110000,-1335.67,Affinity Trust,Care Establishment,2 - Operations - Learning Disability,LDP South Cambs Locality - Care,Supported Living
Cambridgeshire County Council,30-Mar-17,22866731-15110002,-1335.67,Affinity Trust,Care Establishment,2 - Operations - Learning Disability,LDP South Cambs Locality - Care,Supported Living
Cambridgeshire County Council,30-Mar-17,22866733-15110004,-1335.67,Affinity Trust,Care Establishment,2 - Operations - Learning Disability,LDP South Cambs Locality - Care,Supported Living
Cambridgeshire County Council,30-Mar-17,22866741-15110012,-1335.67,Affinity Trust,Care Establishment,2 - Operations - Learning Disability,LDP South Cambs Locality - Care,Supported Living
Cambridgeshire County Council,30-Mar-17,22866751-15110022,-1335.67,Affinity Trust,Care Establishment,2 - Operations - Learning Disability,LDP South Cambs Locality - Care,Supported Living
Cambridgeshire County Council,30-Mar-17,22866756-15110027,-1335.67,Affinity Trust,Care Establishment,2 - Operations - Learning Disability,LDP South Cambs Locality - Care,Supported Living
Cambridgeshire County Council,30-Mar-17,22869340-15110047,-1335.67,Affinity Trust,Care Establishment,2 - Operations - Learning Disability,LDP South Cambs Locality - Care,Supported Living
Cambridgeshire County Council,30-Mar-17,22869345-15110052,-1335.67,Affinity Trust,Care Establishment,2 - Operations - Learning Disability,LDP South Cambs Locality - Care,Supported Living
Cambridgeshire County Council,30-Mar-17,22869347-15110054,-1335.67,Affinity Trust,Care Establishment,2 - Operations - Learning Disability,LDP South Cambs Locality - Care,Supported Living
Cambridgeshire County Council,30-Mar-17,22869348-15110055,-1335.67,Affinity Trust,Care Establishment,2 - Operations - Learning Disability,LDP South Cambs Locality - Care,Supported Living
Cambridgeshire County Council,30-Mar-17,22869350-15110057,-1335.67,Affinity Trust,Care Establishment,2 - Operations - Learning Disability,LDP South Cambs Locality - Care,Supported Living
Cambridgeshire County Council,30-Mar-17,22866744-15110015,-1335.67,Affinity Trust,Care Establishment,2 - Operations - Learning Disability,LDP South Cambs Locality - Care,Supported Living
Cambridgeshire County Council,30-Mar-17,22866752-15110023,-1335.67,Affinity Trust,Care Establishment,2 - Operations - Learning Disability,LDP South Cambs Locality - Care,Supported Living
Cambridgeshire County Council,30-Mar-17,22866718-15110033,-1335.67,Affinity Trust,Care Establishment,2 - Operations - Learning Disability,LDP South Cambs Locality - Care,Supported Living
Cambridgeshire County Council,30-Mar-17,22866723-15110038,-1335.67,Affinity Trust,Care Establishment,2 - Operations - Learning Disability,LDP South Cambs Locality - Care,Supported Living
Cambridgeshire County Council,30-Mar-17,22866726-15110041,-1335.67,Affinity Trust,Care Establishment,2 - Operations - Learning Disability,LDP South Cambs Locality - Care,Supported Living
Cambridgeshire County Council,30-Mar-17,22869338-15110045,-1335.67,Affinity Trust,Care Establishment,2 - Operations - Learning Disability,LDP South Cambs Locality - Care,Supported Living
Cambridgeshire County Council,30-Mar-17,22869343-15110050,-1335.67,Affinity Trust,Care Establishment,2 - Operations - Learning Disability,LDP South Cambs Locality - Care,Supported Living
Cambridgeshire County Council,30-Mar-17,22869361-15110068,-1335.67,Affinity Trust,Care Establishment,2 - Operations - Learning Disability,LDP South Cambs Locality - Care,Supported Living
Cambridgeshire County Council,30-Mar-17,22866737-15110008,-1335.67,Affinity Trust,Care Establishment,2 - Operations - Learning Disability,LDP South Cambs Locality - Care,Supported Living
Cambridgeshire County Council,30-Mar-17,22869341-15110048,-1335.67,Affinity Trust,Care Establishment,2 - Operations - Learning Disability,LDP South Cambs Locality - Care,Supported Living
Cambridgeshire County Council,30-Mar-17,22866730-15110001,-1335.67,Affinity Trust,Care Establishment,2 - Operations - Learning Disability,LDP South Cambs Locality - Care,Supported Living
Cambridgeshire County Council,30-Mar-17,22866732-15110003,-1335.67,Affinity Trust,Care Establishment,2 - Operations - Learning Disability,LDP South Cambs Locality - Care,Supported Living
Cambridgeshire County Council,30-Mar-17,22866738-15110009,-1335.67,Affinity Trust,Care Establishment,2 - Operations - Learning Disability,LDP South Cambs Locality - Care,Supported Living
Cambridgeshire County Council,30-Mar-17,22866724-15110039,-1335.67,Affinity Trust,Care Establishment,2 - Operations - Learning Disability,LDP South Cambs Locality - Care,Supported Living
Cambridgeshire County Council,30-Mar-17,22866727-15110042,-1335.67,Affinity Trust,Care Establishment,2 - Operations - Learning Disability,LDP South Cambs Locality - Care,Supported Living
Cambridgeshire County Council,30-Mar-17,22869359-15110066,-1335.67,Affinity Trust,Care Establishment,2 - Operations - Learning Disability,LDP South Cambs Locality - Care,Supported Living
Cambridgeshire County Council,30-Mar-17,22869360-15110067,-1335.67,Affinity Trust,Care Establishment,2 - Operations - Learning Disability,LDP South Cambs Locality - Care,Supported Living
Cambridgeshire County Council,30-Mar-17,22866742-15110013,-1335.67,Affinity Trust,Care Establishment,2 - Operations - Learning Disability,LDP South Cambs Locality - Care,Supported Living
Cambridgeshire County Council,30-Mar-17,22866746-15110017,-1335.67,Affinity Trust,Care Establishment,2 - Operations - Learning Disability,LDP South Cambs Locality - Care,Supported Living
Cambridgeshire County Council,30-Mar-17,22866749-15110020,-1335.67,Affinity Trust,Care Establishment,2 - Operations - Learning Disability,LDP South Cambs Locality - Care,Supported Living
Cambridgeshire County Council,30-Mar-17,22869354-15110061,-1311.39,Affinity Trust,Care Establishment,2 - Operations - Learning Disability,LDP South Cambs Locality - Care,Supported Living
Cambridgeshire County Council,30-Mar-17,22841419-15098693,-1304.47,Selton House,Care Establishment,2 - Operations - Learning Disability,LDP Fens - Special Needs,Supported Living
Cambridgeshire County Council,30-Mar-17,22838051-15098697,-1304.47,Selton House,Care Establishment,2 - Operations - Learning Disability,LDP Fens - Special Needs,Supported Living
Cambridgeshire County Council,30-Mar-17,22838063-15098709,-1304.47,Selton House,Care Establishment,2 - Operations - Learning Disability,LDP Fens - Special Needs,Supported Living
Cambridgeshire County Council,30-Mar-17,22838064-15098710,-1304.47,Selton House,Care Establishment,2 - Operations - Learning Disability,LDP Fens - Special Needs,Supported Living
Cambridgeshire County Council,30-Mar-17,22841420-15098780,-1304.47,Selton House,Care Establishment,2 - Operations - Learning Disability,LDP Fens - Special Needs,Supported Living
Cambridgeshire County Council,30-Mar-17,22841432-15098792,-1304.47,Selton House,Care Establishment,2 - Operations - Learning Disability,LDP Fens - Special Needs,Supported Living
Cambridgeshire County Council,30-Mar-17,22838060-15098706,-1304.47,Selton House,Care Establishment,2 - Operations - Learning Disability,LDP Fens - Special Needs,Supported Living
Cambridgeshire County Council,30-Mar-17,22838061-15098707,-1304.47,Selton House,Care Establishment,2 - Operations - Learning Disability,LDP Fens - Special Needs,Supported Living
Cambridgeshire County Council,30-Mar-17,22838052-15098698,-1304.47,Selton House,Care Establishment,2 - Operations - Learning Disability,LDP Fens - Special Needs,Supported Living
Cambridgeshire County Council,30-Mar-17,22838055-15098701,-1304.47,Selton House,Care Establishment,2 - Operations - Learning Disability,LDP Fens - Special Needs,Supported Living
Cambridgeshire County Council,30-Mar-17,22838058-15098704,-1304.47,Selton House,Care Establishment,2 - Operations - Learning Disability,LDP Fens - Special Needs,Supported Living
Cambridgeshire County Council,30-Mar-17,22841425-15098785,-1304.47,Selton House,Care Establishment,2 - Operations - Learning Disability,LDP Fens - Special Needs,Supported Living
Cambridgeshire County Council,30-Mar-17,22838048-15098694,-1304.47,Selton House,Care Establishment,2 - Operations - Learning Disability,LDP Fens - Special Needs,Supported Living
Cambridgeshire County Council,30-Mar-17,22841429-15098789,-1304.47,Selton House,Care Establishment,2 - Operations - Learning Disability,LDP Fens - Special Needs,Supported Living
Cambridgeshire County Council,30-Mar-17,22838053-15098699,-1304.47,Selton House,Care Establishment,2 - Operations - Learning Disability,LDP Fens - Special Needs,Supported Living
Cambridgeshire County Council,30-Mar-17,22838062-15098708,-1304.47,Selton House,Care Establishment,2 - Operations - Learning Disability,LDP Fens - Special Needs,Supported Living
Cambridgeshire County Council,30-Mar-17,22943893-15097112,-1286.39,Broad Oaks Vct Ltd,Care Establishment,2 - Operations - Learning Disability,LDP Fens - Special Needs,Residential Independent Sector
Cambridgeshire County Council,30-Mar-17,22961216-15105416,-1275.86,The Elms Nursing Home,Care Establishment,5 - Commissioning - Mental Health & Supporting People,OP Blocks - Care Placements,Nursing Independent Sector
Cambridgeshire County Council,30-Mar-17,22839589-15098760,-1268.4,Selton House,Care Establishment,2 - Operations - Learning Disability,LDP Fenland Locality - Care,Supported Living
Cambridgeshire County Council,30-Mar-17,22839580-15098751,-1268.4,Selton House,Care Establishment,2 - Operations - Learning Disability,LDP Fenland Locality - Care,Supported Living
Cambridgeshire County Council,30-Mar-17,22839590-15098761,-1268.4,Selton House,Care Establishment,2 - Operations - Learning Disability,LDP Fenland Locality - Care,Supported Living
Cambridgeshire County Council,30-Mar-17,22839592-15098763,-1268.4,Selton House,Care Establishment,2 - Operations - Learning Disability,LDP Fenland Locality - Care,Supported Living
Cambridgeshire County Council,30-Mar-17,22839565-15098736,-1268.4,Selton House,Care Establishment,2 - Operations - Learning Disability,LDP Fenland Locality - Care,Supported Living
Cambridgeshire County Council,30-Mar-17,22839566-15098737,-1268.4,Selton House,Care Establishment,2 - Operations - Learning Disability,LDP Fenland Locality - Care,Supported Living
Cambridgeshire County Council,30-Mar-17,22839593-15098764,-1268.4,Selton House,Care Establishment,2 - Operations - Learning Disability,LDP Fenland Locality - Care,Supported Living
Cambridgeshire County Council,30-Mar-17,22839597-15098768,-1268.4,Selton House,Care Establishment,2 - Operations - Learning Disability,LDP Fenland Locality - Care,Supported Living
Cambridgeshire County Council,30-Mar-17,22839576-15098747,-1268.4,Selton House,Care Establishment,2 - Operations - Learning Disability,LDP Fenland Locality - Care,Supported Living
Cambridgeshire County Council,30-Mar-17,22839584-15098755,-1268.4,Selton House,Care Establishment,2 - Operations - Learning Disability,LDP Fenland Locality - Care,Supported Living
Cambridgeshire County Council,30-Mar-17,22839587-15098758,-1268.4,Selton House,Care Establishment,2 - Operations - Learning Disability,LDP Fenland Locality - Care,Supported Living
Cambridgeshire County Council,30-Mar-17,22839578-15098749,-1268.4,Selton House,Care Establishment,2 - Operations - Learning Disability,LDP Fenland Locality - Care,Supported Living
Cambridgeshire County Council,30-Mar-17,22839586-15098757,-1268.4,Selton House,Care Establishment,2 - Operations - Learning Disability,LDP Fenland Locality - Care,Supported Living
Cambridgeshire County Council,30-Mar-17,22839571-15098742,-1268.4,Selton House,Care Establishment,2 - Operations - Learning Disability,LDP Fenland Locality - Care,Supported Living
Cambridgeshire County Council,30-Mar-17,22839564-15098735,-1268.4,Selton House,Care Establishment,2 - Operations - Learning Disability,LDP Fenland Locality - Care,Supported Living
Cambridgeshire County Council,30-Mar-17,22839575-15098746,-1268.4,Selton House,Care Establishment,2 - Operations - Learning Disability,LDP Fenland Locality - Care,Supported Living
Cambridgeshire County Council,02-Mar-17,22646636-14918997,-1266.59,2 Cheveril Lane (Voyage),Care Establishment,2 - Operations - Learning Disability,LDP Hunts special needs,Supported Living
Cambridgeshire County Council,02-Mar-17,22646621-14919002,-1266.59,2 Cheveril Lane (Voyage),Care Establishment,2 - Operations - Learning Disability,LDP Huntingdonshire Locality - Care,Supported Living
Cambridgeshire County Council,02-Mar-17,22710723-14919023,-1266.59,2 Cheveril Lane (Voyage),Care Establishment,2 - Operations - Learning Disability,LDP Huntingdonshire Locality - Care,Supported Living
Cambridgeshire County Council,02-Mar-17,22710728-14919028,-1266.59,2 Cheveril Lane (Voyage),Care Establishment,2 - Operations - Learning Disability,LDP Huntingdonshire Locality - Care,Supported Living
Cambridgeshire County Council,02-Mar-17,22710744-14919042,-1266.59,2 Cheveril Lane (Voyage),Care Establishment,2 - Operations - Learning Disability,LDP Huntingdonshire Locality - Care,Supported Living
Cambridgeshire County Council,02-Mar-17,22710745-14919043,-1266.59,2 Cheveril Lane (Voyage),Care Establishment,2 - Operations - Learning Disability,LDP Hunts special needs,Supported Living
Cambridgeshire County Council,02-Mar-17,22710747-14919044,-1266.59,2 Cheveril Lane (Voyage),Care Establishment,2 - Operations - Learning Disability,LDP Huntingdonshire Locality - Care,Supported Living
Cambridgeshire County Council,02-Mar-17,22646626-14919007,-1266.59,2 Cheveril Lane (Voyage),Care Establishment,2 - Operations - Learning Disability,LDP Huntingdonshire Locality - Care,Supported Living
Cambridgeshire County Council,02-Mar-17,22710726-14919026,-1266.59,2 Cheveril Lane (Voyage),Care Establishment,2 - Operations - Learning Disability,LDP Huntingdonshire Locality - Care,Supported Living
Cambridgeshire County Council,02-Mar-17,22646628-14919009,-1266.59,2 Cheveril Lane (Voyage),Care Establishment,2 - Operations - Learning Disability,LDP Hunts special needs,Supported Living
Cambridgeshire County Council,02-Mar-17,22710727-14919027,-1266.59,2 Cheveril Lane (Voyage),Care Establishment,2 - Operations - Learning Disability,LDP Huntingdonshire Locality - Care,Supported Living
Cambridgeshire County Council,02-Mar-17,22646637-14918998,-1266.59,2 Cheveril Lane (Voyage),Care Establishment,2 - Operations - Learning Disability,LDP Hunts special needs,Supported Living
Cambridgeshire County Council,02-Mar-17,22646619-14919000,-1266.59,2 Cheveril Lane (Voyage),Care Establishment,2 - Operations - Learning Disability,LDP Hunts special needs,Supported Living
Cambridgeshire County Council,02-Mar-17,22710735-14919035,-1266.59,2 Cheveril Lane (Voyage),Care Establishment,2 - Operations - Learning Disability,LDP Hunts special needs,Supported Living
Cambridgeshire County Council,02-Mar-17,22710734-14919034,-1266.59,2 Cheveril Lane (Voyage),Care Establishment,2 - Operations - Learning Disability,LDP Hunts special needs,Supported Living
Cambridgeshire County Council,02-Mar-17,22646618-14918999,-1266.59,2 Cheveril Lane (Voyage),Care Establishment,2 - Operations - Learning Disability,LDP Huntingdonshire Locality - Care,Supported Living
Cambridgeshire County Council,02-Mar-17,22646622-14919003,-1266.59,2 Cheveril Lane (Voyage),Care Establishment,2 - Operations - Learning Disability,LDP Hunts special needs,Supported Living
Cambridgeshire County Council,02-Mar-17,22646627-14919008,-1266.59,2 Cheveril Lane (Voyage),Care Establishment,2 - Operations - Learning Disability,LDP Hunts special needs,Supported Living
Cambridgeshire County Council,30-Mar-17,22788428-15099104,-1266.59,2 Cheveril Lane (Voyage),Care Establishment,2 - Operations - Learning Disability,LDP Huntingdonshire Locality - Care,Supported Living
Cambridgeshire County Council,30-Mar-17,22841260-15099130,-1266.59,2 Cheveril Lane (Voyage),Care Establishment,2 - Operations - Learning Disability,LDP Huntingdonshire Locality - Care,Supported Living
Cambridgeshire County Council,30-Mar-17,22841263-15099133,-1266.59,2 Cheveril Lane (Voyage),Care Establishment,2 - Operations - Learning Disability,LDP Huntingdonshire Locality - Care,Supported Living
Cambridgeshire County Council,30-Mar-17,22938357-15099183,-1266.59,2 Cheveril Lane (Voyage),Care Establishment,2 - Operations - Learning Disability,LDP Hunts special needs,Supported Living
Cambridgeshire County Council,30-Mar-17,22837968-15099140,-1266.59,2 Cheveril Lane (Voyage),Care Establishment,2 - Operations - Learning Disability,LDP Hunts special needs,Supported Living
Cambridgeshire County Council,30-Mar-17,22866369-15099160,-1266.59,2 Cheveril Lane (Voyage),Care Establishment,2 - Operations - Learning Disability,LDP Huntingdonshire Locality - Care,Supported Living
Cambridgeshire County Council,30-Mar-17,22938331-15099163,-1266.59,2 Cheveril Lane (Voyage),Care Establishment,2 - Operations - Learning Disability,LDP Huntingdonshire Locality - Care,Supported Living
Cambridgeshire County Council,30-Mar-17,22788438-15099114,-1266.59,2 Cheveril Lane (Voyage),Care Establishment,2 - Operations - Learning Disability,LDP Huntingdonshire Locality - Care,Supported Living
Cambridgeshire County Council,30-Mar-17,22841256-15099126,-1266.59,2 Cheveril Lane (Voyage),Care Establishment,2 - Operations - Learning Disability,LDP Huntingdonshire Locality - Care,Supported Living
Cambridgeshire County Council,30-Mar-17,22841259-15099129,-1266.59,2 Cheveril Lane (Voyage),Care Establishment,2 - Operations - Learning Disability,LDP Huntingdonshire Locality - Care,Supported Living
Cambridgeshire County Council,30-Mar-17,22866352-15099143,-1266.59,2 Cheveril Lane (Voyage),Care Establishment,2 - Operations - Learning Disability,LDP Hunts special needs,Supported Living
Cambridgeshire County Council,30-Mar-17,22866359-15099150,-1266.59,2 Cheveril Lane (Voyage),Care Establishment,2 - Operations - Learning Disability,LDP Hunts special needs,Supported Living
Cambridgeshire County Council,30-Mar-17,22866360-15099151,-1266.59,2 Cheveril Lane (Voyage),Care Establishment,2 - Operations - Learning Disability,LDP Huntingdonshire Locality - Care,Supported Living
Cambridgeshire County Council,30-Mar-17,22866367-15099158,-1266.59,2 Cheveril Lane (Voyage),Care Establishment,2 - Operations - Learning Disability,LDP Hunts special needs,Supported Living
Cambridgeshire County Council,30-Mar-17,22938342-15099174,-1266.59,2 Cheveril Lane (Voyage),Care Establishment,2 - Operations - Learning Disability,LDP Huntingdonshire Locality - Care,Supported Living
Cambridgeshire County Council,30-Mar-17,22788429-15099105,-1266.59,2 Cheveril Lane (Voyage),Care Establishment,2 - Operations - Learning Disability,LDP Huntingdonshire Locality - Care,Supported Living
Cambridgeshire County Council,30-Mar-17,22788434-15099110,-1266.59,2 Cheveril Lane (Voyage),Care Establishment,2 - Operations - Learning Disability,LDP Hunts special needs,Supported Living
Cambridgeshire County Council,30-Mar-17,22788442-15099118,-1266.59,2 Cheveril Lane (Voyage),Care Establishment,2 - Operations - Learning Disability,LDP Huntingdonshire Locality - Care,Supported Living
Cambridgeshire County Council,30-Mar-17,22841255-15099125,-1266.59,2 Cheveril Lane (Voyage),Care Establishment,2 - Operations - Learning Disability,LDP Huntingdonshire Locality - Care,Supported Living
Cambridgeshire County Council,30-Mar-17,22837964-15099136,-1266.59,2 Cheveril Lane (Voyage),Care Establishment,2 - Operations - Learning Disability,LDP Huntingdonshire Locality - Care,Supported Living
Cambridgeshire County Council,30-Mar-17,22841261-15099131,-1266.59,2 Cheveril Lane (Voyage),Care Establishment,2 - Operations - Learning Disability,LDP Huntingdonshire Locality - Care,Supported Living
Cambridgeshire County Council,30-Mar-17,22837966-15099138,-1266.59,2 Cheveril Lane (Voyage),Care Establishment,2 - Operations - Learning Disability,LDP Huntingdonshire Locality - Care,Supported Living
Cambridgeshire County Council,30-Mar-17,22938340-15099172,-1266.59,2 Cheveril Lane (Voyage),Care Establishment,2 - Operations - Learning Disability,LDP Huntingdonshire Locality - Care,Supported Living
Cambridgeshire County Council,30-Mar-17,22938341-15099173,-1266.59,2 Cheveril Lane (Voyage),Care Establishment,2 - Operations - Learning Disability,LDP Hunts special needs,Supported Living
Cambridgeshire County Council,30-Mar-17,22938359-15099185,-1266.59,2 Cheveril Lane (Voyage),Care Establishment,2 - Operations - Learning Disability,LDP Hunts special needs,Supported Living
Cambridgeshire County Council,30-Mar-17,22788431-15099107,-1266.59,2 Cheveril Lane (Voyage),Care Establishment,2 - Operations - Learning Disability,LDP Hunts special needs,Supported Living
Cambridgeshire County Council,30-Mar-17,22788437-15099113,-1266.59,2 Cheveril Lane (Voyage),Care Establishment,2 - Operations - Learning Disability,LDP Hunts special needs,Supported Living
Cambridgeshire County Council,30-Mar-17,22866357-15099148,-1266.59,2 Cheveril Lane (Voyage),Care Establishment,2 - Operations - Learning Disability,LDP Huntingdonshire Locality - Care,Supported Living
Cambridgeshire County Council,30-Mar-17,22866361-15099152,-1266.59,2 Cheveril Lane (Voyage),Care Establishment,2 - Operations - Learning Disability,LDP Huntingdonshire Locality - Care,Supported Living
Cambridgeshire County Council,30-Mar-17,22866362-15099153,-1266.59,2 Cheveril Lane (Voyage),Care Establishment,2 - Operations - Learning Disability,LDP Huntingdonshire Locality - Care,Supported Living
Cambridgeshire County Council,30-Mar-17,22866371-15099162,-1266.59,2 Cheveril Lane (Voyage),Care Establishment,2 - Operations - Learning Disability,LDP Hunts special needs,Supported Living
Cambridgeshire County Council,30-Mar-17,22938334-15099166,-1266.59,2 Cheveril Lane (Voyage),Care Establishment,2 - Operations - Learning Disability,LDP Huntingdonshire Locality - Care,Supported Living
Cambridgeshire County Council,30-Mar-17,22788432-15099108,-1266.59,2 Cheveril Lane (Voyage),Care Establishment,2 - Operations - Learning Disability,LDP Hunts special needs,Supported Living
Cambridgeshire County Council,30-Mar-17,22938346-15099177,-1266.59,2 Cheveril Lane (Voyage),Care Establishment,2 - Operations - Learning Disability,LDP Huntingdonshire Locality - Care,Supported Living
Cambridgeshire County Council,30-Mar-17,22788440-15099116,-1266.59,2 Cheveril Lane (Voyage),Care Establishment,2 - Operations - Learning Disability,LDP Huntingdonshire Locality - Care,Supported Living
Cambridgeshire County Council,30-Mar-17,22938350-15099179,-1266.59,2 Cheveril Lane (Voyage),Care Establishment,2 - Operations - Learning Disability,LDP Hunts special needs,Supported Living
Cambridgeshire County Council,02-Mar-17,22720955-14918865,-1198.04,Caretech Community Services,Care Establishment,2 - Operations - Learning Disability,LDP South Cambs - Special Needs,Residential Independent Sector
Cambridgeshire County Council,02-Mar-17,22720896-14918806,-1198.04,Caretech Community Services,Care Establishment,2 - Operations - Learning Disability,LDP South Cambs Locality - Care,Residential Independent Sector
Cambridgeshire County Council,02-Mar-17,22720900-14918810,-1198.04,Caretech Community Services,Care Establishment,2 - Operations - Learning Disability,LDP South Cambs - Special Needs,Residential Independent Sector
Cambridgeshire County Council,02-Mar-17,22720935-14918845,-1198.04,Caretech Community Services,Care Establishment,2 - Operations - Learning Disability,LDP South Cambs - Special Needs,Residential Independent Sector
Cambridgeshire County Council,02-Mar-17,22720942-14918852,-1198.04,Caretech Community Services,Care Establishment,2 - Operations - Learning Disability,LDP South Cambs Locality - Care,Residential Independent Sector
Cambridgeshire County Council,02-Mar-17,22720952-14918862,-1198.04,Caretech Community Services,Care Establishment,2 - Operations - Learning Disability,LDP South Cambs Locality - Care,Residential Independent Sector
Cambridgeshire County Council,02-Mar-17,22720953-14918863,-1198.04,Caretech Community Services,Care Establishment,2 - Operations - Learning Disability,LDP South Cambs Locality - Care,Residential Independent Sector
Cambridgeshire County Council,02-Mar-17,22720912-14918822,-1198.04,Caretech Community Services,Care Establishment,2 - Operations - Learning Disability,LDP South Cambs Locality - Care,Residential Independent Sector
Cambridgeshire County Council,02-Mar-17,22720921-14918831,-1198.04,Caretech Community Services,Care Establishment,2 - Operations - Learning Disability,LDP South Cambs Locality - Care,Residential Independent Sector
Cambridgeshire County Council,02-Mar-17,22720949-14918859,-1198.04,Caretech Community Services,Care Establishment,2 - Operations - Learning Disability,LDP South Cambs Locality - Care,Residential Independent Sector
Cambridgeshire County Council,02-Mar-17,22720898-14918808,-1198.04,Caretech Community Services,Care Establishment,2 - Operations - Learning Disability,LDP South Cambs Locality - Care,Residential Independent Sector
Cambridgeshire County Council,02-Mar-17,22720937-14918847,-1198.04,Caretech Community Services,Care Establishment,2 - Operations - Learning Disability,LDP South Cambs Locality - Care,Residential Independent Sector
Cambridgeshire County Council,02-Mar-17,22720907-14918817,-1198.04,Caretech Community Services,Care Establishment,2 - Operations - Learning Disability,LDP South Cambs Locality - Care,Residential Independent Sector
Cambridgeshire County Council,02-Mar-17,22720902-14918812,-1198.04,Caretech Community Services,Care Establishment,2 - Operations - Learning Disability,LDP South Cambs Locality - Care,Residential Independent Sector
Cambridgeshire County Council,02-Mar-17,22720926-14918836,-1198.04,Caretech Community Services,Care Establishment,2 - Operations - Learning Disability,LDP South Cambs Locality - Care,Residential Independent Sector
Cambridgeshire County Council,02-Mar-17,22720941-14918851,-1198.04,Caretech Community Services,Care Establishment,2 - Operations - Learning Disability,LDP South Cambs Locality - Care,Residential Independent Sector
Cambridgeshire County Council,02-Mar-17,22720910-14918820,-1198.04,Caretech Community Services,Care Establishment,2 - Operations - Learning Disability,LDP South Cambs - Special Needs,Residential Independent Sector
Cambridgeshire County Council,02-Mar-17,22720929-14918839,-1198.04,Caretech Community Services,Care Establishment,2 - Operations - Learning Disability,LDP South Cambs Locality - Care,Residential Independent Sector
Cambridgeshire County Council,02-Mar-17,22720930-14918840,-1198.04,Caretech Community Services,Care Establishment,2 - Operations - Learning Disability,LDP South Cambs Locality - Care,Residential Independent Sector
Cambridgeshire County Council,02-Mar-17,22720939-14918849,-1198.04,Caretech Community Services,Care Establishment,2 - Operations - Learning Disability,LDP South Cambs Locality - Care,Residential Independent Sector
Cambridgeshire County Council,02-Mar-17,22720940-14918850,-1198.04,Caretech Community Services,Care Establishment,2 - Operations - Learning Disability,LDP South Cambs Locality - Care,Residential Independent Sector
Cambridgeshire County Council,02-Mar-17,22720948-14918858,-1198.04,Caretech Community Services,Care Establishment,2 - Operations - Learning Disability,LDP South Cambs Locality - Care,Residential Independent Sector
Cambridgeshire County Council,02-Mar-17,22720954-14918864,-1198.04,Caretech Community Services,Care Establishment,2 - Operations - Learning Disability,LDP South Cambs Locality - Care,Residential Independent Sector
Cambridgeshire County Council,02-Mar-17,22720901-14918811,-1198.04,Caretech Community Services,Care Establishment,2 - Operations - Learning Disability,LDP South Cambs Locality - Care,Residential Independent Sector
Cambridgeshire County Council,02-Mar-17,22720904-14918814,-1198.04,Caretech Community Services,Care Establishment,2 - Operations - Learning Disability,LDP South Cambs - Special Needs,Residential Independent Sector
Cambridgeshire County Council,02-Mar-17,22720908-14918818,-1198.04,Caretech Community Services,Care Establishment,2 - Operations - Learning Disability,LDP South Cambs Locality - Care,Residential Independent Sector
Cambridgeshire County Council,02-Mar-17,22720919-14918829,-1198.04,Caretech Community Services,Care Establishment,2 - Operations - Learning Disability,LDP South Cambs - Special Needs,Residential Independent Sector
Cambridgeshire County Council,16-Mar-17,22783113-14989809,-1198.04,Caretech Community Services,Care Establishment,2 - Operations - Learning Disability,LDP South Cambs - Special Needs,Residential Independent Sector
Cambridgeshire County Council,16-Mar-17,22783118-14989814,-1198.04,Caretech Community Services,Care Establishment,2 - Operations - Learning Disability,LDP South Cambs Locality - Care,Residential Independent Sector
Cambridgeshire County Council,16-Mar-17,22783071-14989829,-1198.04,Caretech Community Services,Care Establishment,2 - Operations - Learning Disability,LDP South Cambs - Special Needs,Residential Independent Sector
Cambridgeshire County Council,16-Mar-17,22783076-14989834,-1198.04,Caretech Community Services,Care Establishment,2 - Operations - Learning Disability,LDP South Cambs - Special Needs,Residential Independent Sector
Cambridgeshire County Council,16-Mar-17,22783082-14989840,-1198.04,Caretech Community Services,Care Establishment,2 - Operations - Learning Disability,LDP South Cambs Locality - Care,Residential Independent Sector
Cambridgeshire County Council,16-Mar-17,22783087-14989845,-1198.04,Caretech Community Services,Care Establishment,2 - Operations - Learning Disability,LDP South Cambs - Special Needs,Residential Independent Sector
Cambridgeshire County Council,16-Mar-17,22840693-14989877,-1198.04,Caretech Community Services,Care Establishment,2 - Operations - Learning Disability,LDP South Cambs - Special Needs,Residential Independent Sector
Cambridgeshire County Council,16-Mar-17,22840678-14989887,-1198.04,Caretech Community Services,Care Establishment,2 - Operations - Learning Disability,LDP South Cambs - Special Needs,Residential Independent Sector
Cambridgeshire County Council,16-Mar-17,22842690-14989907,-1198.04,Caretech Community Services,Care Establishment,2 - Operations - Learning Disability,LDP South Cambs Locality - Care,Residential Independent Sector
Cambridgeshire County Council,16-Mar-17,22842699-14989916,-1198.04,Caretech Community Services,Care Establishment,2 - Operations - Learning Disability,LDP South Cambs Locality - Care,Residential Independent Sector
Cambridgeshire County Council,16-Mar-17,22783112-14989808,-1198.04,Caretech Community Services,Care Establishment,2 - Operations - Learning Disability,LDP South Cambs - Special Needs,Residential Independent Sector
Cambridgeshire County Council,16-Mar-17,22783125-14989821,-1198.04,Caretech Community Services,Care Establishment,2 - Operations - Learning Disability,LDP South Cambs - Special Needs,Residential Independent Sector
Cambridgeshire County Council,16-Mar-17,22783105-14989863,-1198.04,Caretech Community Services,Care Establishment,2 - Operations - Learning Disability,LDP South Cambs Locality - Care,Residential Independent Sector
Cambridgeshire County Council,16-Mar-17,22840697-14989881,-1198.04,Caretech Community Services,Care Establishment,2 - Operations - Learning Disability,LDP South Cambs Locality - Care,Residential Independent Sector
Cambridgeshire County Council,16-Mar-17,22840686-14989895,-1198.04,Caretech Community Services,Care Establishment,2 - Operations - Learning Disability,LDP South Cambs - Special Needs,Residential Independent Sector
Cambridgeshire County Council,16-Mar-17,22842710-14989927,-1198.04,Caretech Community Services,Care Establishment,2 - Operations - Learning Disability,LDP South Cambs - Special Needs,Residential Independent Sector
Cambridgeshire County Council,16-Mar-17,22783117-14989813,-1198.04,Caretech Community Services,Care Establishment,2 - Operations - Learning Disability,LDP South Cambs Locality - Care,Residential Independent Sector
Cambridgeshire County Council,16-Mar-17,22783123-14989819,-1198.04,Caretech Community Services,Care Establishment,2 - Operations - Learning Disability,LDP South Cambs Locality - Care,Residential Independent Sector
Cambridgeshire County Council,16-Mar-17,22783072-14989830,-1198.04,Caretech Community Services,Care Establishment,2 - Operations - Learning Disability,LDP South Cambs - Special Needs,Residential Independent Sector
Cambridgeshire County Council,16-Mar-17,22783088-14989846,-1198.04,Caretech Community Services,Care Establishment,2 - Operations - Learning Disability,LDP South Cambs Locality - Care,Residential Independent Sector
Cambridgeshire County Council,16-Mar-17,22783103-14989861,-1198.04,Caretech Community Services,Care Establishment,2 - Operations - Learning Disability,LDP South Cambs - Special Needs,Residential Independent Sector
Cambridgeshire County Council,16-Mar-17,22840696-14989880,-1198.04,Caretech Community Services,Care Establishment,2 - Operations - Learning Disability,LDP South Cambs - Special Needs,Residential Independent Sector
Cambridgeshire County Council,16-Mar-17,22840699-14989883,-1198.04,Caretech Community Services,Care Establishment,2 - Operations - Learning Disability,LDP South Cambs - Special Needs,Residential Independent Sector
Cambridgeshire County Council,16-Mar-17,22840681-14989890,-1198.04,Caretech Community Services,Care Establishment,2 - Operations - Learning Disability,LDP South Cambs Locality - Care,Residential Independent Sector
Cambridgeshire County Council,16-Mar-17,22842700-14989917,-1198.04,Caretech Community Services,Care Establishment,2 - Operations - Learning Disability,LDP South Cambs Locality - Care,Residential Independent Sector
Cambridgeshire County Council,16-Mar-17,22783115-14989811,-1198.04,Caretech Community Services,Care Establishment,2 - Operations - Learning Disability,LDP South Cambs - Special Needs,Residential Independent Sector
Cambridgeshire County Council,16-Mar-17,22783073-14989831,-1198.04,Caretech Community Services,Care Establishment,2 - Operations - Learning Disability,LDP South Cambs Locality - Care,Residential Independent Sector
Cambridgeshire County Council,16-Mar-17,22783090-14989848,-1198.04,Caretech Community Services,Care Establishment,2 - Operations - Learning Disability,LDP South Cambs Locality - Care,Residential Independent Sector
Cambridgeshire County Council,16-Mar-17,22783092-14989850,-1198.04,Caretech Community Services,Care Establishment,2 - Operations - Learning Disability,LDP South Cambs Locality - Care,Residential Independent Sector
Cambridgeshire County Council,16-Mar-17,22783095-14989853,-1198.04,Caretech Community Services,Care Establishment,2 - Operations - Learning Disability,LDP South Cambs - Special Needs,Residential Independent Sector
Cambridgeshire County Council,16-Mar-17,22840694-14989878,-1198.04,Caretech Community Services,Care Establishment,2 - Operations - Learning Disability,LDP South Cambs - Special Needs,Residential Independent Sector
Cambridgeshire County Council,16-Mar-17,22840684-14989893,-1198.04,Caretech Community Services,Care Establishment,2 - Operations - Learning Disability,LDP South Cambs - Special Needs,Residential Independent Sector
Cambridgeshire County Council,16-Mar-17,22842703-14989920,-1198.04,Caretech Community Services,Care Establishment,2 - Operations - Learning Disability,LDP South Cambs - Special Needs,Residential Independent Sector
Cambridgeshire County Council,16-Mar-17,22783122-14989818,-1198.04,Caretech Community Services,Care Establishment,2 - Operations - Learning Disability,LDP South Cambs Locality - Care,Residential Independent Sector
Cambridgeshire County Council,16-Mar-17,22783070-14989828,-1198.04,Caretech Community Services,Care Establishment,2 - Operations - Learning Disability,LDP South Cambs Locality - Care,Residential Independent Sector
Cambridgeshire County Council,16-Mar-17,22783079-14989837,-1198.04,Caretech Community Services,Care Establishment,2 - Operations - Learning Disability,LDP South Cambs - Special Needs,Residential Independent Sector
Cambridgeshire County Council,16-Mar-17,22842694-14989911,-1198.04,Caretech Community Services,Care Establishment,2 - Operations - Learning Disability,LDP South Cambs - Special Needs,Residential Independent Sector
Cambridgeshire County Council,16-Mar-17,22783106-14989802,-1198.04,Caretech Community Services,Care Establishment,2 - Operations - Learning Disability,LDP South Cambs Locality - Care,Residential Independent Sector
Cambridgeshire County Council,16-Mar-17,22783077-14989835,-1198.04,Caretech Community Services,Care Establishment,2 - Operations - Learning Disability,LDP South Cambs Locality - Care,Residential Independent Sector
Cambridgeshire County Council,16-Mar-17,22783096-14989854,-1198.04,Caretech Community Services,Care Establishment,2 - Operations - Learning Disability,LDP South Cambs Locality - Care,Residential Independent Sector
Cambridgeshire County Council,16-Mar-17,22842691-14989908,-1198.04,Caretech Community Services,Care Establishment,2 - Operations - Learning Disability,LDP South Cambs - Special Needs,Residential Independent Sector
Cambridgeshire County Council,16-Mar-17,22842692-14989909,-1198.04,Caretech Community Services,Care Establishment,2 - Operations - Learning Disability,LDP South Cambs - Special Needs,Residential Independent Sector
Cambridgeshire County Council,16-Mar-17,22840690-14989874,-1198.04,Caretech Community Services,Care Establishment,2 - Operations - Learning Disability,LDP South Cambs - Special Needs,Residential Independent Sector
Cambridgeshire County Council,16-Mar-17,22840698-14989882,-1198.04,Caretech Community Services,Care Establishment,2 - Operations - Learning Disability,LDP South Cambs Locality - Care,Residential Independent Sector
Cambridgeshire County Council,16-Mar-17,22842681-14989898,-1198.04,Caretech Community Services,Care Establishment,2 - Operations - Learning Disability,LDP South Cambs Locality - Care,Residential Independent Sector
Cambridgeshire County Council,16-Mar-17,22842683-14989900,-1198.04,Caretech Community Services,Care Establishment,2 - Operations - Learning Disability,LDP South Cambs - Special Needs,Residential Independent Sector
Cambridgeshire County Council,16-Mar-17,22842688-14989905,-1198.04,Caretech Community Services,Care Establishment,2 - Operations - Learning Disability,LDP South Cambs Locality - Care,Residential Independent Sector
Cambridgeshire County Council,16-Mar-17,22842704-14989921,-1198.04,Caretech Community Services,Care Establishment,2 - Operations - Learning Disability,LDP South Cambs Locality - Care,Residential Independent Sector
Cambridgeshire County Council,16-Mar-17,22783114-14989810,-1198.04,Caretech Community Services,Care Establishment,2 - Operations - Learning Disability,LDP South Cambs - Special Needs,Residential Independent Sector
Cambridgeshire County Council,16-Mar-17,22783094-14989852,-1198.04,Caretech Community Services,Care Establishment,2 - Operations - Learning Disability,LDP South Cambs Locality - Care,Residential Independent Sector
Cambridgeshire County Council,16-Mar-17,22840685-14989894,-1198.04,Caretech Community Services,Care Establishment,2 - Operations - Learning Disability,LDP South Cambs - Special Needs,Residential Independent Sector
Cambridgeshire County Council,16-Mar-17,22842689-14989906,-1198.04,Caretech Community Services,Care Establishment,2 - Operations - Learning Disability,LDP South Cambs Locality - Care,Residential Independent Sector
Cambridgeshire County Council,16-Mar-17,22842706-14989923,-1198.04,Caretech Community Services,Care Establishment,2 - Operations - Learning Disability,LDP South Cambs Locality - Care,Residential Independent Sector
Cambridgeshire County Council,16-Mar-17,22842709-14989926,-1198.04,Caretech Community Services,Care Establishment,2 - Operations - Learning Disability,LDP South Cambs Locality - Care,Residential Independent Sector
Cambridgeshire County Council,23-Mar-17,22868729-15026449,-1198.04,Caretech Community Services,Care Establishment,2 - Operations - Learning Disability,LDP South Cambs - Special Needs,Residential Independent Sector
Cambridgeshire County Council,23-Mar-17,22868731-15026451,-1198.04,Caretech Community Services,Care Establishment,2 - Operations - Learning Disability,LDP South Cambs Locality - Care,Residential Independent Sector
Cambridgeshire County Council,23-Mar-17,22868743-15026463,-1198.04,Caretech Community Services,Care Establishment,2 - Operations - Learning Disability,LDP South Cambs Locality - Care,Residential Independent Sector
Cambridgeshire County Council,23-Mar-17,22868752-15026472,-1198.04,Caretech Community Services,Care Establishment,2 - Operations - Learning Disability,LDP South Cambs Locality - Care,Residential Independent Sector
Cambridgeshire County Council,23-Mar-17,22868692-15026412,-1198.04,Caretech Community Services,Care Establishment,2 - Operations - Learning Disability,LDP South Cambs - Special Needs,Residential Independent Sector
Cambridgeshire County Council,23-Mar-17,22868693-15026413,-1198.04,Caretech Community Services,Care Establishment,2 - Operations - Learning Disability,LDP South Cambs - Special Needs,Residential Independent Sector
Cambridgeshire County Council,23-Mar-17,22868699-15026419,-1198.04,Caretech Community Services,Care Establishment,2 - Operations - Learning Disability,LDP South Cambs Locality - Care,Residential Independent Sector
Cambridgeshire County Council,23-Mar-17,22868706-15026426,-1198.04,Caretech Community Services,Care Establishment,2 - Operations - Learning Disability,LDP South Cambs Locality - Care,Residential Independent Sector
Cambridgeshire County Council,23-Mar-17,22868742-15026462,-1198.04,Caretech Community Services,Care Establishment,2 - Operations - Learning Disability,LDP South Cambs - Special Needs,Residential Independent Sector
Cambridgeshire County Council,23-Mar-17,22868741-15026461,-1198.04,Caretech Community Services,Care Establishment,2 - Operations - Learning Disability,LDP South Cambs - Special Needs,Residential Independent Sector
Cambridgeshire County Council,23-Mar-17,22868724-15026444,-1198.04,Caretech Community Services,Care Establishment,2 - Operations - Learning Disability,LDP South Cambs - Special Needs,Residential Independent Sector
Cambridgeshire County Council,23-Mar-17,22868725-15026445,-1198.04,Caretech Community Services,Care Establishment,2 - Operations - Learning Disability,LDP South Cambs - Special Needs,Residential Independent Sector
Cambridgeshire County Council,23-Mar-17,22868754-15026474,-1198.04,Caretech Community Services,Care Establishment,2 - Operations - Learning Disability,LDP South Cambs - Special Needs,Residential Independent Sector
Cambridgeshire County Council,23-Mar-17,22868723-15026443,-1198.04,Caretech Community Services,Care Establishment,2 - Operations - Learning Disability,LDP South Cambs Locality - Care,Residential Independent Sector
Cambridgeshire County Council,23-Mar-17,22868738-15026458,-1198.04,Caretech Community Services,Care Establishment,2 - Operations - Learning Disability,LDP South Cambs - Special Needs,Residential Independent Sector
Cambridgeshire County Council,23-Mar-17,22868748-15026468,-1198.04,Caretech Community Services,Care Establishment,2 - Operations - Learning Disability,LDP South Cambs Locality - Care,Residential Independent Sector
Cambridgeshire County Council,23-Mar-17,22868705-15026425,-1198.04,Caretech Community Services,Care Establishment,2 - Operations - Learning Disability,LDP South Cambs Locality - Care,Residential Independent Sector
Cambridgeshire County Council,23-Mar-17,22868714-15026434,-1198.04,Caretech Community Services,Care Establishment,2 - Operations - Learning Disability,LDP South Cambs - Special Needs,Residential Independent Sector
Cambridgeshire County Council,23-Mar-17,22868719-15026439,-1198.04,Caretech Community Services,Care Establishment,2 - Operations - Learning Disability,LDP South Cambs Locality - Care,Residential Independent Sector
Cambridgeshire County Council,23-Mar-17,22868722-15026442,-1198.04,Caretech Community Services,Care Establishment,2 - Operations - Learning Disability,LDP South Cambs - Special Needs,Residential Independent Sector
Cambridgeshire County Council,23-Mar-17,22868734-15026454,-1198.04,Caretech Community Services,Care Establishment,2 - Operations - Learning Disability,LDP South Cambs Locality - Care,Residential Independent Sector
Cambridgeshire County Council,23-Mar-17,22868740-15026460,-1198.04,Caretech Community Services,Care Establishment,2 - Operations - Learning Disability,LDP South Cambs Locality - Care,Residential Independent Sector
Cambridgeshire County Council,23-Mar-17,22868697-15026417,-1198.04,Caretech Community Services,Care Establishment,2 - Operations - Learning Disability,LDP South Cambs Locality - Care,Residential Independent Sector
Cambridgeshire County Council,23-Mar-17,22868713-15026433,-1198.04,Caretech Community Services,Care Establishment,2 - Operations - Learning Disability,LDP South Cambs - Special Needs,Residential Independent Sector
Cambridgeshire County Council,23-Mar-17,22868720-15026440,-1198.04,Caretech Community Services,Care Establishment,2 - Operations - Learning Disability,LDP South Cambs Locality - Care,Residential Independent Sector
Cambridgeshire County Council,23-Mar-17,22868739-15026459,-1198.04,Caretech Community Services,Care Establishment,2 - Operations - Learning Disability,LDP South Cambs - Special Needs,Residential Independent Sector
Cambridgeshire County Council,23-Mar-17,22868744-15026464,-1198.04,Caretech Community Services,Care Establishment,2 - Operations - Learning Disability,LDP South Cambs Locality - Care,Residential Independent Sector
Cambridgeshire County Council,30-Mar-17,22966785-15107613,-1198.04,Caretech Community Services,Care Establishment,2 - Operations - Learning Disability,LDP South Cambs Locality - Care,Residential Independent Sector
Cambridgeshire County Council,30-Mar-17,22966734-15107566,-1198.04,Caretech Community Services,Care Establishment,2 - Operations - Learning Disability,LDP South Cambs - Special Needs,Residential Independent Sector
Cambridgeshire County Council,30-Mar-17,22966738-15107570,-1198.04,Caretech Community Services,Care Establishment,2 - Operations - Learning Disability,LDP South Cambs Locality - Care,Residential Independent Sector
Cambridgeshire County Council,30-Mar-17,22966749-15107581,-1198.04,Caretech Community Services,Care Establishment,2 - Operations - Learning Disability,LDP South Cambs - Special Needs,Residential Independent Sector
Cambridgeshire County Council,30-Mar-17,22966763-15107595,-1198.04,Caretech Community Services,Care Establishment,2 - Operations - Learning Disability,LDP South Cambs Locality - Care,Residential Independent Sector
Cambridgeshire County Council,30-Mar-17,22966764-15107596,-1198.04,Caretech Community Services,Care Establishment,2 - Operations - Learning Disability,LDP South Cambs Locality - Care,Residential Independent Sector
Cambridgeshire County Council,30-Mar-17,22966765-15107597,-1198.04,Caretech Community Services,Care Establishment,2 - Operations - Learning Disability,LDP South Cambs Locality - Care,Residential Independent Sector
Cambridgeshire County Council,30-Mar-17,22966773-15107604,-1198.04,Caretech Community Services,Care Establishment,2 - Operations - Learning Disability,LDP South Cambs - Special Needs,Residential Independent Sector
Cambridgeshire County Council,30-Mar-17,22966796-15107621,-1198.04,Caretech Community Services,Care Establishment,2 - Operations - Learning Disability,LDP South Cambs Locality - Care,Residential Independent Sector
Cambridgeshire County Council,30-Mar-17,22966746-15107578,-1198.04,Caretech Community Services,Care Establishment,2 - Operations - Learning Disability,LDP South Cambs Locality - Care,Residential Independent Sector
Cambridgeshire County Council,30-Mar-17,22966753-15107585,-1198.04,Caretech Community Services,Care Establishment,2 - Operations - Learning Disability,LDP South Cambs - Special Needs,Residential Independent Sector
Cambridgeshire County Council,30-Mar-17,22966766-15107598,-1198.04,Caretech Community Services,Care Establishment,2 - Operations - Learning Disability,LDP South Cambs Locality - Care,Residential Independent Sector
Cambridgeshire County Council,30-Mar-17,22966778-15107608,-1198.04,Caretech Community Services,Care Establishment,2 - Operations - Learning Disability,LDP South Cambs - Special Needs,Residential Independent Sector
Cambridgeshire County Council,30-Mar-17,22966740-15107572,-1198.04,Caretech Community Services,Care Establishment,2 - Operations - Learning Disability,LDP South Cambs - Special Needs,Residential Independent Sector
Cambridgeshire County Council,30-Mar-17,22966751-15107583,-1198.04,Caretech Community Services,Care Establishment,2 - Operations - Learning Disability,LDP South Cambs Locality - Care,Residential Independent Sector
Cambridgeshire County Council,30-Mar-17,22966795-15107620,-1198.04,Caretech Community Services,Care Establishment,2 - Operations - Learning Disability,LDP South Cambs - Special Needs,Residential Independent Sector
Cambridgeshire County Council,30-Mar-17,22966731-15107563,-1198.04,Caretech Community Services,Care Establishment,2 - Operations - Learning Disability,LDP South Cambs - Special Needs,Residential Independent Sector
Cambridgeshire County Council,30-Mar-17,22966741-15107573,-1198.04,Caretech Community Services,Care Establishment,2 - Operations - Learning Disability,LDP South Cambs Locality - Care,Residential Independent Sector
Cambridgeshire County Council,30-Mar-17,22966752-15107584,-1198.04,Caretech Community Services,Care Establishment,2 - Operations - Learning Disability,LDP South Cambs - Special Needs,Residential Independent Sector
Cambridgeshire County Council,30-Mar-17,22966755-15107587,-1198.04,Caretech Community Services,Care Establishment,2 - Operations - Learning Disability,LDP South Cambs - Special Needs,Residential Independent Sector
Cambridgeshire County Council,30-Mar-17,22966774-15107605,-1198.04,Caretech Community Services,Care Establishment,2 - Operations - Learning Disability,LDP South Cambs Locality - Care,Residential Independent Sector
Cambridgeshire County Council,30-Mar-17,22966739-15107571,-1198.04,Caretech Community Services,Care Establishment,2 - Operations - Learning Disability,LDP South Cambs - Special Needs,Residential Independent Sector
Cambridgeshire County Council,30-Mar-17,22966758-15107590,-1198.04,Caretech Community Services,Care Establishment,2 - Operations - Learning Disability,LDP South Cambs - Special Needs,Residential Independent Sector
Cambridgeshire County Council,30-Mar-17,22966772-15107603,-1198.04,Caretech Community Services,Care Establishment,2 - Operations - Learning Disability,LDP South Cambs Locality - Care,Residential Independent Sector
Cambridgeshire County Council,30-Mar-17,22966781-15107610,-1198.04,Caretech Community Services,Care Establishment,2 - Operations - Learning Disability,LDP South Cambs Locality - Care,Residential Independent Sector
Cambridgeshire County Council,30-Mar-17,22966732-15107564,-1198.04,Caretech Community Services,Care Establishment,2 - Operations - Learning Disability,LDP South Cambs - Special Needs,Residential Independent Sector
Cambridgeshire County Council,30-Mar-17,22966733-15107565,-1198.04,Caretech Community Services,Care Establishment,2 - Operations - Learning Disability,LDP South Cambs Locality - Care,Residential Independent Sector
Cambridgeshire County Council,16-Mar-17,22838111-14991154,-1194.4,Voyage (Lichfield),Care Establishment,3 - Operations - Countywide Services,LDP Young Adults - Care,Supported Living
Cambridgeshire County Council,30-Mar-17,22959042-15097613,-1176.06,Broad Oaks Vct Ltd,Care Establishment,2 - Operations - Learning Disability,LDP Fens - Special Needs,Residential Independent Sector
Cambridgeshire County Council,30-Mar-17,22959059-15097638,-1176.06,Broad Oaks Vct Ltd,Care Establishment,2 - Operations - Learning Disability,LDP Fens - Special Needs,Residential Independent Sector
Cambridgeshire County Council,30-Mar-17,22959064-15097642,-1176.06,Broad Oaks Vct Ltd,Care Establishment,2 - Operations - Learning Disability,LDP Fens - Special Needs,Residential Independent Sector
Cambridgeshire County Council,30-Mar-17,22959077-15097655,-1176.06,Broad Oaks Vct Ltd,Care Establishment,2 - Operations - Learning Disability,LDP Fens - Special Needs,Residential Independent Sector
Cambridgeshire County Council,30-Mar-17,22959084-15097662,-1176.06,Broad Oaks Vct Ltd,Care Establishment,2 - Operations - Learning Disability,LDP Fens - Special Needs,Residential Independent Sector
Cambridgeshire County Council,30-Mar-17,22959087-15097665,-1176.06,Broad Oaks Vct Ltd,Care Establishment,2 - Operations - Learning Disability,LDP Fens - Special Needs,Residential Independent Sector
Cambridgeshire County Council,30-Mar-17,22959025-15097685,-1176.06,Broad Oaks Vct Ltd,Care Establishment,2 - Operations - Learning Disability,LDP Fens - Special Needs,Residential Independent Sector
Cambridgeshire County Council,30-Mar-17,22959099-15097616,-1176.06,Broad Oaks Vct Ltd,Care Establishment,2 - Operations - Learning Disability,LDP Fens - Special Needs,Residential Independent Sector
Cambridgeshire County Council,30-Mar-17,22959046-15097626,-1176.06,Broad Oaks Vct Ltd,Care Establishment,2 - Operations - Learning Disability,LDP Fens - Special Needs,Residential Independent Sector
Cambridgeshire County Council,30-Mar-17,22959096-15097674,-1176.06,Broad Oaks Vct Ltd,Care Establishment,2 - Operations - Learning Disability,LDP Fens - Special Needs,Residential Independent Sector
Cambridgeshire County Council,30-Mar-17,22959073-15097651,-1176.06,Broad Oaks Vct Ltd,Care Establishment,2 - Operations - Learning Disability,LDP Fens - Special Needs,Residential Independent Sector
Cambridgeshire County Council,30-Mar-17,22959093-15097671,-1176.06,Broad Oaks Vct Ltd,Care Establishment,2 - Operations - Learning Disability,LDP Fens - Special Needs,Residential Independent Sector
Cambridgeshire County Council,30-Mar-17,22959030-15097601,-1176.06,Broad Oaks Vct Ltd,Care Establishment,2 - Operations - Learning Disability,LDP Fens - Special Needs,Residential Independent Sector
Cambridgeshire County Council,30-Mar-17,22959047-15097627,-1176.06,Broad Oaks Vct Ltd,Care Establishment,2 - Operations - Learning Disability,LDP Fens - Special Needs,Residential Independent Sector
Cambridgeshire County Council,30-Mar-17,22959060-15097639,-1176.06,Broad Oaks Vct Ltd,Care Establishment,2 - Operations - Learning Disability,LDP Fens - Special Needs,Residential Independent Sector
Cambridgeshire County Council,30-Mar-17,22959067-15097645,-1176.06,Broad Oaks Vct Ltd,Care Establishment,2 - Operations - Learning Disability,LDP Fens - Special Needs,Residential Independent Sector
Cambridgeshire County Council,30-Mar-17,22959019-15097680,-1176.06,Broad Oaks Vct Ltd,Care Establishment,2 - Operations - Learning Disability,LDP Fens - Special Needs,Residential Independent Sector
Cambridgeshire County Council,30-Mar-17,22959031-15097602,-1176.06,Broad Oaks Vct Ltd,Care Establishment,2 - Operations - Learning Disability,LDP Fens - Special Needs,Residential Independent Sector
Cambridgeshire County Council,30-Mar-17,22959102-15097618,-1176.06,Broad Oaks Vct Ltd,Care Establishment,2 - Operations - Learning Disability,LDP Fens - Special Needs,Residential Independent Sector
Cambridgeshire County Council,30-Mar-17,22959066-15097644,-1176.06,Broad Oaks Vct Ltd,Care Establishment,2 - Operations - Learning Disability,LDP Fens - Special Needs,Residential Independent Sector
Cambridgeshire County Council,30-Mar-17,22959089-15097667,-1176.06,Broad Oaks Vct Ltd,Care Establishment,2 - Operations - Learning Disability,LDP Fens - Special Needs,Residential Independent Sector
Cambridgeshire County Council,30-Mar-17,22959103-15097619,-1176.06,Broad Oaks Vct Ltd,Care Establishment,2 - Operations - Learning Disability,LDP Fens - Special Needs,Residential Independent Sector
Cambridgeshire County Council,30-Mar-17,22959070-15097648,-1176.06,Broad Oaks Vct Ltd,Care Establishment,2 - Operations - Learning Disability,LDP Fens - Special Needs,Residential Independent Sector
Cambridgeshire County Council,30-Mar-17,22959043-15097614,-1176.06,Broad Oaks Vct Ltd,Care Establishment,2 - Operations - Learning Disability,LDP Fens - Special Needs,Residential Independent Sector
Cambridgeshire County Council,30-Mar-17,22959051-15097630,-1176.06,Broad Oaks Vct Ltd,Care Establishment,2 - Operations - Learning Disability,LDP Fens - Special Needs,Residential Independent Sector
Cambridgeshire County Council,30-Mar-17,22959065-15097643,-1176.06,Broad Oaks Vct Ltd,Care Establishment,2 - Operations - Learning Disability,LDP Fens - Special Needs,Residential Independent Sector
Cambridgeshire County Council,30-Mar-17,22959083-15097661,-1176.06,Broad Oaks Vct Ltd,Care Establishment,2 - Operations - Learning Disability,LDP Fens - Special Needs,Residential Independent Sector
Cambridgeshire County Council,30-Mar-17,22959094-15097672,-1176.06,Broad Oaks Vct Ltd,Care Establishment,2 - Operations - Learning Disability,LDP Fens - Special Needs,Residential Independent Sector
Cambridgeshire County Council,23-Mar-17,22838272-15028030,-1169.91,26a Lerowe Road (Regard),Care Establishment,2 - Operations - Learning Disability,LDP South Cambs Locality - Care,Supported Living
Cambridgeshire County Council,16-Mar-17,22833941-14990861,-1162.5,Redacted Personal Data,Individual,2 - Operations - Learning Disability,LDP E Cambs Special Needs,Direct Payments - Social Services
Cambridgeshire County Council,16-Mar-17,22839419-14991225,-1152.41,Voyage (Lichfield),Care Establishment,2 - Operations - Learning Disability,LDP Fenland Locality - Care,Supported Living
Cambridgeshire County Council,16-Mar-17,22839448-14991254,-1152.41,Voyage (Lichfield),Care Establishment,2 - Operations - Learning Disability,LDP Fenland Locality - Care,Supported Living
Cambridgeshire County Council,16-Mar-17,22842541-14991642,-1152.41,Voyage (Lichfield),Care Establishment,2 - Operations - Learning Disability,LDP Fenland Locality - Care,Supported Living
Cambridgeshire County Council,16-Mar-17,22842545-14991644,-1152.41,Voyage (Lichfield),Care Establishment,2 - Operations - Learning Disability,LDP Fenland Locality - Care,Supported Living
Cambridgeshire County Council,16-Mar-17,22839417-14991223,-1152.41,Voyage (Lichfield),Care Establishment,2 - Operations - Learning Disability,LDP Fenland Locality - Care,Supported Living
Cambridgeshire County Council,16-Mar-17,22839426-14991232,-1152.41,Voyage (Lichfield),Care Establishment,2 - Operations - Learning Disability,LDP Fenland Locality - Care,Supported Living
Cambridgeshire County Council,16-Mar-17,22839436-14991242,-1152.41,Voyage (Lichfield),Care Establishment,2 - Operations - Learning Disability,LDP Fenland Locality - Care,Supported Living
Cambridgeshire County Council,16-Mar-17,22842537-14991639,-1152.41,Voyage (Lichfield),Care Establishment,2 - Operations - Learning Disability,LDP Fenland Locality - Care,Supported Living
Cambridgeshire County Council,16-Mar-17,22839433-14991239,-1152.41,Voyage (Lichfield),Care Establishment,2 - Operations - Learning Disability,LDP Fenland Locality - Care,Supported Living
Cambridgeshire County Council,16-Mar-17,22839434-14991240,-1152.41,Voyage (Lichfield),Care Establishment,2 - Operations - Learning Disability,LDP Fenland Locality - Care,Supported Living
Cambridgeshire County Council,16-Mar-17,22842554-14991649,-1152.41,Voyage (Lichfield),Care Establishment,2 - Operations - Learning Disability,LDP Fenland Locality - Care,Supported Living
Cambridgeshire County Council,16-Mar-17,22842583-14991662,-1152.41,Voyage (Lichfield),Care Establishment,2 - Operations - Learning Disability,LDP Fenland Locality - Care,Supported Living
Cambridgeshire County Council,16-Mar-17,22842586-14991664,-1152.41,Voyage (Lichfield),Care Establishment,2 - Operations - Learning Disability,LDP Fenland Locality - Care,Supported Living
Cambridgeshire County Council,16-Mar-17,22842599-14991671,-1152.41,Voyage (Lichfield),Care Establishment,2 - Operations - Learning Disability,LDP Fenland Locality - Care,Supported Living
Cambridgeshire County Council,16-Mar-17,22839437-14991243,-1152.41,Voyage (Lichfield),Care Establishment,2 - Operations - Learning Disability,LDP Fenland Locality - Care,Supported Living
Cambridgeshire County Council,16-Mar-17,22839441-14991247,-1152.41,Voyage (Lichfield),Care Establishment,2 - Operations - Learning Disability,LDP Fenland Locality - Care,Supported Living
Cambridgeshire County Council,16-Mar-17,22842546-14991645,-1152.41,Voyage (Lichfield),Care Establishment,2 - Operations - Learning Disability,LDP Fenland Locality - Care,Supported Living
Cambridgeshire County Council,16-Mar-17,22842551-14991647,-1152.41,Voyage (Lichfield),Care Establishment,2 - Operations - Learning Disability,LDP Fenland Locality - Care,Supported Living
Cambridgeshire County Council,16-Mar-17,22842562-14991653,-1152.41,Voyage (Lichfield),Care Establishment,2 - Operations - Learning Disability,LDP Fenland Locality - Care,Supported Living
Cambridgeshire County Council,16-Mar-17,22842567-14991654,-1152.41,Voyage (Lichfield),Care Establishment,2 - Operations - Learning Disability,LDP Fenland Locality - Care,Supported Living
Cambridgeshire County Council,16-Mar-17,22839443-14991249,-1152.41,Voyage (Lichfield),Care Establishment,2 - Operations - Learning Disability,LDP Fenland Locality - Care,Supported Living
Cambridgeshire County Council,16-Mar-17,22842539-14991641,-1152.41,Voyage (Lichfield),Care Establishment,2 - Operations - Learning Disability,LDP Fenland Locality - Care,Supported Living
Cambridgeshire County Council,16-Mar-17,22842553-14991648,-1152.41,Voyage (Lichfield),Care Establishment,2 - Operations - Learning Disability,LDP Fenland Locality - Care,Supported Living
Cambridgeshire County Council,16-Mar-17,22842584-14991663,-1152.41,Voyage (Lichfield),Care Establishment,2 - Operations - Learning Disability,LDP Fenland Locality - Care,Supported Living
Cambridgeshire County Council,16-Mar-17,22842598-14991670,-1152.41,Voyage (Lichfield),Care Establishment,2 - Operations - Learning Disability,LDP Fenland Locality - Care,Supported Living
Cambridgeshire County Council,16-Mar-17,22839416-14991222,-1152.41,Voyage (Lichfield),Care Establishment,2 - Operations - Learning Disability,LDP Fenland Locality - Care,Supported Living
Cambridgeshire County Council,16-Mar-17,22839420-14991226,-1152.41,Voyage (Lichfield),Care Establishment,2 - Operations - Learning Disability,LDP Fenland Locality - Care,Supported Living
Cambridgeshire County Council,16-Mar-17,22839424-14991230,-1152.41,Voyage (Lichfield),Care Establishment,2 - Operations - Learning Disability,LDP Fenland Locality - Care,Supported Living
Cambridgeshire County Council,16-Mar-17,22839438-14991244,-1152.41,Voyage (Lichfield),Care Establishment,2 - Operations - Learning Disability,LDP Fenland Locality - Care,Supported Living
Cambridgeshire County Council,16-Mar-17,22839422-14991228,-1152.41,Voyage (Lichfield),Care Establishment,2 - Operations - Learning Disability,LDP Fenland Locality - Care,Supported Living
Cambridgeshire County Council,16-Mar-17,22839435-14991241,-1152.41,Voyage (Lichfield),Care Establishment,2 - Operations - Learning Disability,LDP Fenland Locality - Care,Supported Living
Cambridgeshire County Council,16-Mar-17,22842555-14991650,-1152.41,Voyage (Lichfield),Care Establishment,2 - Operations - Learning Disability,LDP Fenland Locality - Care,Supported Living
Cambridgeshire County Council,30-Mar-17,22952808-15112773,-1150.18,Broad Oaks (Mencap),Care Establishment,3 - Operations - Countywide Services,Countywide PD Service - Care,Residential Independent Sector
Cambridgeshire County Council,02-Mar-17,22581573-14905461,-1150,Care Uk Limited,Care Establishment,2 - Commissioning - Older people Pool,Older People - City & South,Residential Independent Sector
Cambridgeshire County Council,02-Mar-17,22581572-14905460,-1150,Care Uk Limited,Care Establishment,2 - Commissioning - Older people Pool,Older People - City & South,Residential Independent Sector
Cambridgeshire County Council,30-Mar-17,22838188-15098721,-1148.76,Selton House,Care Establishment,2 - Operations - Learning Disability,LDP Fenland Locality - Care,Supported Living
Cambridgeshire County Council,30-Mar-17,22838195-15098728,-1148.76,Selton House,Care Establishment,2 - Operations - Learning Disability,LDP Fenland Locality - Care,Supported Living
Cambridgeshire County Council,30-Mar-17,22838201-15098734,-1148.76,Selton House,Care Establishment,2 - Operations - Learning Disability,LDP Fenland Locality - Care,Supported Living
Cambridgeshire County Council,30-Mar-17,22843046-15098769,-1148.76,Selton House,Care Establishment,2 - Operations - Learning Disability,LDP Fenland Locality - Care,Supported Living
Cambridgeshire County Council,30-Mar-17,22838181-15098714,-1148.76,Selton House,Care Establishment,2 - Operations - Learning Disability,LDP Fenland Locality - Care,Supported Living
Cambridgeshire County Council,30-Mar-17,22843051-15098774,-1148.76,Selton House,Care Establishment,2 - Operations - Learning Disability,LDP Fenland Locality - Care,Supported Living
Cambridgeshire County Council,30-Mar-17,22838180-15098713,-1148.76,Selton House,Care Establishment,2 - Operations - Learning Disability,LDP Fenland Locality - Care,Supported Living
Cambridgeshire County Council,30-Mar-17,22838200-15098733,-1148.76,Selton House,Care Establishment,2 - Operations - Learning Disability,LDP Fenland Locality - Care,Supported Living
Cambridgeshire County Council,30-Mar-17,22838184-15098717,-1148.76,Selton House,Care Establishment,2 - Operations - Learning Disability,LDP Fenland Locality - Care,Supported Living
Cambridgeshire County Council,30-Mar-17,22843048-15098771,-1148.76,Selton House,Care Establishment,2 - Operations - Learning Disability,LDP Fenland Locality - Care,Supported Living
Cambridgeshire County Council,30-Mar-17,22838186-15098719,-1148.76,Selton House,Care Establishment,2 - Operations - Learning Disability,LDP Fenland Locality - Care,Supported Living
Cambridgeshire County Council,30-Mar-17,22838192-15098725,-1148.76,Selton House,Care Establishment,2 - Operations - Learning Disability,LDP Fenland Locality - Care,Supported Living
Cambridgeshire County Council,30-Mar-17,22843047-15098770,-1148.76,Selton House,Care Establishment,2 - Operations - Learning Disability,LDP Fenland Locality - Care,Supported Living
Cambridgeshire County Council,30-Mar-17,22838191-15098724,-1148.76,Selton House,Care Establishment,2 - Operations - Learning Disability,LDP Fenland Locality - Care,Supported Living
Cambridgeshire County Council,30-Mar-17,22843050-15098773,-1148.76,Selton House,Care Establishment,2 - Operations - Learning Disability,LDP Fenland Locality - Care,Supported Living
Cambridgeshire County Council,30-Mar-17,22838183-15098716,-1148.76,Selton House,Care Establishment,2 - Operations - Learning Disability,LDP Fenland Locality - Care,Supported Living
Cambridgeshire County Council,17-Mar-17,22771164-15002235,-1146.78,Capita Business Services Ltd,Trade Supplier,LRNG,ICT Service Helpline,Materials for resale
Cambridgeshire County Council,17-Mar-17,22828701-15002269,-1140,Risual Limited,Trade Supplier,LGSS,IT Smarter Business,Other Hired Contract Services
Cambridgeshire County Council,30-Mar-17,22950870-15100310,-1139.84,Kisimul School,Care Establishment,3 - Operations - Countywide Services,LDP Young Adults - Care,Residential Independent Sector
Cambridgeshire County Council,30-Mar-17,22867861-15099825,-1129.14,Gretton Homes,Care Establishment,3 - Operations - Countywide Services,LDP Young Adults - Care,Residential Independent Sector
Cambridgeshire County Council,30-Mar-17,22841433-15098793,-1118.12,Selton House,Care Establishment,2 - Operations - Learning Disability,LDP Fens - Special Needs,Supported Living
Cambridgeshire County Council,02-Mar-17,22731481-14902815,-1091.65,Guyatt House Care Ltd,Care Establishment,2 - Operations - Learning Disability,LDP E Cambs Locality - Care,Day and Domicillary Care Independent Sector
Cambridgeshire County Council,02-Mar-17,22645323-14902808,-1091.65,Guyatt House Care Ltd,Care Establishment,2 - Operations - Learning Disability,LDP E Cambs Special Needs,Day and Domicillary Care Independent Sector
Cambridgeshire County Council,09-Mar-17,22782955-14955162,-1091.65,Guyatt House Care Ltd,Care Establishment,2 - Operations - Learning Disability,LDP E Cambs Locality - Care,Day and Domicillary Care Independent Sector
Cambridgeshire County Council,30-Mar-17,22869369-15120940,-1091.65,Guyatt House Care Ltd,Care Establishment,2 - Operations - Learning Disability,LDP E Cambs Special Needs,Day and Domicillary Care Independent Sector
Cambridgeshire County Council,30-Mar-17,22843873-15120938,-1091.65,Guyatt House Care Ltd,Care Establishment,2 - Operations - Learning Disability,LDP E Cambs Special Needs,Day and Domicillary Care Independent Sector
Cambridgeshire County Council,30-Mar-17,22954686-15120951,-1091.65,Guyatt House Care Ltd,Care Establishment,2 - Operations - Learning Disability,LDP E Cambs Special Needs,Day and Domicillary Care Independent Sector
Cambridgeshire County Council,30-Mar-17,22839583-15098754,-1087.2,Selton House,Care Establishment,2 - Operations - Learning Disability,LDP Fenland Locality - Care,Supported Living
Cambridgeshire County Council,23-Mar-17,22840506-15028516,-1078.9,Conquest Care Homes Peterborough,Care Establishment,2 - Operations - Learning Disability,LDP Fenland Locality - Care,Residential Independent Sector
Cambridgeshire County Council,23-Mar-17,22840481-15028500,-1078.9,Conquest Care Homes Peterborough,Care Establishment,2 - Operations - Learning Disability,LDP Fenland Locality - Care,Residential Independent Sector
Cambridgeshire County Council,23-Mar-17,22840490-15028505,-1078.9,Conquest Care Homes Peterborough,Care Establishment,2 - Operations - Learning Disability,LDP Fenland Locality - Care,Residential Independent Sector
Cambridgeshire County Council,23-Mar-17,22840504-15028515,-1078.9,Conquest Care Homes Peterborough,Care Establishment,2 - Operations - Learning Disability,LDP Fenland Locality - Care,Residential Independent Sector
Cambridgeshire County Council,23-Mar-17,22840483-15028502,-1078.9,Conquest Care Homes Peterborough,Care Establishment,2 - Operations - Learning Disability,LDP Fenland Locality - Care,Residential Independent Sector
Cambridgeshire County Council,23-Mar-17,22840495-15028508,-1078.9,Conquest Care Homes Peterborough,Care Establishment,2 - Operations - Learning Disability,LDP Fenland Locality - Care,Residential Independent Sector
Cambridgeshire County Council,23-Mar-17,22840502-15028513,-1078.9,Conquest Care Homes Peterborough,Care Establishment,2 - Operations - Learning Disability,LDP Fenland Locality - Care,Residential Independent Sector
Cambridgeshire County Council,30-Mar-17,22946802-15097308,-1064.08,Broad Oaks Vct Ltd,Care Establishment,2 - Operations - Learning Disability,LDP Fenland Locality - Care,Residential Independent Sector
Cambridgeshire County Council,30-Mar-17,22946824-15097329,-1064.08,Broad Oaks Vct Ltd,Care Establishment,2 - Operations - Learning Disability,LDP Fenland Locality - Care,Residential Independent Sector
Cambridgeshire County Council,30-Mar-17,22946831-15097336,-1064.08,Broad Oaks Vct Ltd,Care Establishment,2 - Operations - Learning Disability,LDP Fenland Locality - Care,Residential Independent Sector
Cambridgeshire County Council,30-Mar-17,22946832-15097337,-1064.08,Broad Oaks Vct Ltd,Care Establishment,2 - Operations - Learning Disability,LDP Fenland Locality - Care,Residential Independent Sector
Cambridgeshire County Council,30-Mar-17,22946770-15097278,-1064.08,Broad Oaks Vct Ltd,Care Establishment,2 - Operations - Learning Disability,LDP Fenland Locality - Care,Residential Independent Sector
Cambridgeshire County Council,30-Mar-17,22946811-15097316,-1064.08,Broad Oaks Vct Ltd,Care Establishment,2 - Operations - Learning Disability,LDP Fenland Locality - Care,Residential Independent Sector
Cambridgeshire County Council,30-Mar-17,22946816-15097321,-1064.08,Broad Oaks Vct Ltd,Care Establishment,2 - Operations - Learning Disability,LDP Fenland Locality - Care,Residential Independent Sector
Cambridgeshire County Council,30-Mar-17,22946830-15097335,-1064.08,Broad Oaks Vct Ltd,Care Establishment,2 - Operations - Learning Disability,LDP Fenland Locality - Care,Residential Independent Sector
Cambridgeshire County Council,30-Mar-17,22946792-15097299,-1064.08,Broad Oaks Vct Ltd,Care Establishment,2 - Operations - Learning Disability,LDP Fenland Locality - Care,Residential Independent Sector
Cambridgeshire County Council,30-Mar-17,22946806-15097312,-1064.08,Broad Oaks Vct Ltd,Care Establishment,2 - Operations - Learning Disability,LDP Fenland Locality - Care,Residential Independent Sector
Cambridgeshire County Council,30-Mar-17,22946826-15097331,-1064.08,Broad Oaks Vct Ltd,Care Establishment,2 - Operations - Learning Disability,LDP Fenland Locality - Care,Residential Independent Sector
Cambridgeshire County Council,30-Mar-17,22946787-15097294,-1064.08,Broad Oaks Vct Ltd,Care Establishment,2 - Operations - Learning Disability,LDP Fenland Locality - Care,Residential Independent Sector
Cambridgeshire County Council,30-Mar-17,22946827-15097332,-1064.08,Broad Oaks Vct Ltd,Care Establishment,2 - Operations - Learning Disability,LDP Fenland Locality - Care,Residential Independent Sector
Cambridgeshire County Council,30-Mar-17,22946776-15097283,-1064.08,Broad Oaks Vct Ltd,Care Establishment,2 - Operations - Learning Disability,LDP Fenland Locality - Care,Residential Independent Sector
Cambridgeshire County Council,30-Mar-17,22946786-15097293,-1064.08,Broad Oaks Vct Ltd,Care Establishment,2 - Operations - Learning Disability,LDP Fenland Locality - Care,Residential Independent Sector
Cambridgeshire County Council,30-Mar-17,22946795-15097302,-1064.08,Broad Oaks Vct Ltd,Care Establishment,2 - Operations - Learning Disability,LDP Fenland Locality - Care,Residential Independent Sector
Cambridgeshire County Council,30-Mar-17,22946808-15097314,-1064.08,Broad Oaks Vct Ltd,Care Establishment,2 - Operations - Learning Disability,LDP Fenland Locality - Care,Residential Independent Sector
Cambridgeshire County Council,30-Mar-17,22946814-15097319,-1064.08,Broad Oaks Vct Ltd,Care Establishment,2 - Operations - Learning Disability,LDP Fenland Locality - Care,Residential Independent Sector
Cambridgeshire County Council,30-Mar-17,22946820-15097325,-1064.08,Broad Oaks Vct Ltd,Care Establishment,2 - Operations - Learning Disability,LDP Fenland Locality - Care,Residential Independent Sector
Cambridgeshire County Council,30-Mar-17,22946825-15097330,-1064.08,Broad Oaks Vct Ltd,Care Establishment,2 - Operations - Learning Disability,LDP Fenland Locality - Care,Residential Independent Sector
Cambridgeshire County Council,30-Mar-17,22946837-15097342,-1064.08,Broad Oaks Vct Ltd,Care Establishment,2 - Operations - Learning Disability,LDP Fenland Locality - Care,Residential Independent Sector
Cambridgeshire County Council,30-Mar-17,22946804-15097310,-1064.08,Broad Oaks Vct Ltd,Care Establishment,2 - Operations - Learning Disability,LDP Fenland Locality - Care,Residential Independent Sector
Cambridgeshire County Council,30-Mar-17,22946782-15097289,-1064.08,Broad Oaks Vct Ltd,Care Establishment,2 - Operations - Learning Disability,LDP Fenland Locality - Care,Residential Independent Sector
Cambridgeshire County Council,30-Mar-17,22946798-15097305,-1064.08,Broad Oaks Vct Ltd,Care Establishment,2 - Operations - Learning Disability,LDP Fenland Locality - Care,Residential Independent Sector
Cambridgeshire County Council,30-Mar-17,22946801-15097307,-1064.08,Broad Oaks Vct Ltd,Care Establishment,2 - Operations - Learning Disability,LDP Fenland Locality - Care,Residential Independent Sector
Cambridgeshire County Council,30-Mar-17,22946812-15097317,-1064.08,Broad Oaks Vct Ltd,Care Establishment,2 - Operations - Learning Disability,LDP Fenland Locality - Care,Residential Independent Sector
Cambridgeshire County Council,30-Mar-17,22946829-15097334,-1064.08,Broad Oaks Vct Ltd,Care Establishment,2 - Operations - Learning Disability,LDP Fenland Locality - Care,Residential Independent Sector
Cambridgeshire County Council,30-Mar-17,22946835-15097340,-1064.08,Broad Oaks Vct Ltd,Care Establishment,2 - Operations - Learning Disability,LDP Fenland Locality - Care,Residential Independent Sector
Cambridgeshire County Council,30-Mar-17,22950395-15110204,-1058.69,Affinity Trust,Care Establishment,2 - Operations - Learning Disability,LDP Hunts special needs,Day and Domicillary Care Independent Sector
Cambridgeshire County Council,14-Mar-17,22803541-14980012,-1048,Site One Ltd,Trade Supplier,LRNG,ICT Service Procurement,Materials for resale
Cambridgeshire County Council,02-Mar-17,22720909-14918819,-1026.89,Caretech Community Services,Care Establishment,2 - Operations - Learning Disability,LDP South Cambs Locality - Care,Residential Independent Sector
Cambridgeshire County Council,16-Mar-17,22840691-14989875,-1026.89,Caretech Community Services,Care Establishment,2 - Operations - Learning Disability,LDP South Cambs - Special Needs,Residential Independent Sector
Cambridgeshire County Council,16-Mar-17,22783098-14989856,-1026.89,Caretech Community Services,Care Establishment,2 - Operations - Learning Disability,LDP South Cambs - Special Needs,Residential Independent Sector
Cambridgeshire County Council,23-Mar-17,22868750-15026470,-1026.89,Caretech Community Services,Care Establishment,2 - Operations - Learning Disability,LDP South Cambs Locality - Care,Residential Independent Sector
Cambridgeshire County Council,30-Mar-17,22966791-15107617,-1026.89,Caretech Community Services,Care Establishment,2 - Operations - Learning Disability,LDP South Cambs - Special Needs,Residential Independent Sector
Cambridgeshire County Council,30-Mar-17,22959029-15097600,-1008.05,Broad Oaks Vct Ltd,Care Establishment,2 - Operations - Learning Disability,LDP Fens - Special Needs,Residential Independent Sector
Cambridgeshire County Council,16-Mar-17,22839430-14991236,-987.78,Voyage (Lichfield),Care Establishment,2 - Operations - Learning Disability,LDP Fenland Locality - Care,Supported Living
Cambridgeshire County Council,16-Mar-17,22842593-14991668,-987.78,Voyage (Lichfield),Care Establishment,2 - Operations - Learning Disability,LDP Fenland Locality - Care,Supported Living
Cambridgeshire County Council,30-Mar-17,22843055-15098778,-984.65,Selton House,Care Establishment,2 - Operations - Learning Disability,LDP Fenland Locality - Care,Supported Living
Cambridgeshire County Council,16-Mar-17,22838926-14991466,-976.41,Voyage (Lichfield),Care Establishment,2 - Operations - Learning Disability,LDP Fenland Locality - Care,Supported Living
Cambridgeshire County Council,16-Mar-17,22838928-14991468,-976.41,Voyage (Lichfield),Care Establishment,2 - Operations - Learning Disability,LDP Fenland Locality - Care,Supported Living
Cambridgeshire County Council,16-Mar-17,22838942-14991448,-976.41,Voyage (Lichfield),Care Establishment,2 - Operations - Learning Disability,LDP Fenland Locality - Care,Supported Living
Cambridgeshire County Council,16-Mar-17,22838911-14991451,-976.41,Voyage (Lichfield),Care Establishment,2 - Operations - Learning Disability,LDP Fenland Locality - Care,Supported Living
Cambridgeshire County Council,16-Mar-17,22838924-14991464,-976.41,Voyage (Lichfield),Care Establishment,2 - Operations - Learning Disability,LDP Fenland Locality - Care,Supported Living
Cambridgeshire County Council,16-Mar-17,22838914-14991454,-976.41,Voyage (Lichfield),Care Establishment,2 - Operations - Learning Disability,LDP Fenland Locality - Care,Supported Living
Cambridgeshire County Council,16-Mar-17,22838932-14991472,-976.41,Voyage (Lichfield),Care Establishment,2 - Operations - Learning Disability,LDP Fenland Locality - Care,Supported Living
Cambridgeshire County Council,16-Mar-17,22838935-14991475,-976.41,Voyage (Lichfield),Care Establishment,2 - Operations - Learning Disability,LDP Fenland Locality - Care,Supported Living
Cambridgeshire County Council,16-Mar-17,22838937-14991477,-976.41,Voyage (Lichfield),Care Establishment,2 - Operations - Learning Disability,LDP Fenland Locality - Care,Supported Living
Cambridgeshire County Council,16-Mar-17,22838943-14991449,-976.41,Voyage (Lichfield),Care Establishment,2 - Operations - Learning Disability,LDP Fenland Locality - Care,Supported Living
Cambridgeshire County Council,16-Mar-17,22838917-14991457,-976.41,Voyage (Lichfield),Care Establishment,2 - Operations - Learning Disability,LDP Fenland Locality - Care,Supported Living
Cambridgeshire County Council,16-Mar-17,22838938-14991478,-976.41,Voyage (Lichfield),Care Establishment,2 - Operations - Learning Disability,LDP Fenland Locality - Care,Supported Living
Cambridgeshire County Council,16-Mar-17,22838919-14991459,-976.41,Voyage (Lichfield),Care Establishment,2 - Operations - Learning Disability,LDP Fenland Locality - Care,Supported Living
Cambridgeshire County Council,16-Mar-17,22838933-14991473,-976.41,Voyage (Lichfield),Care Establishment,2 - Operations - Learning Disability,LDP Fenland Locality - Care,Supported Living
Cambridgeshire County Council,16-Mar-17,22838918-14991458,-976.41,Voyage (Lichfield),Care Establishment,2 - Operations - Learning Disability,LDP Fenland Locality - Care,Supported Living
Cambridgeshire County Council,16-Mar-17,22838920-14991460,-976.41,Voyage (Lichfield),Care Establishment,2 - Operations - Learning Disability,LDP Fenland Locality - Care,Supported Living
Cambridgeshire County Council,27-Mar-17,22662701-15041027,-966.06,Fostering Solutions Ltd,Care Establishment,S&C,Placements - Social Care,Agency Placements - Out County
Cambridgeshire County Council,27-Mar-17,22660470-15041026,-966.06,Fostering Solutions Ltd,Care Establishment,S&C,Placements - Social Care,Agency Placements - Out County
Cambridgeshire County Council,30-Mar-17,22868463-15107667,-950.42,Thera East Anglia,Care Establishment,2 - Operations - Learning Disability,LDP E Cambs Locality - Care,Supported Living
Cambridgeshire County Council,30-Mar-17,22868480-15107684,-950.42,Thera East Anglia,Care Establishment,2 - Operations - Learning Disability,LDP E Cambs Locality - Care,Supported Living
Cambridgeshire County Council,30-Mar-17,22868490-15107694,-950.42,Thera East Anglia,Care Establishment,2 - Operations - Learning Disability,LDP E Cambs Locality - Care,Supported Living
Cambridgeshire County Council,30-Mar-17,22868494-15107698,-950.42,Thera East Anglia,Care Establishment,2 - Operations - Learning Disability,LDP E Cambs Locality - Care,Supported Living
Cambridgeshire County Council,30-Mar-17,22868518-15107722,-950.42,Thera East Anglia,Care Establishment,2 - Operations - Learning Disability,LDP E Cambs Locality - Care,Supported Living
Cambridgeshire County Council,30-Mar-17,22868462-15107666,-950.42,Thera East Anglia,Care Establishment,2 - Operations - Learning Disability,LDP E Cambs Locality - Care,Supported Living
Cambridgeshire County Council,30-Mar-17,22868506-15107710,-950.42,Thera East Anglia,Care Establishment,2 - Operations - Learning Disability,LDP E Cambs Locality - Care,Supported Living
Cambridgeshire County Council,30-Mar-17,22868466-15107670,-950.42,Thera East Anglia,Care Establishment,2 - Operations - Learning Disability,LDP E Cambs Locality - Care,Supported Living
Cambridgeshire County Council,30-Mar-17,22868478-15107682,-950.42,Thera East Anglia,Care Establishment,2 - Operations - Learning Disability,LDP E Cambs Locality - Care,Supported Living
Cambridgeshire County Council,30-Mar-17,22868520-15107724,-950.42,Thera East Anglia,Care Establishment,2 - Operations - Learning Disability,LDP E Cambs Locality - Care,Supported Living
Cambridgeshire County Council,30-Mar-17,22868519-15107723,-950.42,Thera East Anglia,Care Establishment,2 - Operations - Learning Disability,LDP E Cambs Locality - Care,Supported Living
